﻿Body Name,Supplier Code,Supplier Name,Transaction Ref/No,Their Ref,Date Paid,Gross Value (Detail),VAT Amount,7CCC - Level 7 Cost Centre Code,7CCN - Level 7 Cost Centre Name,9AC - Level 9 Account Code,9AN - Level 9 Account Name,4CCN - Level 4 Cost Centre Name
Blackpool Council,1018045,Lancashire Probation Trust,322795,OP/1002876,08/03/2023,360,60,SCLEAN,Street Cleaning,4501,Private Contractors,Community & Env Services
Blackpool Council,1128867,Carbon Trust Advisory Limited,605072,470013548,10/03/2023,17205,2867.5,FB0004,Energy & Sustainability,1202,Electricity,Resources
Blackpool Council,1111695,Leszek Iwaskow Educational Consultant Ltd,605438,186,27/03/2023,3850,0,MNGMT,Central Management,0917,Other Exps,Children'S Services
Blackpool Council,1074325,Mangar International,610804,0000231751,08/03/2023,606.25,101.04,MTEAJ,Equipment,5401,Aids To Daily Living,Adult & Families
Blackpool Council,1006576,The Helping Hand Company Ltd,616893,CD970018074,10/03/2023,265.2,44.2,MTEAJ,Equipment,5401,Aids To Daily Living,Adult & Families
Blackpool Council,1137196,Passenger Transport Publishing Ltd,617345,PT01696,13/03/2023,720,120,PTP,Transport Policy,0921,Advertising (Staff Vac.),Places
Blackpool Council,1011368,L & R Roadlines Ltd,618336,70237,02/03/2023,11628.78,1938.13,TRA,Traffic Management,4501,Private Contractors,Community & Env Services
Blackpool Council,1091465,Dm Orthotics Limited,618847,20853,10/03/2023,894.36,0,MTEAJ,Equipment,5401,Aids To Daily Living,Adult & Families
Blackpool Council,1111695,Leszek Iwaskow Educational Consultant Ltd,619017,194,27/03/2023,850,0,MNGMT,Central Management,3413,Consultants,Children'S Services
Blackpool Council,1011368,L & R Roadlines Ltd,619765,70427,02/03/2023,5357.2,892.87,TRA,Traffic Management,4501,Private Contractors,Community & Env Services
Blackpool Council,1082146,Ascentis,620386,82759,22/03/2023,700,0,ALEARN,Adult Learning,3532,Comp-Running & License Costs,Places
Blackpool Council,1062176,Gmbg Ltd T/A Civils & Lintels,621396,FNW/362496,06/03/2023,475.28,0,ZM0018,Highways & Engineering,9773,Orders Received Not Invoiced,Blackpool Services
Blackpool Council,1062176,Gmbg Ltd T/A Civils & Lintels,621396,FNW/362496,06/03/2023,570.34,95.06,ZM0018,Highways & Engineering,9511A,Stocks Efin,Blackpool Services
Blackpool Council,1053453,Brenntag Uk Ltd,621462,32SI 3353860,13/03/2023,529.77,88.29,LEISUR,Leisure Management,3060,Chemicals,Community & Env Services
Blackpool Council,1119493,Centerprise International Ltd,621529,90293715,13/03/2023,1860,310,CS0739,Ict Refresh,6525,I.T. Hardware Purchase,Capital - Resources
Blackpool Council,1010114,Braunability Uk Ltd,621539,203496,20/03/2023,1494.07,249.01,INTRAD,Integrated Transport Admin,3010,Safety Equipment,Community & Env Services
Blackpool Council,1018184,Blackpool Skip Hire Ltd,621913,045890,22/03/2023,282,47,SBOARD,Springboard,3401,General Services,Children'S Services
Blackpool Council,1137922,Synectics Solutions Ltd,622421,0000002148,01/03/2023,10444.9,1740.82,FBBBA,Audit & Investigations,3401,General Services,Resources
Blackpool Council,1119493,Centerprise International Ltd,622422,90294542,01/03/2023,12420,2070,CS0739,Ict Refresh,6525,I.T. Hardware Purchase,Capital - Resources
Blackpool Council,1114541,Integrity Print Ltd,622496,1345109,01/03/2023,1920,320,PARADM,Parking Administration,3801,Other Expenses,Budgets Outside Cash Limits
Blackpool Council,1025240,Key Engineering Supplies Ltd,622497,57395,01/03/2023,654.36,0,ZM0018,Highways & Engineering,9773,Orders Received Not Invoiced,Blackpool Services
Blackpool Council,1025240,Key Engineering Supplies Ltd,622497,57395,01/03/2023,785.23,130.87,ZM0018,Highways & Engineering,9511A,Stocks Efin,Blackpool Services
Blackpool Council,1026811,Stannah Lift Services Ltd,622551,1085508371,24/03/2023,420,70,MVBBJ,Equipment,5401,Aids To Daily Living,Adult & Families
Blackpool Council,1006419,Tunstall Healthcare (Uk) Ltd,622566,CD970006589,01/03/2023,4327.49,721.25,APFBAB,Vitaline,3012,Other Equipment,Adult & Families
Blackpool Council,1008620,Ppg Architectural Coatings Uk Limited,622567,4483337304,01/03/2023,268.38,44.73,PJOA,Commercial & Marketing,3041,Other Materials,Places
Blackpool Council,1122496,Haldane Fisher,622588,1200/00224461,01/03/2023,1166.4,194.4,PJOA,Commercial & Marketing,3041,Other Materials,Places
Blackpool Council,1126830,Taranto Systems Ltd,622592,INV0000001674,01/03/2023,454.58,75.76,PARADM,Parking Administration,3801,Other Expenses,Budgets Outside Cash Limits
Blackpool Council,1025240,Key Engineering Supplies Ltd,622616,57455,02/03/2023,535.7,0,ZM0018,Highways & Engineering,9773,Orders Received Not Invoiced,Blackpool Services
Blackpool Council,1025240,Key Engineering Supplies Ltd,622616,57455,02/03/2023,642.84,107.14,ZM0018,Highways & Engineering,9511A,Stocks Efin,Blackpool Services
Blackpool Council,1026738,Cassidy + Ashton Group Limited,622646,19867,02/03/2023,3600,600,AEB,Buildings,3413,Consultants,Resources
Blackpool Council,1026738,Cassidy + Ashton Group Limited,622647,19866,02/03/2023,2340,390,AEB,Buildings,3413,Consultants,Resources
Blackpool Council,1026738,Cassidy + Ashton Group Limited,622649,19865,02/03/2023,6930,1155,CXC11,Site Development,6503,Capital Salaries (Pro Advance),Capital - Chief Executive
Blackpool Council,1132557,Jcb Price & Son Ltd,622706,1102,01/03/2023,3960,660,CEMCRE,Cems Crems Etc,3454,Remove And Refix Memorials,Governance & Partnerships
Blackpool Council,1135714,Oh Sourcing Ltd,622710,INV-5218OH,02/03/2023,253.8,42.3,FK0013,Corporate Health,0791,Temp/Relief (Bureau Staff),Chief Executive
Blackpool Council,1044964,Marketing Lancashire,622719,2547,01/03/2023,7800,1300,PPA,Head Of Tourism Services,3401,General Services,Places
Blackpool Council,1026738,Cassidy + Ashton Group Limited,622727,19868,02/03/2023,39570,6595,CGICAG,Town Deal,6503,Capital Salaries (Pro Advance),Capital - Commnctn & Regen
Blackpool Council,1121485,Philredom Ltd,622774,PL01022023-104,02/03/2023,2600,0,MNGMT,Central Management,3413,Consultants,Children'S Services
Blackpool Council,1132845,Susan Hayward Consulting,622782,013/BC,02/03/2023,3150,0,MNGMT,Central Management,3413,Consultants,Children'S Services
Blackpool Council,1117945,Valtech Limited,622794,UKSI19119,01/03/2023,488.06,81.34,FC1404,Blue Badge Reform,3401,General Services,Resources
Blackpool Council,1117713,Allied Publicity Services (Manchester) Ltd,622795,C73740,02/03/2023,995.26,165.88,FC1404,Blue Badge Reform,3401,General Services,Resources
Blackpool Council,1121122,Angela Latham Psychology Services Ltd,622808,120533,02/03/2023,700,0,BSTPRJ,Better Start Projects,3401,General Services,Better Start Projects
Blackpool Council,1121728,Arrow County Supplies,622823,4985852,02/03/2023,628.08,0,ZM0018,Highways & Engineering,9773,Orders Received Not Invoiced,Blackpool Services
Blackpool Council,1121728,Arrow County Supplies,622823,4985852,02/03/2023,1046.5,174.42,ZM0018,Highways & Engineering,9511A,Stocks Efin,Blackpool Services
Blackpool Council,1009824,Acorn Care & Education Ltd,622890,88114,13/03/2023,700,0,CWAN,Children With Additional Needs,2211,Casual Hire,Children'S Services
Blackpool Council,1025240,Key Engineering Supplies Ltd,622892,57541,02/03/2023,530.7,0,ZM0018,Highways & Engineering,9773,Orders Received Not Invoiced,Blackpool Services
Blackpool Council,1025240,Key Engineering Supplies Ltd,622892,57541,02/03/2023,636.83,106.13,ZM0018,Highways & Engineering,9511A,Stocks Efin,Blackpool Services
Blackpool Council,1114400,Worlifts Ltd,622900,096406,02/03/2023,696,116,SCHEME,Highways Schemes,1012,Premises Maint-Priv.Contractor,Community & Env Services
Blackpool Council,1103692,Calico Enterprise Limited,622914,SINV65/00000660,02/03/2023,3156.98,246.66,FC1802,Social Fund - Client,5210,Community Care Support,Resources
Blackpool Council,1103692,Calico Enterprise Limited,622915,SINV65/00000661,02/03/2023,11200.8,1866.8,FC1802,Social Fund - Client,5210,Community Care Support,Resources
Blackpool Council,1103692,Calico Enterprise Limited,622916,SINV65/00000662,02/03/2023,9397.2,1566.2,FC1802,Social Fund - Client,5210,Community Care Support,Resources
Blackpool Council,1114337,The Bikeability,622918,1421,02/03/2023,252,42,LEISUR,Leisure Management,0911,Training Expenses,Community & Env Services
Blackpool Council,1009925,City & Guilds Of London Institute,622921,806229501,02/03/2023,1248,0,ALEARN,Adult Learning,3711,Subscriptions,Places
Blackpool Council,1120630,Dar Consulting,622961,SI-268,02/03/2023,720,120,CGICAG,Town Deal,6506,Consultants Fees,Capital - Commnctn & Regen
Blackpool Council,1106421,The Mailing Room Ltd,622962,SI-186814,02/03/2023,1800,300,FCADA,Customer Services,3001,Office Equipment Purchase,Resources
Blackpool Council,1137985,Hickton Quality Control,622967,26742,02/03/2023,960,160,CGICAF,G&P Prudential Schemes,6505,Clerk Of Works,Capital - Commnctn & Regen
Blackpool Council,1074968,P N Grundy Ltd,622979,823,02/03/2023,300,0,FK0071,Corporate Training,3426,Course Fees,Chief Executive
Blackpool Council,1121122,Angela Latham Psychology Services Ltd,623000,120534,02/03/2023,500,0,BSTPRJ,Better Start Projects,3401,General Services,Better Start Projects
Blackpool Council,1014996,Peters Ltd T/A Peters Bookselling Servces,623001,1966697,02/03/2023,624,104,LBF,Library Management,3041,Other Materials,Places
Blackpool Council,1014996,Peters Ltd T/A Peters Bookselling Servces,623003,1966634,02/03/2023,468,78,LBF,Library Management,3020,Furniture - Purchase,Places
Blackpool Council,1058510,Lifeline Language Services Ltd,623037,1022159,02/03/2023,270,45,JEA,Senior Management,5507,Personal,Children'S Services
Blackpool Council,1095113,Pearce Clinical Psychology Services Ltd,623040,968,02/03/2023,500,0,FK0071,Corporate Training,3426,Course Fees,Chief Executive
Blackpool Council,1135057,Prepaid Financial Services Limited,623048,INV80116,02/03/2023,2184,364,EM1032,Client Finances,3401,General Services,Resources
Blackpool Council,1030119,Generation (Uk) Ltd,623049,H2792416,02/03/2023,3644.7,607.45,PJAA,"Erection, Operation & Dismantl",1012,Premises Maint-Priv.Contractor,Places
Blackpool Council,1068172,Northern Print Distribution Ltd,623053,SI-56927,02/03/2023,840,140,PRG,Tourism General,3301,Printing,Places
Blackpool Council,1094424,The Networking People,623054,SI112552,02/03/2023,3906.71,651.12,FGAA,Ict Corporate Services,3531,Computer-H'Ware Purchase,Resources
Blackpool Council,1094424,The Networking People,623056,SI112560,02/03/2023,2846.4,474.4,FGAA,Ict Corporate Services,3531,Computer-H'Ware Purchase,Resources
Blackpool Council,1094424,The Networking People,623057,SI112576,02/03/2023,19229.03,3204.84,FGAA,Ict Corporate Services,3531,Computer-H'Ware Purchase,Resources
Blackpool Council,1094424,The Networking People,623060,SI112579,02/03/2023,3246.14,541.02,FGAA,Ict Corporate Services,3532,Comp-Running & License Costs,Resources
Blackpool Council,1094424,The Networking People,623061,SI112578,02/03/2023,2925.59,487.6,FGAA,Ict Corporate Services,3531,Computer-H'Ware Purchase,Resources
Blackpool Council,1115480,Seating Matters Ltd,623095,54621,02/03/2023,1726.2,287.7,MTEAJ,Equipment,5401,Aids To Daily Living,Adult & Families
Blackpool Council,1109913,Tough Furniture Ltd,623097,25979,02/03/2023,1218,203,MTEAJ,Equipment,5401,Aids To Daily Living,Adult & Families
Blackpool Council,1102823,Wilde Consultants Limited,623103,24447,16/03/2023,4716.46,786.08,TRA,Traffic Management,4501,Private Contractors,Community & Env Services
Blackpool Council,1085729,W V Howe Limited,623104,310932,02/03/2023,729.74,121.62,CATERG,Catering Services,3052,Kitchen (Light) Equip-Purchase,Community & Env Services
Blackpool Council,1102823,Wilde Consultants Limited,623108,24448,02/03/2023,3231.36,538.56,TRA,Traffic Management,4501,Private Contractors,Community & Env Services
Blackpool Council,1023161,Suez Recycling And Recovery Uk Ltd,623109,80323527,01/03/2023,65094.23,10849.04,DOMPFI,Domestic Waste & Waste Pfi,4501,Private Contractors,Community & Env Services
Blackpool Council,1045726,Thomas Telford Limited,623130,13967,02/03/2023,1920,320,HJA,Growth,0921,Advertising (Staff Vac.),Places
Blackpool Council,1077392,Reed Specialist Recruitment Ltd,623131,E021045031M,07/03/2023,502.25,83.71,AER,Dual Use Properties,0791,Temp/Relief (Bureau Staff),Resources
Blackpool Council,1077392,Reed Specialist Recruitment Ltd,623131,E021045031M,07/03/2023,784.33,130.73,AHHBA,Blackpool Museum,0791,Temp/Relief (Bureau Staff),Places
Blackpool Council,1077392,Reed Specialist Recruitment Ltd,623131,E021045031M,07/03/2023,613.68,102.29,ALEARN,Adult Learning,0791,Temp/Relief (Bureau Staff),Places
Blackpool Council,1077392,Reed Specialist Recruitment Ltd,623131,E021045031M,07/03/2023,1227.49,204.58,CWAN,Children With Additional Needs,0791,Temp/Relief (Bureau Staff),Children'S Services
Blackpool Council,1077392,Reed Specialist Recruitment Ltd,623131,E021045031M,07/03/2023,1930.95,321.82,JAB,Locality,0791,Temp/Relief (Bureau Staff),Children'S Services
Blackpool Council,1077392,Reed Specialist Recruitment Ltd,623131,E021045031M,07/03/2023,1534.57,255.76,JAH,Duty And Assessment,0791,Temp/Relief (Bureau Staff),Children'S Services
Blackpool Council,1077392,Reed Specialist Recruitment Ltd,623131,E021045031M,07/03/2023,3883.22,647.2,JBT,Looked After Children,0791,Temp/Relief (Bureau Staff),Children'S Services
Blackpool Council,1077392,Reed Specialist Recruitment Ltd,623131,E021045031M,07/03/2023,2252.07,375.34,JEA,Senior Management,0791,Temp/Relief (Bureau Staff),Children'S Services
Blackpool Council,1077392,Reed Specialist Recruitment Ltd,623131,E021045031M,07/03/2023,681.64,113.61,PJBA,Wages Overhead Account,0791,Temp/Relief (Bureau Staff),Places
Blackpool Council,1077392,Reed Specialist Recruitment Ltd,623131,E021045031M,07/03/2023,671.18,111.87,PU0000,Covid Test And Trace,0791,Temp/Relief (Bureau Staff),Public Health
Blackpool Council,1132978,Cornerstone Design And Marketing Limited,623142,12072,02/03/2023,3000,500,LEISUR,Leisure Management,3401,General Services,Community & Env Services
Blackpool Council,1011675,Bambers Remedial Contractors Limited,623156,18207,17/03/2023,4758,793,CXAAA,Local Authority Dwellings,6501,Contract Payments,Capital - Chief Executive
Blackpool Council,1014996,Peters Ltd T/A Peters Bookselling Servces,623166,1966869,02/03/2023,489,0,LBF,Library Management,3304,Books And Periodicals,Places
Blackpool Council,1094424,The Networking People,623208,SI112549,02/03/2023,4708.14,784.69,CGRESO,Resources Schemes,6507,Materials,Capital - Resources
Blackpool Council,1094424,The Networking People,623209,SI112550,02/03/2023,1133.33,188.89,CGRESO,Resources Schemes,6507,Materials,Capital - Resources
Blackpool Council,1094424,The Networking People,623210,SI112551,02/03/2023,711.6,118.6,CGRESO,Resources Schemes,6507,Materials,Capital - Resources
Blackpool Council,1008052,Midland Signs (Leicester) Ltd T/A G & G Signs,623225,54496,02/03/2023,763.2,127.2,ENGINE,Engineering,3041,Other Materials,Community & Env Services
Blackpool Council,1011368,L & R Roadlines Ltd,623229,70793,02/03/2023,520.09,86.68,TRA,Traffic Management,4501,Private Contractors,Community & Env Services
Blackpool Council,1035120,Talking Life Ltd,623234,8739,02/03/2023,630,105,LM0420,Adults Training,3426,Course Fees,Adult & Families
Blackpool Council,1135714,Oh Sourcing Ltd,623235,INV-5241OH,02/03/2023,423,70.5,FK0013,Corporate Health,0791,Temp/Relief (Bureau Staff),Chief Executive
Blackpool Council,1097560,Real World Group Ltd,623300,8561,02/03/2023,2232,372,FK0071,Corporate Training,3426,Course Fees,Chief Executive
Blackpool Council,1095113,Pearce Clinical Psychology Services Ltd,623303,970,02/03/2023,1848,0,FK0013,Corporate Health,0992,Medical Fees (Employee),Chief Executive
Blackpool Council,1110132,Health Assured Ltd,623307,SF-142008,02/03/2023,3170.7,528.45,FK0013,Corporate Health,0992,Medical Fees (Employee),Chief Executive
Blackpool Council,1094424,The Networking People,623320,SI112592,02/03/2023,13311.72,2218.62,FGAA,Ict Corporate Services,3527,Communication Lines,Resources
Blackpool Council,1094355,Les Mills Fitness Uk Ltd,623326,LMUK-SIV-151642,02/03/2023,450,75,LEISUR,Leisure Management,3801,Other Expenses,Community & Env Services
Blackpool Council,1011368,L & R Roadlines Ltd,623329,70795,02/03/2023,653.82,108.97,ENGINE,Engineering,1012,Premises Maint-Priv.Contractor,Community & Env Services
Blackpool Council,1011368,L & R Roadlines Ltd,623332,70814,02/03/2023,5419.69,903.28,TRA,Traffic Management,4501,Private Contractors,Community & Env Services
Blackpool Council,1026738,Cassidy + Ashton Group Limited,623335,19876,02/03/2023,5292,882,FMAK,Acquisitions 9/10,3801,Other Expenses,Places
Blackpool Council,1057663,Wilde Recruitment Ltd,623340,42648,02/03/2023,552.38,92.06,CTAHHA,Tramway Emergency Works,6501,Contract Payments,Capital - Commnctn & Regen
Blackpool Council,1058510,Lifeline Language Services Ltd,623348,1122013,02/03/2023,331.2,55.2,JEA,Senior Management,5507,Personal,Children'S Services
Blackpool Council,1058510,Lifeline Language Services Ltd,623349,1122020,02/03/2023,284.4,47.4,JEA,Senior Management,5507,Personal,Children'S Services
Blackpool Council,1058510,Lifeline Language Services Ltd,623352,1022160,02/03/2023,338.4,56.4,JEA,Senior Management,5507,Personal,Children'S Services
Blackpool Council,1017606,Salvation Army,623354,5030087,13/03/2023,417,69.5,AHHBA,Blackpool Museum,3801,Other Expenses,Places
Blackpool Council,1088053,Gradko International Limited,623357,220005,02/03/2023,1270.08,211.68,PYEP,Environmental Protection,3313,General Expenses,Community & Env Services
Blackpool Council,1081237,The Speech Bubble Ltd,623360,TSBI-3155,02/03/2023,7740,0,EDDIV,Education Diversity,3412,Therapeutic Work,Children'S Services
Blackpool Council,1014426,Jacobs Uk Limited,623391,B550X016-007,02/03/2023,50331.42,8388.57,CPAABA,Shoreline,6501,Contract Payments,Capital - Comm & Environ
Blackpool Council,1120630,Dar Consulting,623460,SI-267,01/03/2023,720,120,TRB,Maintenance & Works,4501,Private Contractors,Community & Env Services
Blackpool Council,1010687,Sirsi Ltd,623461,INV12958,02/03/2023,29483.69,4913.95,LBF,Library Management,3711,Subscriptions,Places
Blackpool Council,1031342,One51 Es Plastics (Uk) Ltd T/A Mgb Plastics,623473,43025,02/03/2023,19908,3318,DOMPFI,Domestic Waste & Waste Pfi,3041,Other Materials,Community & Env Services
Blackpool Council,1058510,Lifeline Language Services Ltd,623478,1122072,02/03/2023,421.68,70.28,JA1531,Independent Reviewing Officers,0981,Professional Fees,Children'S Services
Blackpool Council,1094907,Living Streets,623493,SIN000791,02/03/2023,72780,12130,LEISUR,Leisure Management,4501,Private Contractors,Community & Env Services
Blackpool Council,1094907,Living Streets,623494,SIN000794,02/03/2023,50640,8440,LEISUR,Leisure Management,4501,Private Contractors,Community & Env Services
Blackpool Council,1075909,Viatec Uk Ltd,623495,1988929,02/03/2023,990,0,ZM0018,Highways & Engineering,9773,Orders Received Not Invoiced,Blackpool Services
Blackpool Council,1075909,Viatec Uk Ltd,623495,1988929,02/03/2023,1188,198,ZM0018,Highways & Engineering,9511A,Stocks Efin,Blackpool Services
Blackpool Council,1063633,Pete Marquis T/A Pdm Industries Ltd,623506,10877,02/03/2023,22800,3800,ZM0003,Planning,9624,Rechargeable Works Account,Place Directorate
Blackpool Council,1121728,Arrow County Supplies,623511,4987082,02/03/2023,612,0,ZM0018,Highways & Engineering,9773,Orders Received Not Invoiced,Blackpool Services
Blackpool Council,1121728,Arrow County Supplies,623511,4987082,02/03/2023,1027.2,171.2,ZM0018,Highways & Engineering,9511A,Stocks Efin,Blackpool Services
Blackpool Council,1134959,Trebbi Continuum Ltd,623514,13190-01,02/03/2023,3600,600,PLBAAA,Development Control,0981,Professional Fees,Places
Blackpool Council,1116927,Creative Tourist Ltd,623520,INV-1376,02/03/2023,6091.2,1015.2,AHM,Arts Miscellaneous,3413,Consultants,Places
Blackpool Council,1112369,We Are Sunday Ltd,623628,033668,02/03/2023,2400,400,HJA,Growth,0921,Advertising (Staff Vac.),Places
Blackpool Council,1010619,Askews And Holts Library Services Ltd,623631,6828561,02/03/2023,256.79,0,LBB,Central Library,3304,Books And Periodicals,Places
Blackpool Council,1010619,Askews And Holts Library Services Ltd,623632,6828560,02/03/2023,266.12,0,LBB,Central Library,3304,Books And Periodicals,Places
Blackpool Council,1010619,Askews And Holts Library Services Ltd,623633,6828559,02/03/2023,402.55,0,LBB,Central Library,3304,Books And Periodicals,Places
Blackpool Council,1009035,Hilton Cabinet Co Ltd,623635,67378,02/03/2023,523.58,87.26,CEMCRE,Cems Crems Etc,3450,Book Of Remembrance,Governance & Partnerships
Blackpool Council,1049304,Insight Direct (Uk) Ltd,623663,2100512411,02/03/2023,548.6,91.43,HJA,Growth,3533,Computer S/W Purchases,Places
Blackpool Council,1049304,Insight Direct (Uk) Ltd,623664,2100512410,02/03/2023,912.38,152.06,FGAA,Ict Corporate Services,3532,Comp-Running & License Costs,Resources
Blackpool Council,1049304,Insight Direct (Uk) Ltd,623667,2100514346,02/03/2023,853.68,142.28,JAB,Locality,3533,Computer S/W Purchases,Children'S Services
Blackpool Council,1101740,Ken Taylor Supplies Limited,623671,0371835,02/03/2023,348.75,0,ZM0018,Highways & Engineering,9773,Orders Received Not Invoiced,Blackpool Services
Blackpool Council,1101740,Ken Taylor Supplies Limited,623671,0371835,02/03/2023,418.5,69.75,ZM0018,Highways & Engineering,9511A,Stocks Efin,Blackpool Services
Blackpool Council,1058510,Lifeline Language Services Ltd,623675,1122036,02/03/2023,284.4,47.4,JEA,Senior Management,5507,Personal,Children'S Services
Blackpool Council,1026811,Stannah Lift Services Ltd,623684,1085516095,02/03/2023,4883,0,CX4002,Disabled Facilities Grants,6501,Contract Payments,Capital - Adult Social Care
Blackpool Council,1058510,Lifeline Language Services Ltd,623740,1122080,02/03/2023,312,52,JEA,Senior Management,5507,Personal,Children'S Services
Blackpool Council,1058510,Lifeline Language Services Ltd,623743,1122043,02/03/2023,356.4,59.4,JEA,Senior Management,5507,Personal,Children'S Services
Blackpool Council,1031475,Jenx Ltd T/A Jiraffe,623786,403499,02/03/2023,3453.6,575.6,CWAN,Children With Additional Needs,5401,Aids To Daily Living,Children'S Services
Blackpool Council,1115480,Seating Matters Ltd,623787,54749,02/03/2023,7656,1276,MTEAJ,Equipment,5401,Aids To Daily Living,Adult & Families
Blackpool Council,1049200,Etac Limited,623789,339549,02/03/2023,364.8,60.8,MTEAJ,Equipment,5401,Aids To Daily Living,Adult & Families
Blackpool Council,1100070,Carebase (Fac001),623790,87510,02/03/2023,2148,358,MTEAJ,Equipment,5401,Aids To Daily Living,Adult & Families
Blackpool Council,1091465,Dm Orthotics Limited,623791,22685,02/03/2023,406.55,0,MTEAJ,Equipment,5401,Aids To Daily Living,Adult & Families
Blackpool Council,1008743,James Leckey Design Ltd T/A Vida Global,623792,OP/I197808,10/03/2023,309.6,51.6,CWAN,Children With Additional Needs,5401,Aids To Daily Living,Children'S Services
Blackpool Council,1008743,James Leckey Design Ltd T/A Vida Global,623793,OP/I197809,02/03/2023,373.2,62.2,CWAN,Children With Additional Needs,5401,Aids To Daily Living,Children'S Services
Blackpool Council,1011368,L & R Roadlines Ltd,623794,70851,02/03/2023,471.84,78.64,CTACBA,Ltp Scheme 21/22,6501,Contract Payments,Capital - Commnctn & Regen
Blackpool Council,1137671,Plinth Medical Ltd,623795,PQ23000815,02/03/2023,1596,266,CWAN,Children With Additional Needs,5401,Aids To Daily Living,Children'S Services
Blackpool Council,1067536,Rlss Uk Enterprises Ltd T/A Rlss Uk Shop,623797,SIN028769,02/03/2023,472,0,LEISUR,Leisure Management,0911,Training Expenses,Community & Env Services
Blackpool Council,1009004,Bemrosebooth Paragon Limited T/A Paragon Id,623800,511042,13/03/2023,2520,420,PARADM,Parking Administration,3302,Stationery,Budgets Outside Cash Limits
Blackpool Council,1135115,REDACTED PERSONAL DATA,623811,BP04,02/03/2023,700,0,LM0420,Adults Training,3426,Course Fees,Adult & Families
Blackpool Council,1009925,City & Guilds Of London Institute,623812,806237719,02/03/2023,1527,0,ALEARN,Adult Learning,3711,Subscriptions,Places
Blackpool Council,1054167,Phf Training,623814,53-23,02/03/2023,995,0,FBBBA,Audit & Investigations,3605,Confs & Short Courses,Resources
Blackpool Council,1118699,Enveco Blackpool Waste Services Ltd,623819,30178440,13/03/2023,8477.54,1412.93,PJHA,"Depot, Management & Admin",3308,Servicing,Places
Blackpool Council,1012071,Bethell Construction Limited,623822,18646,02/03/2023,19319.62,3219.94,ENGINE,Engineering,1012,Premises Maint-Priv.Contractor,Community & Env Services
Blackpool Council,1006576,The Helping Hand Company Ltd,623834,CD970031295,02/03/2023,265.2,44.2,MTEAJ,Equipment,5401,Aids To Daily Living,Adult & Families
Blackpool Council,1058510,Lifeline Language Services Ltd,623836,1122070,02/03/2023,268.18,44.7,JA1531,Independent Reviewing Officers,0981,Professional Fees,Children'S Services
Blackpool Council,1108145,Diversified Business Communications Uk Ltd,623846,INV201797844,02/03/2023,3936,656,PRA,Conferences,3315,Marketing,Places
Blackpool Council,1011368,L & R Roadlines Ltd,623847,70850,02/03/2023,582.79,97.13,TRB,Maintenance & Works,4501,Private Contractors,Community & Env Services
Blackpool Council,1106826,Pams Assessment Ltd,623851,3181,02/03/2023,2700,450,JA0505,Children'S Training,3426,Course Fees,Children'S Services
Blackpool Council,1114180,Uk Healthcare Chairs,623859,20051,02/03/2023,270,45,SPORTY,Sports & Physical Activity,3012,Other Equipment,Community & Env Services
Blackpool Council,1094424,The Networking People,623868,SI112603,02/03/2023,5235.24,872.54,FGAA,Ict Corporate Services,3521,Landline - Line Rental,Resources
Blackpool Council,1094424,The Networking People,623869,SI112606,02/03/2023,711.6,118.6,FGAA,Ict Corporate Services,3532,Comp-Running & License Costs,Resources
Blackpool Council,1107224,Smith Craven Chartered Accountants,623884,40725,02/03/2023,1068,178,PVA,Other External Funding,3313,General Expenses,Places
Blackpool Council,1012116,Commercial Kitchen Services Ltd,623899,96250,08/03/2023,2192.4,365.4,APCBCA,Langdale Inc Whitegate Cil,3012,Other Equipment,Adult & Families
Blackpool Council,1006944,Siemens Financial Services Ltd,623901,244/23/0088666,02/03/2023,1310.4,218.4,APFBAB,Vitaline,3711,Subscriptions,Adult & Families
Blackpool Council,1009900,Harpercollins Publishers,623904,106879686,02/03/2023,383.76,0,PRC,Visitor Services,3304,Books And Periodicals,Places
Blackpool Council,1123071,Whistlejacket London Limited,623918,INV-0973,02/03/2023,4626.35,771.06,HJA,Growth,3315,Marketing,Places
Blackpool Council,1018041,Tom Lucas Partnership Limited,623919,L220029,02/03/2023,4500,750,CGICAD,Enterprise Zone,6501,Contract Payments,Capital - Commnctn & Regen
Blackpool Council,1132978,Cornerstone Design And Marketing Limited,623971,12073,02/03/2023,300,50,LEISUR,Leisure Management,3801,Other Expenses,Community & Env Services
Blackpool Council,1132978,Cornerstone Design And Marketing Limited,623972,12111,02/03/2023,856.39,142.73,LEISUR,Leisure Management,3801,Other Expenses,Community & Env Services
Blackpool Council,1130442,Skyguard Ltd T/A Peoplesafe,623974,CI16084,02/03/2023,1620,270,MTEBK,Other Services,3010,Safety Equipment,Adult & Families
Blackpool Council,1094355,Les Mills Fitness Uk Ltd,623975,LMUK-SIV-151994,02/03/2023,510,85,LEISUR,Leisure Management,3801,Other Expenses,Community & Env Services
Blackpool Council,1057663,Wilde Recruitment Ltd,623976,42706,02/03/2023,598.42,99.74,CTAHHA,Tramway Emergency Works,6501,Contract Payments,Capital - Commnctn & Regen
Blackpool Council,1132964,The Good Cause Project,623979,INV-0063,02/03/2023,1200,0,AHHBA,Blackpool Museum,3801,Other Expenses,Places
Blackpool Council,1106826,Pams Assessment Ltd,623980,3182,02/03/2023,540,90,JA0505,Children'S Training,3426,Course Fees,Children'S Services
Blackpool Council,1008947,Iccm,623988,15756,02/03/2023,829.6,54.6,CEMCRE,Cems Crems Etc,3605,Confs & Short Courses,Governance & Partnerships
Blackpool Council,1091773,Highfield Awarding Body For Comp. Ltd,623989,0008212876,03/03/2023,930,155,FK0071,Corporate Training,3426,Course Fees,Chief Executive
Blackpool Council,1126830,Taranto Systems Ltd,623992,INV0000001706,02/03/2023,400.92,66.82,PARADM,Parking Administration,3801,Other Expenses,Budgets Outside Cash Limits
Blackpool Council,1093105,Specialised Orthotic Services Ltd,623995,0000750504,29/03/2023,1692.95,282.16,MTEAJ,Equipment,5401,Aids To Daily Living,Adult & Families
Blackpool Council,1039653,Patrol,623996,2829,02/03/2023,1334.1,0,PARADM,Parking Administration,3801,Other Expenses,Budgets Outside Cash Limits
Blackpool Council,1047167,Sub Surface North West Limited,624014,NW8880,02/03/2023,4225.5,704.25,CGICAD,Enterprise Zone,6501,Contract Payments,Capital - Commnctn & Regen
Blackpool Council,1025240,Key Engineering Supplies Ltd,624015,57958,02/03/2023,747.84,0,ZM0018,Highways & Engineering,9773,Orders Received Not Invoiced,Blackpool Services
Blackpool Council,1025240,Key Engineering Supplies Ltd,624015,57958,02/03/2023,897.41,149.57,ZM0018,Highways & Engineering,9511A,Stocks Efin,Blackpool Services
Blackpool Council,1138250,Lumeneye Ltd T/A Solareye,624026,464,14/03/2023,3535.56,589.26,PRKDEV,Parks Development,1061,Locks And Security,Community & Env Services
Blackpool Council,1089812,Rider Levett Bucknall Uk Limited,624031,RLB-PJI-009044,02/03/2023,1260,210,FH1000,Business Loan Overheads,3413,Consultants,Budgets Outside Cash Limits
Blackpool Council,1058510,Lifeline Language Services Ltd,624038,1122038,02/03/2023,284.4,47.4,JEA,Senior Management,3419,Interpreters Fees,Children'S Services
Blackpool Council,1058510,Lifeline Language Services Ltd,624041,1122088,02/03/2023,312,52,JEA,Senior Management,5507,Personal,Children'S Services
Blackpool Council,1058510,Lifeline Language Services Ltd,624042,1122100,02/03/2023,388.51,64.75,JEA,Senior Management,3419,Interpreters Fees,Children'S Services
Blackpool Council,1120630,Dar Consulting,624052,SI-269,02/03/2023,720,120,TRB,Maintenance & Works,4501,Private Contractors,Community & Env Services
Blackpool Council,1074944,Credo Reference Limited,624054,INV439261,02/03/2023,3123.99,0,LBF,Library Management,3711,Subscriptions,Places
Blackpool Council,1058510,Lifeline Language Services Ltd,624056,1122069,02/03/2023,268.88,44.81,JA1531,Independent Reviewing Officers,0981,Professional Fees,Children'S Services
Blackpool Council,1096659,Dalgleish Therapies,624064,020000733/1,02/03/2023,400,0,FK0071,Corporate Training,3426,Course Fees,Chief Executive
Blackpool Council,1096659,Dalgleish Therapies,624065,020000733/2,02/03/2023,400,0,FK0071,Corporate Training,3426,Course Fees,Chief Executive
Blackpool Council,1096659,Dalgleish Therapies,624066,020000733/3,02/03/2023,400,0,FK0071,Corporate Training,3426,Course Fees,Chief Executive
Blackpool Council,1096659,Dalgleish Therapies,624068,020000733/5,02/03/2023,400,0,FK0071,Corporate Training,3426,Course Fees,Chief Executive
Blackpool Council,1049304,Insight Direct (Uk) Ltd,624076,2100512409,02/03/2023,35107.2,5851.2,CS0739,Ict Refresh,6525,I.T. Hardware Purchase,Capital - Resources
Blackpool Council,1135072,REDACTED PERSONAL DATA,624082,640,02/03/2023,1500,0,PJHA,"Depot, Management & Admin",3308,Servicing,Places
Blackpool Council,1128867,Carbon Trust Advisory Limited,624139,470014203,01/03/2023,17205,2867.5,FB0004,Energy & Sustainability,1202,Electricity,Resources
Blackpool Council,1130442,Skyguard Ltd T/A Peoplesafe,624140,CI16081,23/03/2023,2268,378,MTEBK,Other Services,3010,Safety Equipment,Adult & Families
Blackpool Council,1012071,Bethell Construction Limited,624145,18642,02/03/2023,981.47,163.58,ENGINE,Engineering,1012,Premises Maint-Priv.Contractor,Community & Env Services
Blackpool Council,1029293,Youth Sport Trust,624158,0000033680,02/03/2023,357.6,59.6,PESPRT,Pe And Sport Team,0I91,Other,Community & Env Services
Blackpool Council,1012071,Bethell Construction Limited,624160,18644,02/03/2023,1913.16,318.86,ENGINE,Engineering,1012,Premises Maint-Priv.Contractor,Community & Env Services
Blackpool Council,1012071,Bethell Construction Limited,624161,18641,02/03/2023,2412.73,402.12,ENGINE,Engineering,1012,Premises Maint-Priv.Contractor,Community & Env Services
Blackpool Council,1012071,Bethell Construction Limited,624162,18643,02/03/2023,3604.74,600.79,ENGINE,Engineering,1012,Premises Maint-Priv.Contractor,Community & Env Services
Blackpool Council,1012071,Bethell Construction Limited,624164,18645,02/03/2023,2430.58,405.1,ENGINE,Engineering,1012,Premises Maint-Priv.Contractor,Community & Env Services
Blackpool Council,1013705,Stadia Sports/ Broxap Limited,624166,0000302085,02/03/2023,4881,0,ZM0018,Highways & Engineering,9773,Orders Received Not Invoiced,Blackpool Services
Blackpool Council,1013705,Stadia Sports/ Broxap Limited,624166,0000302085,02/03/2023,5857.2,976.2,ZM0018,Highways & Engineering,9511A,Stocks Efin,Blackpool Services
Blackpool Council,1026811,Stannah Lift Services Ltd,624167,1085516604,02/03/2023,2533.68,422.28,MVBBJ,Equipment,5401,Aids To Daily Living,Adult & Families
Blackpool Council,1026811,Stannah Lift Services Ltd,624168,1085516650,02/03/2023,15460,0,CXAAA,Local Authority Dwellings,6501,Contract Payments,Capital - Chief Executive
Blackpool Council,1137806,Atelier Rehab Ltd,624169,1883,02/03/2023,8940,1490,MTEAJ,Equipment,5401,Aids To Daily Living,Adult & Families
Blackpool Council,1091465,Dm Orthotics Limited,624173,22930,24/03/2023,584.1,0,MTEAJ,Equipment,5401,Aids To Daily Living,Adult & Families
Blackpool Council,1091465,Dm Orthotics Limited,624175,22959,02/03/2023,584.1,0,MTEAJ,Equipment,5401,Aids To Daily Living,Adult & Families
Blackpool Council,1102239,Osprey Healthcare Limited,624176,29985,02/03/2023,348,58,MTEAJ,Equipment,5401,Aids To Daily Living,Adult & Families
Blackpool Council,1137276,Advanced Handling Ltd,624177,406422,02/03/2023,1050,175,FMAK,Acquisitions 9/10,3801,Other Expenses,Places
Blackpool Council,1086788,Idox Software Ltd,624245,118637,02/03/2023,19594.44,3265.74,PLBAAA,Development Control,3401,General Services,Places
Blackpool Council,1086788,Idox Software Ltd,624246,118638,02/03/2023,7156.1,1192.68,PLBAAA,Development Control,3401,General Services,Places
Blackpool Council,1133667,Trac Psychological Ltd,624247,Y2Q4,14/03/2023,2500,0,PU2069,Changing Futures,4501,Private Contractors,Public Health
Blackpool Council,1086788,Idox Software Ltd,624248,118644,02/03/2023,7912.85,1318.81,PLBAAA,Development Control,3401,General Services,Places
Blackpool Council,1061733,Northpoint Publishing Ltd (Fac060),624250,INV-0874,02/03/2023,2376,396,CGICAD,Enterprise Zone,6527,Marketing,Capital - Commnctn & Regen
Blackpool Council,1096607,Cutlers Property Consultancy (Services),624253,0070529,02/03/2023,3185,0,AEE,Estates,0781,Contracted,Resources
Blackpool Council,1036448,REDACTED PERSONAL DATA,624254,ARINV/00547239,02/03/2023,720,120,AEV,Vacant & Under Used,1064,Delegated Maintenance,Resources
Blackpool Council,1062176,Gmbg Ltd T/A Civils & Lintels,624261,FNW/363941,02/03/2023,1072.8,178.8,ENGINE,Engineering,3041,Other Materials,Community & Env Services
Blackpool Council,1137862,Hawk Dance Theatre,624276,479,02/03/2023,700,0,LBF,Library Management,3456,Payment To Artists,Places
Blackpool Council,1086788,Idox Software Ltd,624283,118636,02/03/2023,23554.79,3925.8,PYLA,Licencing,3531,Computer-H'Ware Purchase,Community & Env Services
Blackpool Council,1008525,Kingswood Office Supplies Limited,624292,453256,20/03/2023,769.44,128.24,AER,Dual Use Properties,3302,Stationery,Resources
Blackpool Council,1007023,Access Uk Ltd - Selima,624293,1578589,02/03/2023,45232.52,7538.75,CGRESO,Resources Schemes,6526,I.T. Software Purchase,Capital - Resources
Blackpool Council,1094424,The Networking People,624297,SI112642,02/03/2023,3896.4,649.4,CGRESO,Resources Schemes,6507,Materials,Capital - Resources
Blackpool Council,1094424,The Networking People,624298,SI112643,02/03/2023,1009.4,168.23,CGRESO,Resources Schemes,6507,Materials,Capital - Resources
Blackpool Council,1053453,Brenntag Uk Ltd,624299,32SI 3355396,02/03/2023,716.85,119.47,LEISUR,Leisure Management,3060,Chemicals,Community & Env Services
Blackpool Council,1138333,Megaflatables Limited,624307,MEGA234506,02/03/2023,2130,355,PJLA,Maintenance,3041,Other Materials,Places
Blackpool Council,1135200,Karon Brown,624308,BBC.PH 001,09/03/2023,2800,0,PUBH02,Sexual Health Services-Contrac,4501,Private Contractors,Public Health
Blackpool Council,1074968,P N Grundy Ltd,624312,826,02/03/2023,300,0,FK0071,Corporate Training,3426,Course Fees,Chief Executive
Blackpool Council,1114036,Odlings Ltd T/A The Columbaria Co,624314,INV0088536,02/03/2023,706.8,117.8,CEMCRE,Cems Crems Etc,3454,Remove And Refix Memorials,Governance & Partnerships
Blackpool Council,1135305,REDACTED PERSONAL DATA,624317,002,02/03/2023,2000,0,AHHBA,Blackpool Museum,3801,Other Expenses,Places
Blackpool Council,1134972,REDACTED PERSONAL DATA,624318,002,02/03/2023,2000,0,AHHBA,Blackpool Museum,3801,Other Expenses,Places
Blackpool Council,1009300,Fylde Coast Women'S Aid,624319,36/22-23,14/03/2023,30000,0,PU2069,Changing Futures,4501,Private Contractors,Public Health
Blackpool Council,1073709,Delphi Medical Limited,624320,SINV63/00000125,10/03/2023,30000,0,PU2095,Rough Sleepers & At Risk,4501,Private Contractors,Public Health
Blackpool Council,1073709,Delphi Medical Limited,624321,SINV63/00000123,10/03/2023,19500,0,PU2063,Adder Project,4501,Private Contractors,Public Health
Blackpool Council,1073709,Delphi Medical Limited,624322,SINV63/00000124,10/03/2023,19000,0,PU2069,Changing Futures,4501,Private Contractors,Public Health
Blackpool Council,1017244,M Bissell Display Limited,624324,10347,13/03/2023,2040,340,SCHEME,Highways Schemes,3041,Other Materials,Community & Env Services
Blackpool Council,1094424,The Networking People,624325,SI112633,02/03/2023,4686.67,781.11,FGAA,Ict Corporate Services,3531,Computer-H'Ware Purchase,Resources
Blackpool Council,1094424,The Networking People,624330,SI112631,02/03/2023,55041.23,9173.54,FGAA,Ict Corporate Services,3532,Comp-Running & License Costs,Resources
Blackpool Council,1094424,The Networking People,624338,SI112632,02/03/2023,826.27,137.71,FGAA,Ict Corporate Services,3532,Comp-Running & License Costs,Resources
Blackpool Council,1090587,M E S Marine Ltd,624341,1491,02/03/2023,362.66,60.45,BEACHP,Beach Patrol,2001,Purchases,Places
Blackpool Council,1118715,Alison Black Ltd T/A Sportmax,624344,124246,10/03/2023,1704.36,284.06,LEISUR,Leisure Management,3815,Saleable Goods,Community & Env Services
Blackpool Council,1118699,Enveco Blackpool Waste Services Ltd,624353,30165436,08/03/2023,3363.36,560.56,PYLA,Licencing,3424,Registration & Inspection,Community & Env Services
Blackpool Council,1044756,Nec Software Solutions Ltd,624366,91470345,02/03/2023,770.72,128.45,FBBEA,"Income, Recovery & Debtors",3532,Comp-Running & License Costs,Resources
Blackpool Council,1044756,Nec Software Solutions Ltd,624366,91470345,02/03/2023,770.74,128.46,FCACA,Benefits - Admin,3532,Comp-Running & License Costs,Resources
Blackpool Council,1044756,Nec Software Solutions Ltd,624367,91470344,02/03/2023,770.74,128.46,FBBEA,"Income, Recovery & Debtors",3532,Comp-Running & License Costs,Resources
Blackpool Council,1044756,Nec Software Solutions Ltd,624367,91470344,02/03/2023,770.72,128.45,FCACA,Benefits - Admin,3532,Comp-Running & License Costs,Resources
Blackpool Council,1044756,Nec Software Solutions Ltd,624368,91470343,02/03/2023,294.31,49.06,FCACA,Benefits - Admin,3532,Comp-Running & License Costs,Resources
Blackpool Council,1044756,Nec Software Solutions Ltd,624369,91470342,02/03/2023,1632.97,272.16,EM1032,Client Finances,3532,Comp-Running & License Costs,Resources
Blackpool Council,1044756,Nec Software Solutions Ltd,624369,91470342,02/03/2023,1020.6,170.1,FBBBA,Audit & Investigations,3532,Comp-Running & License Costs,Resources
Blackpool Council,1044756,Nec Software Solutions Ltd,624369,91470342,02/03/2023,7552.46,1258.74,FBBEA,"Income, Recovery & Debtors",3532,Comp-Running & License Costs,Resources
Blackpool Council,1044756,Nec Software Solutions Ltd,624369,91470342,02/03/2023,816.48,136.08,FC0411,Advice Services,3532,Comp-Running & License Costs,Resources
Blackpool Council,1044756,Nec Software Solutions Ltd,624369,91470342,02/03/2023,1020.6,170.1,FC1801,Social Fund - Admin,3532,Comp-Running & License Costs,Resources
Blackpool Council,1044756,Nec Software Solutions Ltd,624369,91470342,02/03/2023,19391.51,3231.93,FCACA,Benefits - Admin,3532,Comp-Running & License Costs,Resources
Blackpool Council,1044756,Nec Software Solutions Ltd,624369,91470342,02/03/2023,5715.39,952.56,FCADA,Customer Services,3532,Comp-Running & License Costs,Resources
Blackpool Council,1018184,Blackpool Skip Hire Ltd,624372,12952,02/03/2023,655.78,109.3,CEMCRE,Cems Crems Etc,3801,Other Expenses,Governance & Partnerships
Blackpool Council,1049304,Insight Direct (Uk) Ltd,624373,2100519346,02/03/2023,6750.46,1125.08,FGAA,Ict Corporate Services,3532,Comp-Running & License Costs,Resources
Blackpool Council,1018184,Blackpool Skip Hire Ltd,624374,046643,01/03/2023,752.6,125.44,CEMCRE,Cems Crems Etc,3801,Other Expenses,Governance & Partnerships
Blackpool Council,1117002,Redraw Travel Ltd T/A Blackpool Minibuses,624409,INV-31628M,02/03/2023,6080,0,TRCHIL,Integrated Transport Children,2201,Contract Hire,Community & Env Services
Blackpool Council,1117002,Redraw Travel Ltd T/A Blackpool Minibuses,624411,INV-31695M,02/03/2023,6080,0,TRCHIL,Integrated Transport Children,2201,Contract Hire,Community & Env Services
Blackpool Council,1117002,Redraw Travel Ltd T/A Blackpool Minibuses,624412,INV-31904M,02/03/2023,6080,0,TRCHIL,Integrated Transport Children,2201,Contract Hire,Community & Env Services
Blackpool Council,1117002,Redraw Travel Ltd T/A Blackpool Minibuses,624413,INV-32082M,02/03/2023,6080,0,TRCHIL,Integrated Transport Children,2201,Contract Hire,Community & Env Services
Blackpool Council,1117002,Redraw Travel Ltd T/A Blackpool Minibuses,624414,INV-32096MM,02/03/2023,6080,0,TRCHIL,Integrated Transport Children,2201,Contract Hire,Community & Env Services
Blackpool Council,1117002,Redraw Travel Ltd T/A Blackpool Minibuses,624416,INV-32315M,02/03/2023,6080,0,TRCHIL,Integrated Transport Children,2201,Contract Hire,Community & Env Services
Blackpool Council,1117002,Redraw Travel Ltd T/A Blackpool Minibuses,624417,INV-32448M,02/03/2023,6080,0,TRCHIL,Integrated Transport Children,2201,Contract Hire,Community & Env Services
Blackpool Council,1117002,Redraw Travel Ltd T/A Blackpool Minibuses,624418,INV-32639M,02/03/2023,6080,0,TRCHIL,Integrated Transport Children,2201,Contract Hire,Community & Env Services
Blackpool Council,1117002,Redraw Travel Ltd T/A Blackpool Minibuses,624420,INV-32922M,02/03/2023,6080,0,TRCHIL,Integrated Transport Children,2201,Contract Hire,Community & Env Services
Blackpool Council,1117002,Redraw Travel Ltd T/A Blackpool Minibuses,624421,INV-33441M,02/03/2023,6080,0,TRCHIL,Integrated Transport Children,4810,Transport Costs,Community & Env Services
Blackpool Council,1102823,Wilde Consultants Limited,624427,24529,07/03/2023,5378.18,896.36,CTACBC,Ltp Scheme 22/23,6501,Contract Payments,Capital - Commnctn & Regen
Blackpool Council,1026811,Stannah Lift Services Ltd,624430,1085518267,02/03/2023,300,50,MVBBJ,Equipment,5401,Aids To Daily Living,Adult & Families
Blackpool Council,1011675,Bambers Remedial Contractors Limited,624434,18269,24/03/2023,16480.03,0,CX4002,Disabled Facilities Grants,6501,Contract Payments,Capital - Adult Social Care
Blackpool Council,1006940,Smiths Equipment Hire Ltd - Smiths Training,624484,07-1135685,02/03/2023,1123.82,187.3,PJHA,"Depot, Management & Admin",3308,Servicing,Places
Blackpool Council,1120588,G2 Recruitment Solutions,624492,116587,02/03/2023,1554,259,HOPB,Housing Options,0791,Temp/Relief (Bureau Staff),Chief Executive
Blackpool Council,1053592,Tfs Training Consultants Ltd,624498,840,02/03/2023,660,110,FK0071,Corporate Training,3426,Course Fees,Chief Executive
Blackpool Council,1098899,Browne Jacobson Llp,624505,IN-000141167,02/03/2023,20853.6,3475.6,FL1259,Pfi Management Costs,4501,Private Contractors,Community & Env Services
Blackpool Council,1116473,Smart Distribution Solutions,624514,57132,02/03/2023,7104,1184,PBF,Communications,0917,Other Exps,Places
Blackpool Council,1035896,Lisson Grove Benefits Program Ltd,624515,62544,02/03/2023,660,110,FC0411,Advice Services,3711,Subscriptions,Resources
Blackpool Council,1071928,Civica Uk Limited,624516,C/RB264797,02/03/2023,3465,577.5,FBBEA,"Income, Recovery & Debtors",3532,Comp-Running & License Costs,Resources
Blackpool Council,1071928,Civica Uk Limited,624516,C/RB264797,02/03/2023,1815,302.5,FCACA,Benefits - Admin,3532,Comp-Running & License Costs,Resources
Blackpool Council,1115071,Tec Quality Ltd,624519,812,02/03/2023,2448,408,APFBAB,Vitaline,4501,Private Contractors,Adult & Families
Blackpool Council,1008775,J P Lennard Ltd,624539,170688,02/03/2023,268.74,44.79,LEISUR,Leisure Management,3007,Recreational Equipment,Community & Env Services
Blackpool Council,1088639,Browns Ctp Limited,624540,77353,02/03/2023,9941,0,PRG,Tourism General,3301,Printing,Places
Blackpool Council,1071925,Groundwork Cheshire Lancs And Merseyside,624542,0000004132,02/03/2023,13500,0,EK0197,Multiply,0917,Other Exps,Places
Blackpool Council,1013326,Dsg Retail Ltd,624543,18199658,02/03/2023,440.83,0,ZM0018,Highways & Engineering,9773,Orders Received Not Invoiced,Blackpool Services
Blackpool Council,1013326,Dsg Retail Ltd,624543,18199658,02/03/2023,529,88.17,ZM0018,Highways & Engineering,9511A,Stocks Efin,Blackpool Services
Blackpool Council,1025240,Key Engineering Supplies Ltd,624549,58146,02/03/2023,747.84,0,ZM0018,Highways & Engineering,9773,Orders Received Not Invoiced,Blackpool Services
Blackpool Council,1025240,Key Engineering Supplies Ltd,624549,58146,02/03/2023,897.41,149.57,ZM0018,Highways & Engineering,9511A,Stocks Efin,Blackpool Services
Blackpool Council,1102823,Wilde Consultants Limited,624553,24551,16/03/2023,4195.8,699.3,TRA,Traffic Management,4501,Private Contractors,Community & Env Services
Blackpool Council,1102823,Wilde Consultants Limited,624554,24552,16/03/2023,4362.3,727.05,TRA,Traffic Management,4501,Private Contractors,Community & Env Services
Blackpool Council,1057663,Wilde Recruitment Ltd,624560,42756,02/03/2023,552.38,92.06,CTAHHA,Tramway Emergency Works,6501,Contract Payments,Capital - Commnctn & Regen
Blackpool Council,1071925,Groundwork Cheshire Lancs And Merseyside,624565,0000004162,02/03/2023,4942,0,EP8011,Covid Winter Grant,3401,General Services,Children'S Services
Blackpool Council,1135571,Vupoint (Europe) Company Limited,624568,3941,02/03/2023,1900.8,316.8,COMSAF,Community Safety,3313,General Expenses,Community & Env Services
Blackpool Council,1050319,Perspex Distribution Ltd,624575,960480959,02/03/2023,675.3,112.55,PJNA,New Features / Schemes - C & E,3041,Other Materials,Places
Blackpool Council,1044756,Nec Software Solutions Ltd,624577,91470743,02/03/2023,346.81,57.8,EM1032,Client Finances,3532,Comp-Running & License Costs,Resources
Blackpool Council,1044756,Nec Software Solutions Ltd,624577,91470743,02/03/2023,500.99,83.5,FBBEA,"Income, Recovery & Debtors",3532,Comp-Running & License Costs,Resources
Blackpool Council,1044756,Nec Software Solutions Ltd,624577,91470743,02/03/2023,847.8,141.3,FCACA,Benefits - Admin,3532,Comp-Running & License Costs,Resources
Blackpool Council,1088636,Tarmac Building Products Ltd,624579,9500044204,02/03/2023,1420,0,ZM0018,Highways & Engineering,9773,Orders Received Not Invoiced,Blackpool Services
Blackpool Council,1088636,Tarmac Building Products Ltd,624579,9500044204,02/03/2023,1704,284,ZM0018,Highways & Engineering,9511A,Stocks Efin,Blackpool Services
Blackpool Council,1060135,Happy Creative Ltd,624580,H5785,02/03/2023,570,95,PTA,Economic Development,3315,Marketing,Places
Blackpool Council,1060135,Happy Creative Ltd,624581,H5787,02/03/2023,643.2,107.2,PTA,Economic Development,3315,Marketing,Places
Blackpool Council,1060135,Happy Creative Ltd,624582,H5789,02/03/2023,630,105,PTA,Economic Development,3315,Marketing,Places
Blackpool Council,1115311,Darrren Clare Ltd T/A Portfolio,624585,P9051,02/03/2023,9423.6,1570.6,PBF,Communications,0917,Other Exps,Places
Blackpool Council,1135714,Oh Sourcing Ltd,624586,INV-5295OH,02/03/2023,423,70.5,FK0013,Corporate Health,0791,Temp/Relief (Bureau Staff),Chief Executive
Blackpool Council,1006636,Tts Group Ltd,624588,DE7064215,02/03/2023,455.98,76,LBF,Library Management,3020,Furniture - Purchase,Places
Blackpool Council,1025837,R Draper Ltd,624590,62925,02/03/2023,390,0,ZM0018,Highways & Engineering,9773,Orders Received Not Invoiced,Blackpool Services
Blackpool Council,1025837,R Draper Ltd,624590,62925,02/03/2023,468,78,ZM0018,Highways & Engineering,9511A,Stocks Efin,Blackpool Services
Blackpool Council,1121728,Arrow County Supplies,624591,4989251,02/03/2023,364.4,0,ZM0018,Highways & Engineering,9773,Orders Received Not Invoiced,Blackpool Services
Blackpool Council,1121728,Arrow County Supplies,624591,4989251,02/03/2023,437.28,72.88,ZM0018,Highways & Engineering,9511A,Stocks Efin,Blackpool Services
Blackpool Council,1121728,Arrow County Supplies,624592,4989252,02/03/2023,1371.6,0,ZM0018,Highways & Engineering,9773,Orders Received Not Invoiced,Blackpool Services
Blackpool Council,1121728,Arrow County Supplies,624592,4989252,02/03/2023,1645.92,274.32,ZM0018,Highways & Engineering,9511A,Stocks Efin,Blackpool Services
Blackpool Council,1079017,Building Software Ltd  (Measure 2 Improve),624595,6569,02/03/2023,17460,2910,CTACBA,Ltp Scheme 21/22,6501,Contract Payments,Capital - Commnctn & Regen
Blackpool Council,1117002,Redraw Travel Ltd T/A Blackpool Minibuses,624596,INV-32832M,02/03/2023,6080,0,TRCHIL,Integrated Transport Children,2201,Contract Hire,Community & Env Services
Blackpool Council,1040208,Water Cost Savers Ltd,624635,1155,02/03/2023,714,119,FB0004,Energy & Sustainability,1401,Water Charges-Metered,Resources
Blackpool Council,1094424,The Networking People,624636,SI112656,02/03/2023,2865.97,477.66,FGAA,Ict Corporate Services,3531,Computer-H'Ware Purchase,Resources
Blackpool Council,1100468,Post Office Ltd,624638,1000/90063056,02/03/2023,488,0,FC1801,Social Fund - Admin,5209,Crisis/Emergency Support,Resources
Blackpool Council,1081133,Lavat Consulting Limited T/A Pstax,624641,INV-110509,02/03/2023,2814,469,FBBCA,Accountancy,3711,Subscriptions,Resources
Blackpool Council,1025240,Key Engineering Supplies Ltd,624646,58189,02/03/2023,1062.14,177.02,AER,Dual Use Properties,3012,Other Equipment,Resources
Blackpool Council,1071928,Civica Uk Limited,624647,C/PY264773,02/03/2023,5284.8,880.8,FH0001,Treasury Management,3532,Comp-Running & License Costs,Budgets Outside Cash Limits
Blackpool Council,1045726,Thomas Telford Limited,624649,00100779,02/03/2023,2877.2,479.53,CPAABK,Sand Dunes Env Wrk Ph105,6506,Consultants Fees,Capital - Comm & Environ
Blackpool Council,1058510,Lifeline Language Services Ltd,624656,1122126,02/03/2023,258,43,JEA,Senior Management,5507,Personal,Children'S Services
Blackpool Council,1135200,Karon Brown,624662,BBC.PH 003,09/03/2023,3600,0,PUBH02,Sexual Health Services-Contrac,4501,Private Contractors,Public Health
Blackpool Council,1135200,Karon Brown,624663,BBC.PH 002,09/03/2023,2800,0,PUBH02,Sexual Health Services-Contrac,4501,Private Contractors,Public Health
Blackpool Council,1006099,Blackpool Teaching Hospitals Nhs Ft,624667,1110064050,02/03/2023,5729.62,0,BSTPRJ,Better Start Projects,3401,General Services,Better Start Projects
Blackpool Council,1118699,Enveco Blackpool Waste Services Ltd,624668,30178441,13/03/2023,17014.3,2835.72,INTRAD,Integrated Transport Admin,2002,Repairs And Maintenance,Community & Env Services
Blackpool Council,1118699,Enveco Blackpool Waste Services Ltd,624668,30178441,13/03/2023,11690.62,1948.44,INTRAD,Integrated Transport Admin,2004,Running Costs-Diesel,Community & Env Services
Blackpool Council,1118699,Enveco Blackpool Waste Services Ltd,624669,30178448,13/03/2023,7735.72,1289.29,TRRIDE,Intergrated Transp Rideability,2002,Repairs And Maintenance,Community & Env Services
Blackpool Council,1118699,Enveco Blackpool Waste Services Ltd,624669,30178448,13/03/2023,2153.09,358.85,TRRIDE,Intergrated Transp Rideability,2004,Running Costs-Diesel,Community & Env Services
Blackpool Council,1114704,Morson Human Resources Ltd,624678,HS482432,01/03/2023,2310,385,CTAHHI,Tramway Extention,6506,Consultants Fees,Capital - Commnctn & Regen
Blackpool Council,1105341,Greater Manchester Combined Authority,624746,616932,01/03/2023,15600,2600,FB0001,Business Services Team,3711,Subscriptions,Resources
Blackpool Council,1006292,Vodafone Corporate Ltd,624749,103378154,02/03/2023,450,75,PU1015,Practical Support Funding,3523,Mobile Phones - Line Rental,Public Health
Blackpool Council,1058510,Lifeline Language Services Ltd,624760,1122102,02/03/2023,742.27,123.71,JEA,Senior Management,5507,Personal,Children'S Services
Blackpool Council,1064958,Keystone Design Associates Ltd,624762,10388,02/03/2023,540,90,ZM0003,Planning,9624,Rechargeable Works Account,Place Directorate
Blackpool Council,1011896,Capita Business Services Ltd,624771,6004137505,01/03/2023,1933.2,322.2,FCACA,Benefits - Admin,3532,Comp-Running & License Costs,Resources
Blackpool Council,1069573,A Rostron T/A Blackpool Bed Centre,624773,22022023,06/03/2023,530.01,88.33,JEA,Senior Management,5507,Personal,Children'S Services
Blackpool Council,1012990,Gladstone Mrm Limited,624774,04021789,02/03/2023,4920,820,LEISUR,Leisure Management,3801,Other Expenses,Community & Env Services
Blackpool Council,1095165,Tower Learning Centre Ltd,624777,890-115,02/03/2023,4333,0,VIRTUL,Virtual Hub,5555,Educational Support,Children'S Services
Blackpool Council,1110952,Fylde Coast Academy Trust,624778,0000000278,02/03/2023,2500,0,EP8004,Children'S Centre Slas,1301,Rent & Hire Of Premises,Children'S Services
Blackpool Council,1005071,Blackpool Transport Services Limited,624786,I0004601,02/03/2023,1890,0,FRAEA,Public Transport Contracts,2201,Contract Hire,Community & Env Services
Blackpool Council,1098651,Direct Parts Supply Ltd T/A Gym-Fit,624791,48803,02/03/2023,354,59,LEISUR,Leisure Management,2002,Repairs And Maintenance,Community & Env Services
Blackpool Council,1102823,Wilde Consultants Limited,624794,24563,02/03/2023,3949.44,658.24,TRA,Traffic Management,4501,Private Contractors,Community & Env Services
Blackpool Council,1037408,Borough Of Pendle,624796,5124205,02/03/2023,10000,0,LH2092,Lad 2 Funding,4501,Private Contractors,Public Health
Blackpool Council,1053453,Brenntag Uk Ltd,624799,32SI 3355665,06/03/2023,641.55,106.92,LEISUR,Leisure Management,3060,Chemicals,Community & Env Services
Blackpool Council,1102823,Wilde Consultants Limited,624802,24562,16/03/2023,4134.42,689.07,TRA,Traffic Management,4501,Private Contractors,Community & Env Services
Blackpool Council,1116610,Smart Video & Sensing Limited,624804,INV-101558,02/03/2023,4431,738.5,TRA,Traffic Management,4501,Private Contractors,Community & Env Services
Blackpool Council,1083503,Coolspirit Ltd,624805,1033022,02/03/2023,5097.54,849.59,FGAC,Ict Technical Support,3531,Computer-H'Ware Purchase,Resources
Blackpool Council,1121728,Arrow County Supplies,624809,4989677,02/03/2023,1272,0,ZM0018,Highways & Engineering,9773,Orders Received Not Invoiced,Blackpool Services
Blackpool Council,1121728,Arrow County Supplies,624809,4989677,02/03/2023,1526.4,254.4,ZM0018,Highways & Engineering,9511A,Stocks Efin,Blackpool Services
Blackpool Council,1137587,Oliver House & Progress School Aspris,624896,FG17000020,10/03/2023,36580.67,0,CWAN,Children With Additional Needs,4501,Private Contractors,Children'S Services
Blackpool Council,1091773,Highfield Awarding Body For Comp. Ltd,624899,0008213514,02/03/2023,930,155,CATERG,Catering Services,0911,Training Expenses,Community & Env Services
Blackpool Council,1110952,Fylde Coast Academy Trust,624903,0000000279,07/03/2023,11000,0,CWAN,Children With Additional Needs,4403,Special Needs - Children,Children'S Services
Blackpool Council,1102371,A T Graphics Limited,624904,INV14541,02/03/2023,420,70,PRA,Conferences,3315,Marketing,Places
Blackpool Council,1011269,Fylde Council,624905,73293075,01/03/2023,13025.41,2118.9,CPAABK,Sand Dunes Env Wrk Ph105,6506,Consultants Fees,Capital - Comm & Environ
Blackpool Council,1116831,Ocean Boulevard Iii Ltd T/A Boulevard Hotel,624908,2224,02/03/2023,364.7,60.78,PJHA,"Depot, Management & Admin",3324,Accommodation Booking Forms,Places
Blackpool Council,1011121,Fylde Coast Gate Ltd,624910,30092,14/03/2023,2500,416.67,PRKDEV,Parks Development,1012,Premises Maint-Priv.Contractor,Community & Env Services
Blackpool Council,1038450,Kaplan Financial Limited,624913,SLINV23_009332,01/03/2023,328,54.67,EM1002,Education Finance,3605,Confs & Short Courses,Children'S Services
Blackpool Council,1008620,Ppg Architectural Coatings Uk Limited,624918,4483452005,03/03/2023,301.96,0,ZM0018,Highways & Engineering,9773,Orders Received Not Invoiced,Blackpool Services
Blackpool Council,1008620,Ppg Architectural Coatings Uk Limited,624918,4483452005,03/03/2023,362.35,60.39,ZM0018,Highways & Engineering,9511A,Stocks Efin,Blackpool Services
Blackpool Council,1089201,Wedge Group Galvanizing Ltd,624924,MS00195785,02/03/2023,660.25,110.04,PJNA,New Features / Schemes - C & E,3041,Other Materials,Places
Blackpool Council,1119855,Access Independent Ltd (Fac001),624926,17999,02/03/2023,1056,176,FC1404,Blue Badge Reform,3401,General Services,Resources
Blackpool Council,1012839,George Cox & Sons Ltd,624928,12700,02/03/2023,210241.26,35040.21,CGICAG,Town Deal,6514,B.Holes/Site Investgtn/Surveys,Capital - Commnctn & Regen
Blackpool Council,1136670,REDACTED PERSONAL DATA,624929,0323,03/03/2023,781.89,0,AHG,Art Gallery Summary,3456,Payment To Artists,Places
Blackpool Council,1124732,Greentech Ltd,624930,456410,13/03/2023,542.76,90.46,PRKDEV,Parks Development,1021,Growing,Community & Env Services
Blackpool Council,1009751,Bt Business Direct Limited,624932,IN06100824,01/03/2023,712.5,118.74,CCTV,Cctv,3012,Other Equipment,Community & Env Services
Blackpool Council,1058510,Lifeline Language Services Ltd,624941,1122093,02/03/2023,312,52,JEA,Senior Management,5507,Personal,Children'S Services
Blackpool Council,1006944,Siemens Financial Services Ltd,624944,244/23/0103957,02/03/2023,1500,250,FCADA,Customer Services,3801,Other Expenses,Resources
Blackpool Council,1024604,The Dartington Hall Trust,624951,DHT07963,02/03/2023,11127.02,345.02,JA0505,Children'S Training,3711,Subscriptions,Children'S Services
Blackpool Council,1011368,L & R Roadlines Ltd,624952,70878,02/03/2023,520.09,86.68,CTACBA,Ltp Scheme 21/22,6501,Contract Payments,Capital - Commnctn & Regen
Blackpool Council,1136961,REDACTED PERSONAL DATA,624958,3,02/03/2023,315,0,PJW,Management - Places - Illumina,3401,General Services,Places
Blackpool Council,1136961,REDACTED PERSONAL DATA,624961,2,02/03/2023,287,0,PJW,Management - Places - Illumina,3401,General Services,Places
Blackpool Council,1136961,REDACTED PERSONAL DATA,624962,1,02/03/2023,320,0,PJW,Management - Places - Illumina,3401,General Services,Places
Blackpool Council,1086156,Water Saving Techniques Limited,624964,SI-5626,07/03/2023,12000,2000,ENGINE,Engineering,1012,Premises Maint-Priv.Contractor,Community & Env Services
Blackpool Council,1115480,Seating Matters Ltd,624965,54637,24/03/2023,289.2,48.2,MTEAJ,Equipment,5401,Aids To Daily Living,Adult & Families
Blackpool Council,1110996,Philip Holmes T/A Dragon Creative,624969,102871,02/03/2023,2123.68,0,PJHA,"Depot, Management & Admin",3401,General Services,Places
Blackpool Council,1120630,Dar Consulting,624976,SI-270,02/03/2023,720,120,CGICAD,Enterprise Zone,6506,Consultants Fees,Capital - Commnctn & Regen
Blackpool Council,1026811,Stannah Lift Services Ltd,625028,1085519937,02/03/2023,13873.35,0,CX4002,Disabled Facilities Grants,6501,Contract Payments,Capital - Adult Social Care
Blackpool Council,1011995,Technical & Electrical Services Ltd,625031,CAP23707,02/03/2023,291.38,48.56,CXAAA,Local Authority Dwellings,6501,Contract Payments,Capital - Chief Executive
Blackpool Council,1010619,Askews And Holts Library Services Ltd,625037,6836315,02/03/2023,257.35,0,LBB,Central Library,3304,Books And Periodicals,Places
Blackpool Council,1097997,Szpunar & Associates Ltd,625062,26022023,02/03/2023,1200,0,LM0420,Adults Training,3426,Course Fees,Adult & Families
Blackpool Council,1006944,Siemens Financial Services Ltd,625069,244/23/0100912,02/03/2023,2391.38,398.56,APFBAB,Vitaline,4501,Private Contractors,Adult & Families
Blackpool Council,1006944,Siemens Financial Services Ltd,625070,244/23/0096181,02/03/2023,2089.21,348.2,APFBAB,Vitaline,4501,Private Contractors,Adult & Families
Blackpool Council,1094424,The Networking People,625071,SI112661,02/03/2023,5860.61,976.77,FGAA,Ict Corporate Services,3531,Computer-H'Ware Purchase,Resources
Blackpool Council,1086772,Taylor Transformers Ltd,625073,53583,22/03/2023,1854,309,PJLA,Maintenance,3041,Other Materials,Places
Blackpool Council,1042797,Lux Occ Medical Ltd,625074,BBC/438,02/03/2023,3000,0,FK0013,Corporate Health,0992,Medical Fees (Employee),Chief Executive
Blackpool Council,1007228,Origin Amenity Solutions Ltd T/A Rigby Taylor,625077,OASI0050324,09/03/2023,4134,0,ZM0018,Highways & Engineering,9773,Orders Received Not Invoiced,Blackpool Services
Blackpool Council,1007228,Origin Amenity Solutions Ltd T/A Rigby Taylor,625077,OASI0050324,09/03/2023,4960.8,826.8,ZM0018,Highways & Engineering,9511A,Stocks Efin,Blackpool Services
Blackpool Council,1005144,Blackpool Airport Operations Limited,625080,0000024497,02/03/2023,600,100,FK0071,Corporate Training,3426,Course Fees,Chief Executive
Blackpool Council,1008540,Konica Minolta Business (Uk) Ltd,625082,1161819677,01/03/2023,1419.26,236.54,FGBA,Specific (Directorate)-Service,3305,Photocopying Charges,Resources
Blackpool Council,1008540,Konica Minolta Business (Uk) Ltd,625085,1162955585,01/03/2023,1419.26,236.54,FGBA,Specific (Directorate)-Service,3305,Photocopying Charges,Resources
Blackpool Council,1008540,Konica Minolta Business (Uk) Ltd,625089,1164184175,02/03/2023,1419.26,236.54,FGBA,Specific (Directorate)-Service,3305,Photocopying Charges,Resources
Blackpool Council,1008540,Konica Minolta Business (Uk) Ltd,625090,1164185897,02/03/2023,1808.68,301.45,FGBA,Specific (Directorate)-Service,3305,Photocopying Charges,Resources
Blackpool Council,1008540,Konica Minolta Business (Uk) Ltd,625092,1163382702,01/03/2023,33256.87,5542.81,FGBA,Specific (Directorate)-Service,3305,Photocopying Charges,Resources
Blackpool Council,1094424,The Networking People,625093,SI112662,13/03/2023,24413.84,4068.97,CGRESO,Resources Schemes,6507,Materials,Capital - Resources
Blackpool Council,1005144,Blackpool Airport Operations Limited,625094,0000024493,02/03/2023,900,150,CGWBAA,Cbd Phase 2,6518,Miscellaneous - Capital,Capital - Commnctn & Regen
Blackpool Council,1121728,Arrow County Supplies,625095,4990034,03/03/2023,280.8,0,ZM0018,Highways & Engineering,9773,Orders Received Not Invoiced,Blackpool Services
Blackpool Council,1121728,Arrow County Supplies,625095,4990034,03/03/2023,336.96,56.16,ZM0018,Highways & Engineering,9511A,Stocks Efin,Blackpool Services
Blackpool Council,1136283,REDACTED PERSONAL DATA,625127,0002,01/03/2023,1000,0,PJW,Management - Places - Illumina,3819,Events Support,Places
Blackpool Council,1118699,Enveco Blackpool Waste Services Ltd,625129,30179195,02/03/2023,323458.8,53909.8,DOMPFI,Domestic Waste & Waste Pfi,4501,Private Contractors,Community & Env Services
Blackpool Council,1118699,Enveco Blackpool Waste Services Ltd,625130,30179196,02/03/2023,660000,110000,SCLEAN,Street Cleaning,4501,Private Contractors,Community & Env Services
Blackpool Council,1118699,Enveco Blackpool Waste Services Ltd,625131,30177754,01/03/2023,1011.47,168.58,SECURE,Security Services,3313,General Expenses,Community & Env Services
Blackpool Council,1090587,M E S Marine Ltd,625133,1498,02/03/2023,292.66,48.78,BEACHP,Beach Patrol,2001,Purchases,Places
Blackpool Council,1011952,Empowerment,625134,2544,01/03/2023,10950,0,EP8011,Covid Winter Grant,3801,Other Expenses,Children'S Services
Blackpool Council,1011952,Empowerment,625134,2544,01/03/2023,19050,0,EP8011,Covid Winter Grant,4501,Private Contractors,Children'S Services
Blackpool Council,1100367,Curve Learning And Development Ltd,625135,17757,02/03/2023,878.4,146.4,LM0420,Adults Training,3426,Course Fees,Adult & Families
Blackpool Council,1005071,Blackpool Transport Services Limited,625136,I0004608,02/03/2023,3456,0,OTHL,Other Learning,2301,Bus & Tram Fares,Children'S Services
Blackpool Council,1006244,Warrington Borough Council,625137,811706684,02/03/2023,1000,0,PYTA,Trading Standards,3313,General Expenses,Community & Env Services
Blackpool Council,1138361,Pda Technical Ltd,625138,1004,02/03/2023,5062.5,0,PJNA,New Features / Schemes - C & E,3308,Servicing,Places
Blackpool Council,1008540,Konica Minolta Business (Uk) Ltd,625139,1161163596,01/03/2023,318.05,53.01,FGBA,Specific (Directorate)-Service,3305,Photocopying Charges,Resources
Blackpool Council,1008540,Konica Minolta Business (Uk) Ltd,625141,1161924137,01/03/2023,913.39,152.23,FGBA,Specific (Directorate)-Service,3305,Photocopying Charges,Resources
Blackpool Council,1008540,Konica Minolta Business (Uk) Ltd,625142,1162386910,01/03/2023,465.73,77.62,FGBA,Specific (Directorate)-Service,3305,Photocopying Charges,Resources
Blackpool Council,1008540,Konica Minolta Business (Uk) Ltd,625144,1162881604,01/03/2023,889.13,148.19,FGBA,Specific (Directorate)-Service,3305,Photocopying Charges,Resources
Blackpool Council,1008540,Konica Minolta Business (Uk) Ltd,625147,1164225337,02/03/2023,695.74,115.96,FGBA,Specific (Directorate)-Service,3305,Photocopying Charges,Resources
Blackpool Council,1008540,Konica Minolta Business (Uk) Ltd,625148,1164274105,02/03/2023,1350.01,225,FGBA,Specific (Directorate)-Service,3305,Photocopying Charges,Resources
Blackpool Council,1100367,Curve Learning And Development Ltd,625150,17807,02/03/2023,439.2,73.2,LM0420,Adults Training,3426,Course Fees,Adult & Families
Blackpool Council,1100367,Curve Learning And Development Ltd,625150,17807,02/03/2023,878.4,146.4,LM0420,Adults Training,0911,Training Expenses,Adult & Families
Blackpool Council,1122956,Vivid Resourcing,625152,98427,01/03/2023,1620,270,AEE,Estates,0981,Professional Fees,Resources
Blackpool Council,1049868,D Hollowell & Sons,625153,23/21136/JH,07/03/2023,600,0,CEMCRE,Cems Crems Etc,4501,Private Contractors,Governance & Partnerships
Blackpool Council,1049868,D Hollowell & Sons,625154,23/21148/JH,07/03/2023,600,0,CEMCRE,Cems Crems Etc,4501,Private Contractors,Governance & Partnerships
Blackpool Council,1006944,Siemens Financial Services Ltd,625155,244/23/0050684,01/03/2023,2158.82,359.8,APFBAB,Vitaline,4501,Private Contractors,Adult & Families
Blackpool Council,1098651,Direct Parts Supply Ltd T/A Gym-Fit,625160,48903,06/03/2023,429.18,71.53,LEISUR,Leisure Management,2002,Repairs And Maintenance,Community & Env Services
Blackpool Council,1138428,Uk Media Group,625161,006909,02/03/2023,1920,320,PBF,Communications,3806,Advertising-General,Places
Blackpool Council,1055947,Cherish Uk Limited,625163,1019705,01/03/2023,720,0,MTEBF,Home Care,4512,Other Care Block Payments,Adult & Families
Blackpool Council,1011952,Empowerment,625164,2543,01/03/2023,42023.75,0,DOMABU,Domestic Abuse,3801,Other Expenses,Children'S Services
Blackpool Council,1123472,Lancashire Care Ltd T/A Lastminute Nursing,625165,16273,02/03/2023,5031.9,0,MTEBF,Home Care,4512,Other Care Block Payments,Adult & Families
Blackpool Council,1114389,Service Sport (Uk) Ltd,625170,229326,02/03/2023,712.8,118.8,LEISUR,Leisure Management,3801,Other Expenses,Community & Env Services
Blackpool Council,1119855,Access Independent Ltd (Fac001),625171,18005,02/03/2023,1106.4,184.4,FC1404,Blue Badge Reform,3401,General Services,Resources
Blackpool Council,1094424,The Networking People,625172,SI112670,02/03/2023,2535.22,422.54,FGAA,Ict Corporate Services,3532,Comp-Running & License Costs,Resources
Blackpool Council,1009286,Freight Transport Association,625173,300368786,02/03/2023,1500,250,CVMU,Cvmu,3801,Other Expenses,Community & Env Services
Blackpool Council,1118794,Awol Adventure Limited,625175,6228,02/03/2023,2350,391.67,BSTPRJ,Better Start Projects,3401,General Services,Better Start Projects
Blackpool Council,1006435,Keep Britain Tidy,625183,SI003449,03/03/2023,2394,399,DOMPFI,Domestic Waste & Waste Pfi,0981,Professional Fees,Community & Env Services
Blackpool Council,1110996,Philip Holmes T/A Dragon Creative,625184,102878,02/03/2023,2125,0,PJW,Management - Places - Illumina,3401,General Services,Places
Blackpool Council,1009925,City & Guilds Of London Institute,625186,806200077,01/03/2023,315,0,ALEARN,Adult Learning,3711,Subscriptions,Places
Blackpool Council,1063638,Pristine Hygiene,625187,5030,02/03/2023,383.1,63.85,APCBAA,Coopers Way,3408,Services To Clients,Adult & Families
Blackpool Council,1029873,Portakabin Limited,625191,900986266,03/03/2023,70933.2,11822.2,CFCAAA,Cbd Phase 3,6501,Contract Payments,Capital - Commnctn & Regen
Blackpool Council,1010104,Canon (Uk ) Ltd,625192,9318735,06/03/2023,603.67,100.61,FL1235,Trans - Technical Support,3532,Comp-Running & License Costs,Community & Env Services
Blackpool Council,1010138,C Cabs,625193,09811,01/03/2023,440.8,0,TRCHIL,Integrated Transport Children,2201,Contract Hire,Community & Env Services
Blackpool Council,1069980,Aldi Stores Limited,625194,IN19941,01/03/2023,500,0,EP8011,Covid Winter Grant,4501,Private Contractors,Children'S Services
Blackpool Council,1117551,Sj Services,625195,172,01/03/2023,4200,0,PJNA,New Features / Schemes - C & E,3308,Servicing,Places
Blackpool Council,1057663,Wilde Recruitment Ltd,625196,42786,07/03/2023,552.38,92.06,CTAHHA,Tramway Emergency Works,6501,Contract Payments,Capital - Commnctn & Regen
Blackpool Council,1011369,Lancashire County Council,625197,5201501728,01/03/2023,525627.84,0,DOMPFI,Domestic Waste & Waste Pfi,4513,Contract 'A',Community & Env Services
Blackpool Council,1011369,Lancashire County Council,625197,5201501728,01/03/2023,579695.64,0,ZB0001,Gen.Fund Capital Balance Sheet,9724,Waste (Ex Pfi),Capital Summary
Blackpool Council,1121402,Julian Jackson Professional Services,625199,066,03/03/2023,390,0,PLAAAA,Dev Plang (Incl Plang Policy),3413,Consultants,Places
Blackpool Council,1006292,Vodafone Corporate Ltd,625200,103444883,02/03/2023,67736.36,11289.39,FGAA,Ict Corporate Services,3523,Mobile Phones - Line Rental,Resources
Blackpool Council,1082067,Squire Patton Boggs (Uk) Llp,625201,2729361,07/03/2023,5536.2,922.7,CGTBBB,Conference Centre,6506,Consultants Fees,Capital - Commnctn & Regen
Blackpool Council,1082067,Squire Patton Boggs (Uk) Llp,625202,2729660,02/03/2023,8908.8,1484.8,CP0511,Anchorsholme Seawall Scheme,6506,Consultants Fees,Capital - Comm & Environ
Blackpool Council,1090795,Aunty Social,625203,AS22-23,01/03/2023,600,0,COMSAF,Community Safety,3313,General Expenses,Community & Env Services
Blackpool Council,1009260,G S Brown,625204,10268,08/03/2023,1360,0,TRADUL,Intergrated Transport Adults,2201,Contract Hire,Community & Env Services
Blackpool Council,1009260,G S Brown,625205,10269,08/03/2023,930,0,TRCHIL,Integrated Transport Children,2201,Contract Hire,Community & Env Services
Blackpool Council,1060135,Happy Creative Ltd,625207,H5793,02/03/2023,271.2,45.2,PTA,Economic Development,3315,Marketing,Places
Blackpool Council,1105443,The Coroners' Courts Support Service,625208,2325 / BKP,01/03/2023,1953,0,LIFEVE,Life Events Reg & Care,3801,Other Expenses,Governance & Partnerships
Blackpool Council,1009234,Gary Roy Kirkham,625209,GK 75,08/03/2023,1660,0,TRCHIL,Integrated Transport Children,2201,Contract Hire,Community & Env Services
Blackpool Council,1083256,Community Lighting Partnership (Bpool) Ltd,625211,158,01/03/2023,370275.16,61712.53,FL1259,Pfi Management Costs,4501,Private Contractors,Community & Env Services
Blackpool Council,1073088,Muse Developments Limited,625215,51008316,01/03/2023,1027157.15,171192.86,CGWBAA,Cbd Phase 2,6501,Contract Payments,Capital - Commnctn & Regen
Blackpool Council,1073088,Muse Developments Limited,625215,51008316,01/03/2023,40955.23,0,ZF0001,"Insurance,Dso,Banking",97B6,Retention Monies - Cap Trsfr,Total Reconciliations
Blackpool Council,1010026,Chartered Institute Of Environmental,625216,376575,02/03/2023,649,0,PYCA,Public Protection - Food,3313,General Expenses,Community & Env Services
Blackpool Council,1009166,Glasdon Uk Ltd,625217,SI858304,02/03/2023,2138.23,356.38,LEISUR,Leisure Management,3801,Other Expenses,Community & Env Services
Blackpool Council,1006143,Yorkshire Purchasing Organisation,625220,SI-2453294,21/03/2023,2071.44,345.24,NA1271,Management,3020,Furniture - Purchase,Children'S Services
Blackpool Council,1066073,Blackpool Coastal Housing,625221,30002258,02/03/2023,1012,0,EP8011,Covid Winter Grant,3801,Other Expenses,Children'S Services
Blackpool Council,1066073,Blackpool Coastal Housing,625221,30002258,02/03/2023,5085,0,EP8011,Covid Winter Grant,4501,Private Contractors,Children'S Services
Blackpool Council,1063638,Pristine Hygiene,625223,5031,09/03/2023,383.1,63.85,APCBAA,Coopers Way,3408,Services To Clients,Adult & Families
Blackpool Council,1010311,Boc Limited,625225,3072093718,13/03/2023,358.79,59.8,LEISUR,Leisure Management,3060,Chemicals,Community & Env Services
Blackpool Council,1010311,Boc Limited,625228,3072093715,02/03/2023,439.18,73.2,LEISUR,Leisure Management,3060,Chemicals,Community & Env Services
Blackpool Council,1010554,Baines Endowed C Of E Academy,625230,SI-00094,02/03/2023,3780,0,EP8011,Covid Winter Grant,3701,Grants,Children'S Services
Blackpool Council,1000009,Blackpool & The Fylde College,625231,T0017090,02/03/2023,8560,0,EP8011,Covid Winter Grant,3701,Grants,Children'S Services
Blackpool Council,1131096,Abl Planning And Development Ltd,625232,2000807/256,02/03/2023,2317.5,0,PLBAAA,Development Control,4515,Contract Services,Places
Blackpool Council,1070438,Wyre Council,625233,1111101133,10/03/2023,7500,0,PU2069,Changing Futures,4501,Private Contractors,Public Health
Blackpool Council,1068448,Jon Marshall T/A Magic Carpet Theatre,625234,3117 / 8538,02/03/2023,360,60,AHHBA,Blackpool Museum,3801,Other Expenses,Places
Blackpool Council,1118568,Supply Chain Coordination Ltd (Sccl),625239,1123250813,02/03/2023,866.88,144.48,EP8007,Tic Maternity Pathway,3401,General Services,Tic Maternity Pathway
Blackpool Council,1018184,Blackpool Skip Hire Ltd,625241,046980,21/03/2023,284.4,47.4,JAH,Duty And Assessment,5507,Personal,Children'S Services
Blackpool Council,1066817,Ocean Media Group Ltd,625247,IN268276,03/03/2023,960,160,PBF,Communications,0921,Advertising (Staff Vac.),Places
Blackpool Council,1005071,Blackpool Transport Services Limited,625248,I0004614,16/03/2023,4760.4,0,JEA,Senior Management,5552,Bus Pass / Travel,Children'S Services
Blackpool Council,1039142,Bibliographic Data Services Ltd,625249,19536,02/03/2023,2292,382,LBF,Library Management,3711,Subscriptions,Places
Blackpool Council,1105889,3d Environmental Limited,625250,BBC-0444,03/03/2023,402,67,PYEP,Environmental Protection,3313,General Expenses,Community & Env Services
Blackpool Council,1008423,Lancaster University,625252,8703126,02/03/2023,9900,1650,BSTPRJ,Better Start Projects,3413,Consultants,Better Start Projects
Blackpool Council,1073088,Muse Developments Limited,625253,51008317,01/03/2023,859044.78,143174.13,CFCAAA,Cbd Phase 3,6501,Contract Payments,Capital - Commnctn & Regen
Blackpool Council,1073088,Muse Developments Limited,625253,51008317,01/03/2023,34252.18,0,ZF0001,"Insurance,Dso,Banking",97B6,Retention Monies - Cap Trsfr,Total Reconciliations
Blackpool Council,1138073,Swk Consultancy And Training Ltd,625254,00018,02/03/2023,1500,0,ALEARN,Adult Learning,0911,Training Expenses,Places
Blackpool Council,1138073,Swk Consultancy And Training Ltd,625255,00019,02/03/2023,1500,0,ALEARN,Adult Learning,0911,Training Expenses,Places
Blackpool Council,1138407,Red Rose School (Voucher Claims Only),625303,RRS2830,02/03/2023,300,0,EP8011,Covid Winter Grant,3701,Grants,Children'S Services
Blackpool Council,1087805,Blackpool Fc Community Trust,625307,BFCCT1477,02/03/2023,33924,0,PUBH12,Healthy Weight,4501,Private Contractors,Public Health
Blackpool Council,1024103,Language Line Limited,625308,14203,02/03/2023,300,50,PQAAA,Equalities,3419,Interpreters Fees,Resources
Blackpool Council,1100542,Caroline Horn T/A Bentley Training,625310,BEN/587,02/03/2023,450,0,LEISUR,Leisure Management,0911,Training Expenses,Community & Env Services
Blackpool Council,1087234,Aitch Tools & Fasteners Ltd,625311,068083,02/03/2023,536,0,ZM0018,Highways & Engineering,9773,Orders Received Not Invoiced,Blackpool Services
Blackpool Council,1087234,Aitch Tools & Fasteners Ltd,625311,068083,02/03/2023,643.2,107.2,ZM0018,Highways & Engineering,9511A,Stocks Efin,Blackpool Services
Blackpool Council,1107140,Nhs Midlands And Lancashire Csu,625312,7312326244,02/03/2023,45136.8,7522.8,PUBH03,Nhs Health Check Programme,4501,Private Contractors,Public Health
Blackpool Council,1085161,Lg Futures Ltd,625315,6003777,02/03/2023,4434,739,FD0021,Subscriptions,3711,Subscriptions,Budgets Outside Cash Limits
Blackpool Council,1123821,J M Routledge T/A Jr Consulting,625320,BBC23/01,10/03/2023,9200,0,PU0111,Contain Outbreak Mgmnt Covid,4501,Private Contractors,Public Health
Blackpool Council,1093504,Turning Point,625321,SI-TPL-00070099,10/03/2023,2200,0,PU2095,Rough Sleepers & At Risk,4501,Private Contractors,Public Health
Blackpool Council,1099023,The Boathouse Youth Ltd,625323,HAF 311222,10/03/2023,5380.18,0,PU2064,Holiday Activities & Food(Haf),4501,Private Contractors,Public Health
Blackpool Council,1093504,Turning Point,625324,SI-TPL-00069935,10/03/2023,2200,0,PU2095,Rough Sleepers & At Risk,4501,Private Contractors,Public Health
Blackpool Council,1130695,Upshot Systems Cic,625325,2174,02/03/2023,14886,2481,PU2064,Holiday Activities & Food(Haf),4501,Private Contractors,Public Health
Blackpool Council,1060135,Happy Creative Ltd,625326,H5790,02/03/2023,540,90,PU0001,Public Health Team,4501,Private Contractors,Public Health
Blackpool Council,1060135,Happy Creative Ltd,625328,H5800,02/03/2023,8850,1475,PU2064,Holiday Activities & Food(Haf),4501,Private Contractors,Public Health
Blackpool Council,1121485,Philredom Ltd,625329,PL01032023-105,02/03/2023,1950,0,MNGMT,Central Management,3413,Consultants,Children'S Services
Blackpool Council,1089774,Fcms (Nw) Ltd,625337,07167,10/03/2023,6250,0,PU2095,Rough Sleepers & At Risk,4501,Private Contractors,Public Health
Blackpool Council,1138343,Selecta Uk Ltd,625338,220120468,09/03/2023,293.09,48.85,LEISUR,Leisure Management,3062,Vending Materials,Community & Env Services
Blackpool Council,1138343,Selecta Uk Ltd,625339,220138732,02/03/2023,338.02,56.34,LEISUR,Leisure Management,3062,Vending Materials,Community & Env Services
Blackpool Council,1138343,Selecta Uk Ltd,625340,220187992,02/03/2023,1006.37,167.73,LEISUR,Leisure Management,3062,Vending Materials,Community & Env Services
Blackpool Council,1138343,Selecta Uk Ltd,625341,230006121,09/03/2023,1032.1,172.02,LEISUR,Leisure Management,3062,Vending Materials,Community & Env Services
Blackpool Council,1138343,Selecta Uk Ltd,625342,230015601,09/03/2023,1280.38,213.4,LEISUR,Leisure Management,3062,Vending Materials,Community & Env Services
Blackpool Council,1138343,Selecta Uk Ltd,625343,230017897,09/03/2023,1308.65,218.11,LEISUR,Leisure Management,3062,Vending Materials,Community & Env Services
Blackpool Council,1071925,Groundwork Cheshire Lancs And Merseyside,625346,0000004160,06/03/2023,26722.97,0,CGRESO,Resources Schemes,6501,Contract Payments,Capital - Resources
Blackpool Council,1109966,J C Walwyn And Sons Ltd,625348,112066,03/03/2023,514.8,85.8,CEMCRE,Cems Crems Etc,3453,Caskets/Urns/Posy Holders,Governance & Partnerships
Blackpool Council,1138005,Ah Connections Ltd,625349,INV-0217,02/03/2023,1283.95,213.99,CFCAAA,Cbd Phase 3,6518,Miscellaneous - Capital,Capital - Commnctn & Regen
Blackpool Council,1138005,Ah Connections Ltd,625350,INV-0220,02/03/2023,2637.6,439.6,CFCAAA,Cbd Phase 3,6518,Miscellaneous - Capital,Capital - Commnctn & Regen
Blackpool Council,1051299,Leisure Travel,625351,INV00825,07/03/2023,300,0,TRCHIL,Integrated Transport Children,2201,Contract Hire,Community & Env Services
Blackpool Council,1051299,Leisure Travel,625352,INV00826,07/03/2023,300,0,TRCHIL,Integrated Transport Children,2201,Contract Hire,Community & Env Services
Blackpool Council,1051299,Leisure Travel,625353,INV00830,07/03/2023,6650,0,TRCHIL,Integrated Transport Children,2201,Contract Hire,Community & Env Services
Blackpool Council,1051299,Leisure Travel,625354,INV00827,07/03/2023,300,0,TRCHIL,Integrated Transport Children,2201,Contract Hire,Community & Env Services
Blackpool Council,1051299,Leisure Travel,625355,INV00831,07/03/2023,6650,0,TRCHIL,Integrated Transport Children,2201,Contract Hire,Community & Env Services
Blackpool Council,1051299,Leisure Travel,625356,INV00828,08/03/2023,800,0,TRCHIL,Integrated Transport Children,2201,Contract Hire,Community & Env Services
Blackpool Council,1051299,Leisure Travel,625357,INV00832,08/03/2023,6650,0,TRCHIL,Integrated Transport Children,2201,Contract Hire,Community & Env Services
Blackpool Council,1051299,Leisure Travel,625358,INV00829,08/03/2023,1500,0,TRCHIL,Integrated Transport Children,2201,Contract Hire,Community & Env Services
Blackpool Council,1051299,Leisure Travel,625359,INV00833,08/03/2023,6650,0,TRCHIL,Integrated Transport Children,2201,Contract Hire,Community & Env Services
Blackpool Council,1101740,Ken Taylor Supplies Limited,625366,0373521,06/03/2023,510,85,PARADM,Parking Administration,3801,Other Expenses,Budgets Outside Cash Limits
Blackpool Council,1081600,Pshe Association,625367,INV-78572,10/03/2023,3910,0,PU1000,Pshe Support,4501,Private Contractors,Public Health
Blackpool Council,1108098,Corambaaf Ltd,625368,LC166299,02/03/2023,4348.26,724.71,JBR,Lac - Placements,3711,Subscriptions,Children'S Services
Blackpool Council,1136654,Randstad Solutions Ltd,625369,30094367,02/03/2023,436.32,72.72,VIRTUL,Virtual Hub,5555,Educational Support,Children'S Services
Blackpool Council,1136654,Randstad Solutions Ltd,625370,30100811,02/03/2023,349.06,58.18,VIRTUL,Virtual Hub,5555,Educational Support,Children'S Services
Blackpool Council,1132246,Harwell Technical Services Ltd,625371,36198,02/03/2023,19958.4,3326.4,AHH,Heritage,0917,Other Exps,Places
Blackpool Council,1058510,Lifeline Language Services Ltd,625372,1122040,20/03/2023,284.4,47.4,JEA,Senior Management,5507,Personal,Children'S Services
Blackpool Council,1022689,1st Bispham Scout And Guide Group,625373,765,03/03/2023,300,0,JA0505,Children'S Training,3426,Course Fees,Children'S Services
Blackpool Council,1006940,Smiths Equipment Hire Ltd - Smiths Training,625382,05-1138845,02/03/2023,370.56,61.76,ENGINE,Engineering,3041,Other Materials,Community & Env Services
Blackpool Council,1018184,Blackpool Skip Hire Ltd,625383,046838,02/03/2023,396,66,SCHEME,Highways Schemes,1012,Premises Maint-Priv.Contractor,Community & Env Services
Blackpool Council,1013064,Tarmac Lafarge Trading Limited,625384,9046578938,03/03/2023,382.46,63.74,ENGINE,Engineering,3041,Other Materials,Community & Env Services
Blackpool Council,1013064,Tarmac Lafarge Trading Limited,625385,9046568862,03/03/2023,376.58,62.76,ENGINE,Engineering,3041,Other Materials,Community & Env Services
Blackpool Council,1011837,Cemex Uk Materials Ltd,625390,3013914366,02/03/2023,321.16,53.53,ENGINE,Engineering,3041,Other Materials,Community & Env Services
Blackpool Council,1107790,Taylek Ltd,625396,INV-24102,02/03/2023,358.92,59.82,PJLA,Maintenance,3041,Other Materials,Places
Blackpool Council,1107790,Taylek Ltd,625399,INV-24153,02/03/2023,450,75,PJRA,Electrical Infra - Places,3041,Other Materials,Places
Blackpool Council,1138343,Selecta Uk Ltd,625401,230006694,03/03/2023,333.28,55.55,LEISUR,Leisure Management,3062,Vending Materials,Community & Env Services
Blackpool Council,1119620,Coroners Society Of England & Wales,625402,2023/210,06/03/2023,550,0,LIFEVE,Life Events Reg & Care,0981,Professional Fees,Governance & Partnerships
Blackpool Council,1133538,REDACTED PERSONAL DATA,625406,0931995,03/03/2023,300,0,PJHA,"Depot, Management & Admin",3308,Servicing,Places
Blackpool Council,1081356,Friends Of Stanley Park,625407,230001,03/03/2023,2000,0,DIRCTR,Directorate,3801,Other Expenses,Community & Env Services
Blackpool Council,1138073,Swk Consultancy And Training Ltd,625408,00020,14/03/2023,1500,0,ALEARN,Adult Learning,3413,Consultants,Places
Blackpool Council,1136841,Kazek Kowalski,625409,KK008A,03/03/2023,624,0,LNOUCL,Learning Outside The Classroom,3413,Consultants,Children'S Services
Blackpool Council,1058510,Lifeline Language Services Ltd,625411,1122152,20/03/2023,312,52,JEA,Senior Management,5507,Personal,Children'S Services
Blackpool Council,1102336,Lancashire Women'S Centres,625412,2033,03/03/2023,8000,0,EP8011,Covid Winter Grant,4501,Private Contractors,Children'S Services
Blackpool Council,1106798,Cd Chauffeur Hire,625413,464,03/03/2023,1501.98,0,BCA,Corp And Member Services,2211,Casual Hire,Governance & Partnerships
Blackpool Council,1107790,Taylek Ltd,625414,INV-22928,03/03/2023,698.21,116.37,PJRA,Electrical Infra - Places,3041,Other Materials,Places
Blackpool Council,1117713,Allied Publicity Services (Manchester) Ltd,625416,C74563,06/03/2023,852.02,142,FC1404,Blue Badge Reform,3401,General Services,Resources
Blackpool Council,1034533,Richmond Fellowship,625417,CUSTINV-00155146,03/03/2023,13049.5,0,MFABK,Other Services,4512,Other Care Block Payments,Adult & Families
Blackpool Council,1123472,Lancashire Care Ltd T/A Lastminute Nursing,625418,16302,03/03/2023,5814,0,MTEBF,Home Care,4512,Other Care Block Payments,Adult & Families
Blackpool Council,1114704,Morson Human Resources Ltd,625419,HS483730,03/03/2023,2310,385,CTAHHI,Tramway Extention,6506,Consultants Fees,Capital - Commnctn & Regen
Blackpool Council,1093763,Innerva (Fka) Shapemaster Global Ltd,625421,1931,10/03/2023,270,45,LEISUR,Leisure Management,3003,Equipt-Mtce Repairs,Community & Env Services
Blackpool Council,1093763,Innerva (Fka) Shapemaster Global Ltd,625422,1932,03/03/2023,1976.53,329.42,LEISUR,Leisure Management,1066,Service Contracts,Community & Env Services
Blackpool Council,1099512,Dga (Uk) Ltd,625423,SIN230537,03/03/2023,6264,1044,CGTBBB,Conference Centre,6506,Consultants Fees,Capital - Commnctn & Regen
Blackpool Council,1006385,University Of Central Lancashire,625424,TUI266600013,03/03/2023,2180,0,MNGMT,Central Management,3605,Confs & Short Courses,Children'S Services
Blackpool Council,1026738,Cassidy + Ashton Group Limited,625425,19919,06/03/2023,3222,537,CGICAD,Enterprise Zone,6506,Consultants Fees,Capital - Commnctn & Regen
Blackpool Council,1026738,Cassidy + Ashton Group Limited,625426,19920,06/03/2023,780,130,CGICAD,Enterprise Zone,6506,Consultants Fees,Capital - Commnctn & Regen
Blackpool Council,1026738,Cassidy + Ashton Group Limited,625427,19926,06/03/2023,1560,260,CGICAD,Enterprise Zone,6506,Consultants Fees,Capital - Commnctn & Regen
Blackpool Council,1026738,Cassidy + Ashton Group Limited,625428,19921,06/03/2023,2256,376,CGICAD,Enterprise Zone,6506,Consultants Fees,Capital - Commnctn & Regen
Blackpool Council,1026738,Cassidy + Ashton Group Limited,625429,19922,06/03/2023,936,156,CGICAG,Town Deal,6506,Consultants Fees,Capital - Commnctn & Regen
Blackpool Council,1026738,Cassidy + Ashton Group Limited,625430,19923,06/03/2023,870,145,CGICAD,Enterprise Zone,6506,Consultants Fees,Capital - Commnctn & Regen
Blackpool Council,1026738,Cassidy + Ashton Group Limited,625431,19924,06/03/2023,1092,182,CGICAD,Enterprise Zone,6506,Consultants Fees,Capital - Commnctn & Regen
Blackpool Council,1026738,Cassidy + Ashton Group Limited,625432,19925,06/03/2023,1014,169,CGICAD,Enterprise Zone,6506,Consultants Fees,Capital - Commnctn & Regen
Blackpool Council,1097997,Szpunar & Associates Ltd,625435,27022023,06/03/2023,800,0,LM0420,Adults Training,3426,Course Fees,Adult & Families
Blackpool Council,1059023,Arcadis Consulting (Uk) Limited,625437,680005538,03/03/2023,4200,700,PLAAAA,Dev Plang (Incl Plang Policy),3413,Consultants,Places
Blackpool Council,1138470,Granthams Gt Ltd,625688,0000002319,03/03/2023,14994,2499,PJHA,"Depot, Management & Admin",3041,Other Materials,Places
Blackpool Council,1006636,Tts Group Ltd,625689,DE7017091,03/03/2023,269.94,44.99,LBF,Library Management,3041,Other Materials,Places
Blackpool Council,1138343,Selecta Uk Ltd,625690,230022692,09/03/2023,696.48,116.08,LEISUR,Leisure Management,3062,Vending Materials,Community & Env Services
Blackpool Council,1053021,Wesley Media/The Yaboo Company Ltd,625693,66423,07/03/2023,324,54,CEMCRE,Cems Crems Etc,3401,General Services,Governance & Partnerships
Blackpool Council,1053021,Wesley Media/The Yaboo Company Ltd,625695,66425,07/03/2023,468,78,CEMCRE,Cems Crems Etc,3401,General Services,Governance & Partnerships
Blackpool Council,1119493,Centerprise International Ltd,625701,90296774,10/03/2023,1320,220,CS0739,Ict Refresh,6525,I.T. Hardware Purchase,Capital - Resources
Blackpool Council,1103692,Calico Enterprise Limited,625703,SINV65/00000776,03/03/2023,3504,584,DOMPFI,Domestic Waste & Waste Pfi,4501,Private Contractors,Community & Env Services
Blackpool Council,1126236,New Concept Security Ltd,625704,162643,03/03/2023,2851.2,475.2,SECURE,Security Services,3313,General Expenses,Community & Env Services
Blackpool Council,1126236,New Concept Security Ltd,625705,162633,03/03/2023,6974.1,1162.35,SECURE,Security Services,3313,General Expenses,Community & Env Services
Blackpool Council,1126236,New Concept Security Ltd,625706,162628,03/03/2023,7111.8,1185.3,SECURE,Security Services,3313,General Expenses,Community & Env Services
Blackpool Council,1008713,John Fausset Ltd,625707,13033,03/03/2023,7560,0,ZM0018,Highways & Engineering,9773,Orders Received Not Invoiced,Blackpool Services
Blackpool Council,1008713,John Fausset Ltd,625707,13033,03/03/2023,9072,1512,ZM0018,Highways & Engineering,9511A,Stocks Efin,Blackpool Services
Blackpool Council,1012895,Universal Containers Services Ltd,625710,521910,09/03/2023,6120,1020,LEISUR,Leisure Management,0831,Tool Allowances,Community & Env Services
Blackpool Council,1136177,Accora Ltd,625766,476214,24/03/2023,2886,481,MTEAJ,Equipment,5401,Aids To Daily Living,Adult & Families
Blackpool Council,1136177,Accora Ltd,625767,476213,24/03/2023,4080,680,MTEAJ,Equipment,5401,Aids To Daily Living,Adult & Families
Blackpool Council,1093417,Aat (Gb) Limited,625768,17409-18726,24/03/2023,288,48,MTEAJ,Equipment,5401,Aids To Daily Living,Adult & Families
Blackpool Council,1091465,Dm Orthotics Limited,625769,23397,24/03/2023,584.1,0,MTEAJ,Equipment,5401,Aids To Daily Living,Adult & Families
Blackpool Council,1008743,James Leckey Design Ltd T/A Vida Global,625770,OP/I198538,24/03/2023,423.6,70.6,CWAN,Children With Additional Needs,5401,Aids To Daily Living,Children'S Services
Blackpool Council,1117807,Murrays Medical Equipment Ltd,625771,796,24/03/2023,3894,649,MTEAJ,Equipment,5401,Aids To Daily Living,Adult & Families
Blackpool Council,1076636,Chicken Joes Ltd,625776,809775,13/03/2023,374.19,0,CATERG,Catering Services,3101,Provisions,Community & Env Services
Blackpool Council,1076636,Chicken Joes Ltd,625777,809787,13/03/2023,344,0,CATERG,Catering Services,3101,Provisions,Community & Env Services
Blackpool Council,1121728,Arrow County Supplies,625796,4990864,09/03/2023,2544,0,ZM0018,Highways & Engineering,9773,Orders Received Not Invoiced,Blackpool Services
Blackpool Council,1121728,Arrow County Supplies,625796,4990864,09/03/2023,3052.8,508.8,ZM0018,Highways & Engineering,9511A,Stocks Efin,Blackpool Services
Blackpool Council,1114726,The Magic Club,625799,280223,10/03/2023,3635.5,0,PU2064,Holiday Activities & Food(Haf),4501,Private Contractors,Public Health
Blackpool Council,1134828,Rosscon Training Ltd,625800,INV1022,07/03/2023,340,0,VIRTUL,Virtual Hub,5555,Educational Support,Children'S Services
Blackpool Council,1017867,British Telecommunications Plc,625801,VP21330270Q08701,07/03/2023,19912.9,3318.81,FGAA,Ict Corporate Services,3521,Landline - Line Rental,Resources
Blackpool Council,1095986,Hawes Side Academy,625802,HSAI0111,20/03/2023,10380,0,CWAN,Children With Additional Needs,4403,Special Needs - Children,Children'S Services
Blackpool Council,1009755,D Kirkham,625805,06,07/03/2023,1300,0,TRADUL,Intergrated Transport Adults,2201,Contract Hire,Community & Env Services
Blackpool Council,1134922,Oticon Limited,625813,SOI000543586,08/03/2023,310.8,51.8,CWAN,Children With Additional Needs,3008,Educational Equipment,Children'S Services
Blackpool Council,1060525,Keltic,625815,173827,17/03/2023,4863,810.5,FVFAA,Street Crossing Patrols,3201,Clothing & Uniforms,Community & Env Services
Blackpool Council,1075909,Viatec Uk Ltd,625816,1989390,09/03/2023,990,0,ZM0018,Highways & Engineering,9773,Orders Received Not Invoiced,Blackpool Services
Blackpool Council,1075909,Viatec Uk Ltd,625816,1989390,09/03/2023,1188,198,ZM0018,Highways & Engineering,9511A,Stocks Efin,Blackpool Services
Blackpool Council,1119197,Dewhurst Utility Services Ltd,625818,302204,08/03/2023,2880,480,CEABBA,Basic Need - Secondary,6514,B.Holes/Site Investgtn/Surveys,Capital - Childrens
Blackpool Council,1099512,Dga (Uk) Ltd,625819,SIN230536,07/03/2023,6000,1000,CGICAG,Town Deal,6506,Consultants Fees,Capital - Commnctn & Regen
Blackpool Council,1111501,Impact Fundraising,625822,1393,10/03/2023,1440,240,AHHBA,Blackpool Museum,3801,Other Expenses,Places
Blackpool Council,1030119,Generation (Uk) Ltd,625823,H2810497,07/03/2023,3291.98,548.66,PJAA,"Erection, Operation & Dismantl",1012,Premises Maint-Priv.Contractor,Places
Blackpool Council,1071925,Groundwork Cheshire Lancs And Merseyside,625824,0000004187,17/03/2023,26722.97,0,CGRESO,Resources Schemes,6501,Contract Payments,Capital - Resources
Blackpool Council,1118699,Enveco Blackpool Waste Services Ltd,625825,30179440,07/03/2023,3534.95,589.16,SECURE,Security Services,3313,General Expenses,Community & Env Services
Blackpool Council,1138343,Selecta Uk Ltd,625826,220158517,16/03/2023,902.22,150.37,LEISUR,Leisure Management,3062,Vending Materials,Community & Env Services
Blackpool Council,1066517,Wsp Uk  Ltd,625827,64611351,07/03/2023,12255.6,2042.6,CGICAD,Enterprise Zone,6506,Consultants Fees,Capital - Commnctn & Regen
Blackpool Council,1118699,Enveco Blackpool Waste Services Ltd,625829,30179422,07/03/2023,556.32,92.72,PYAA,Head Of Environmental Health,3313,General Expenses,Community & Env Services
Blackpool Council,1132978,Cornerstone Design And Marketing Limited,625830,12171,07/03/2023,978.48,163.08,LEISUR,Leisure Management,3801,Other Expenses,Community & Env Services
Blackpool Council,1114137,Ricardo-Aea Ltd,625831,6198607,08/03/2023,1770,295,CORDEV,Corporate Delivery Unit,3801,Other Expenses,Chief Executive
Blackpool Council,1138343,Selecta Uk Ltd,625849,220120467,09/03/2023,293.09,48.85,LEISUR,Leisure Management,3815,Saleable Goods,Community & Env Services
Blackpool Council,1138343,Selecta Uk Ltd,625850,220138731,07/03/2023,338.02,56.34,LEISUR,Leisure Management,3815,Saleable Goods,Community & Env Services
Blackpool Council,1138343,Selecta Uk Ltd,625851,220141331,07/03/2023,358.49,59.75,LEISUR,Leisure Management,3815,Saleable Goods,Community & Env Services
Blackpool Council,1138343,Selecta Uk Ltd,625852,220153614,09/03/2023,1543.32,257.22,LEISUR,Leisure Management,3815,Saleable Goods,Community & Env Services
Blackpool Council,1138343,Selecta Uk Ltd,625855,220184664,09/03/2023,1680.12,280.02,LEISUR,Leisure Management,3815,Saleable Goods,Community & Env Services
Blackpool Council,1138343,Selecta Uk Ltd,625858,230000676,09/03/2023,755.89,125.98,LEISUR,Leisure Management,3815,Saleable Goods,Community & Env Services
Blackpool Council,1138343,Selecta Uk Ltd,625860,230014418,09/03/2023,1051.62,175.27,LEISUR,Leisure Management,3815,Saleable Goods,Community & Env Services
Blackpool Council,1118699,Enveco Blackpool Waste Services Ltd,625861,30179426,07/03/2023,1133.78,188.96,DOMPFI,Domestic Waste & Waste Pfi,2002,Repairs And Maintenance,Community & Env Services
Blackpool Council,1118699,Enveco Blackpool Waste Services Ltd,625861,30179426,07/03/2023,1352.4,225.4,DOMPFI,Domestic Waste & Waste Pfi,2004,Running Costs-Diesel,Community & Env Services
Blackpool Council,1058510,Lifeline Language Services Ltd,625863,1122037,07/03/2023,284.4,47.4,JEA,Senior Management,5507,Personal,Children'S Services
Blackpool Council,1058510,Lifeline Language Services Ltd,625864,1122110,07/03/2023,2302.1,383.68,JEA,Senior Management,5507,Personal,Children'S Services
Blackpool Council,1138343,Selecta Uk Ltd,625866,220138733,10/03/2023,338.02,56.34,LEISUR,Leisure Management,3062,Vending Materials,Community & Env Services
Blackpool Council,1138343,Selecta Uk Ltd,625867,230022631,16/03/2023,1062.56,177.09,LEISUR,Leisure Management,3062,Vending Materials,Community & Env Services
Blackpool Council,1138343,Selecta Uk Ltd,625868,230010346,10/03/2023,808.24,134.71,LEISUR,Leisure Management,3062,Vending Materials,Community & Env Services
Blackpool Council,1138343,Selecta Uk Ltd,625869,230008290,16/03/2023,1000.81,166.8,LEISUR,Leisure Management,3062,Vending Materials,Community & Env Services
Blackpool Council,1138343,Selecta Uk Ltd,625871,220120469,16/03/2023,293.09,48.85,LEISUR,Leisure Management,3062,Vending Materials,Community & Env Services
Blackpool Council,1118715,Alison Black Ltd T/A Sportmax,625872,124324,10/03/2023,568.44,94.74,LEISUR,Leisure Management,3815,Saleable Goods,Community & Env Services
Blackpool Council,1118715,Alison Black Ltd T/A Sportmax,625875,124059,10/03/2023,678.06,113.01,LEISUR,Leisure Management,3815,Saleable Goods,Community & Env Services
Blackpool Council,1118699,Enveco Blackpool Waste Services Ltd,625876,30179415,07/03/2023,469.6,78.27,BEACHP,Beach Patrol,2002,Repairs And Maintenance,Places
Blackpool Council,1118699,Enveco Blackpool Waste Services Ltd,625876,30179415,07/03/2023,375.31,62.55,BEACHP,Beach Patrol,2003,Running Costs-Petrol,Places
Blackpool Council,1118699,Enveco Blackpool Waste Services Ltd,625877,30179441,07/03/2023,332.04,55.34,FP4801,Bus Shelters,2002,Repairs And Maintenance,Places
Blackpool Council,1118699,Enveco Blackpool Waste Services Ltd,625877,30179441,07/03/2023,271.99,45.33,FP4801,Bus Shelters,2003,Running Costs-Petrol,Places
Blackpool Council,1094424,The Networking People,625879,SI112689,07/03/2023,3407.59,567.93,FGAA,Ict Corporate Services,3532,Comp-Running & License Costs,Resources
Blackpool Council,1094424,The Networking People,625880,SI112691,07/03/2023,52375.12,8729.19,FGAA,Ict Corporate Services,3532,Comp-Running & License Costs,Resources
Blackpool Council,1094424,The Networking People,625881,SI112692,07/03/2023,52375.12,8729.19,FGAA,Ict Corporate Services,3532,Comp-Running & License Costs,Resources
Blackpool Council,1094424,The Networking People,625882,SI112731,07/03/2023,1345.49,224.25,FGAA,Ict Corporate Services,3532,Comp-Running & License Costs,Resources
Blackpool Council,1094424,The Networking People,625883,SI112712,07/03/2023,1423.2,237.2,FGAA,Ict Corporate Services,3531,Computer-H'Ware Purchase,Resources
Blackpool Council,1094424,The Networking People,625884,SI112693,07/03/2023,355.8,59.3,FGAA,Ict Corporate Services,3531,Computer-H'Ware Purchase,Resources
Blackpool Council,1011369,Lancashire County Council,625886,5201503789,21/03/2023,1540,0,JEA,Senior Management,5505,Travel,Children'S Services
Blackpool Council,1049304,Insight Direct (Uk) Ltd,625890,2100529790,07/03/2023,950.76,158.46,FGAB,Ict E-Government,3532,Comp-Running & License Costs,Resources
Blackpool Council,1049304,Insight Direct (Uk) Ltd,625891,2100530029,07/03/2023,2378.98,396.5,FGAA,Ict Corporate Services,3532,Comp-Running & License Costs,Resources
Blackpool Council,1076636,Chicken Joes Ltd,625893,805433,13/03/2023,297.66,0,CATERG,Catering Services,3101,Provisions,Community & Env Services
Blackpool Council,1076636,Chicken Joes Ltd,625894,807180,13/03/2023,322.91,0,CATERG,Catering Services,3101,Provisions,Community & Env Services
Blackpool Council,1010300,Blacktax Radio Taxis T/A Blackpool Courier,625899,873,17/03/2023,660,0,TRCHIL,Integrated Transport Children,2201,Contract Hire,Community & Env Services
Blackpool Council,1010300,Blacktax Radio Taxis T/A Blackpool Courier,625900,877,17/03/2023,288,0,TRCHIL,Integrated Transport Children,2201,Contract Hire,Community & Env Services
Blackpool Council,1010300,Blacktax Radio Taxis T/A Blackpool Courier,625901,868,17/03/2023,750,0,TRCHIL,Integrated Transport Children,2201,Contract Hire,Community & Env Services
Blackpool Council,1010300,Blacktax Radio Taxis T/A Blackpool Courier,625903,832,17/03/2023,1540,0,TRCHIL,Integrated Transport Children,2201,Contract Hire,Community & Env Services
Blackpool Council,1011675,Bambers Remedial Contractors Limited,625910,18131,08/03/2023,11266,0,CX4002,Disabled Facilities Grants,6501,Contract Payments,Capital - Adult Social Care
Blackpool Council,1011675,Bambers Remedial Contractors Limited,625911,18271,08/03/2023,6421.46,0,CX4002,Disabled Facilities Grants,6501,Contract Payments,Capital - Adult Social Care
Blackpool Council,1011675,Bambers Remedial Contractors Limited,625912,18297,08/03/2023,6029.06,0,CX4002,Disabled Facilities Grants,6501,Contract Payments,Capital - Adult Social Care
Blackpool Council,1026811,Stannah Lift Services Ltd,625914,1085522085,08/03/2023,18985.05,0,CX4002,Disabled Facilities Grants,6501,Contract Payments,Capital - Adult Social Care
Blackpool Council,1081205,The Excellent Ramp System Ltd,625916,4462,08/03/2023,5480,0,CX4002,Disabled Facilities Grants,6501,Contract Payments,Capital - Adult Social Care
Blackpool Council,1107499,Joe Gilmore T/A Qubik Design,625918,1287,08/03/2023,1000,0,AHG,Art Gallery Summary,3456,Payment To Artists,Places
Blackpool Council,1052420,Oral Health Foundation,625919,133677,07/03/2023,541.2,90.2,BSTPRJ,Better Start Projects,3401,General Services,Better Start Projects
Blackpool Council,1023161,Suez Recycling And Recovery Uk Ltd,625921,80328471,07/03/2023,72577.84,12096.31,DOMPFI,Domestic Waste & Waste Pfi,4501,Private Contractors,Community & Env Services
Blackpool Council,1090465,Gemini Reinstatement Products Ltd,625922,12832,09/03/2023,456,0,ZM0018,Highways & Engineering,9773,Orders Received Not Invoiced,Blackpool Services
Blackpool Council,1090465,Gemini Reinstatement Products Ltd,625922,12832,09/03/2023,547.2,91.2,ZM0018,Highways & Engineering,9511A,Stocks Efin,Blackpool Services
Blackpool Council,1110829,News Uk & Ireland Ltd T/A Simply Zesty,625926,0120001551,08/03/2023,1500,0,PRL,Marketing,3535,Website Costs,Places
Blackpool Council,1099753,Nimble Group It Ltd,625927,INV-12959,08/03/2023,252,42,FGAC,Ict Technical Support,3531,Computer-H'Ware Purchase,Resources
Blackpool Council,1137985,Hickton Quality Control,625929,26905,09/03/2023,2880,480,CGICAF,G&P Prudential Schemes,6505,Clerk Of Works,Capital - Commnctn & Regen
Blackpool Council,1009004,Bemrosebooth Paragon Limited T/A Paragon Id,625930,510007,21/03/2023,1404,234,PARADM,Parking Administration,3302,Stationery,Budgets Outside Cash Limits
Blackpool Council,1109682,Entertainment Concepts Ltd,625931,412,10/03/2023,799.99,133.33,FMAK,Acquisitions 9/10,1131,Electrical Equipment - Repairs,Places
Blackpool Council,1065668,Phoenix Properties (Ne) Ltd T/A Let2.Com,625933,3MATHER CBOOTH,08/03/2023,700,0,HOPB,Housing Options,1301,Rent & Hire Of Premises,Chief Executive
Blackpool Council,1010179,Buchanan Computing,625935,M10784,08/03/2023,1134,189,FL1235,Trans - Technical Support,3532,Comp-Running & License Costs,Community & Env Services
Blackpool Council,1010179,Buchanan Computing,625936,M10792,08/03/2023,592.8,98.8,FL1235,Trans - Technical Support,3532,Comp-Running & License Costs,Community & Env Services
Blackpool Council,1102342,Jcs Online Resources Ltd,625937,27985814,10/03/2023,1320,220,LBF,Library Management,3711,Subscriptions,Places
Blackpool Council,1006940,Smiths Equipment Hire Ltd - Smiths Training,625938,12-1141968,09/03/2023,1696.8,282.8,PJNB,Lightpool,3006,Hire Of Equipment,Places
Blackpool Council,1006940,Smiths Equipment Hire Ltd - Smiths Training,625939,12-1142134,08/03/2023,4407.47,734.58,PJNB,Lightpool,3006,Hire Of Equipment,Places
Blackpool Council,1112583,The Electric Sunshine Project Cic,625940,INV-0094,08/03/2023,320,0,BSTPRJ,Better Start Projects,1702,Hire Of Meeting Rooms,Better Start Projects
Blackpool Council,1112583,The Electric Sunshine Project Cic,625940,INV-0094,08/03/2023,375,0,BSTPRJ,Better Start Projects,3108,Refreshments - Mtgs @ Prog,Better Start Projects
Blackpool Council,1118699,Enveco Blackpool Waste Services Ltd,625941,30179294,08/03/2023,14390.64,2398.44,TRB,Maintenance & Works,4501,Private Contractors,Community & Env Services
Blackpool Council,1131983,Blackpool Football Therapy Cic,625942,060323,08/03/2023,600,0,EP8011,Covid Winter Grant,3801,Other Expenses,Children'S Services
Blackpool Council,1116244,Linda Clegg Consulting Ltd,625943,046,08/03/2023,900,150,JEA,Senior Management,3401,General Services,Children'S Services
Blackpool Council,1127962,John Graham Construction Limited,625945,918100,07/03/2023,438931.82,73155.3,CGICAF,G&P Prudential Schemes,6501,Contract Payments,Capital - Commnctn & Regen
Blackpool Council,1127962,John Graham Construction Limited,625945,918100,07/03/2023,11312.68,0,ZF0001,"Insurance,Dso,Banking",97B6,Retention Monies - Cap Trsfr,Total Reconciliations
Blackpool Council,1099023,The Boathouse Youth Ltd,625946,HAF10323,16/03/2023,23500.4,0,PU2064,Holiday Activities & Food(Haf),4501,Private Contractors,Public Health
Blackpool Council,1123821,J M Routledge T/A Jr Consulting,625947,BBC23/02,10/03/2023,8400,0,PU0111,Contain Outbreak Mgmnt Covid,4501,Private Contractors,Public Health
Blackpool Council,1136843,Philanthropy Company,625948,INV-1278,08/03/2023,7500,1250,PTC,"A.C.E. Regen, Tourism & Cultur",3413,Consultants,Places
Blackpool Council,1116610,Smart Video & Sensing Limited,625949,INV-101562,08/03/2023,3093,515.5,TRA,Traffic Management,4501,Private Contractors,Community & Env Services
Blackpool Council,1110771,Tibus - News Uk & Ireland Limited,625950,0110016776,09/03/2023,3000,500,PRJAAA,Website Team,3535,Website Costs,Places
Blackpool Council,1093145,On A Roll Sandwich Company,625952,261494,09/03/2023,325.1,0,CATERG,Catering Services,3101,Provisions,Community & Env Services
Blackpool Council,1093145,On A Roll Sandwich Company,625954,261548,09/03/2023,325.1,0,CATERG,Catering Services,3101,Provisions,Community & Env Services
Blackpool Council,1093145,On A Roll Sandwich Company,625955,261595,09/03/2023,325.1,0,CATERG,Catering Services,3101,Provisions,Community & Env Services
Blackpool Council,1093145,On A Roll Sandwich Company,625957,261647,09/03/2023,325.1,0,CATERG,Catering Services,3101,Provisions,Community & Env Services
Blackpool Council,1093145,On A Roll Sandwich Company,625958,261690,09/03/2023,325.1,0,CATERG,Catering Services,3101,Provisions,Community & Env Services
Blackpool Council,1093145,On A Roll Sandwich Company,625959,261799,09/03/2023,870.96,0,CATERG,Catering Services,3101,Provisions,Community & Env Services
Blackpool Council,1093145,On A Roll Sandwich Company,625960,261896,09/03/2023,1601.69,0,CATERG,Catering Services,3101,Provisions,Community & Env Services
Blackpool Council,1076636,Chicken Joes Ltd,625963,805437,13/03/2023,300.86,0,CATERG,Catering Services,3101,Provisions,Community & Env Services
Blackpool Council,1076636,Chicken Joes Ltd,625964,805438,13/03/2023,526.37,0,CATERG,Catering Services,3101,Provisions,Community & Env Services
Blackpool Council,1076636,Chicken Joes Ltd,625966,809780,13/03/2023,276.11,0,CATERG,Catering Services,3101,Provisions,Community & Env Services
Blackpool Council,1012116,Commercial Kitchen Services Ltd,625967,97187,10/03/2023,7602.9,1267.15,CATERG,Catering Services,3050,Kitchen (Heavy) Equip-Purchase,Community & Env Services
Blackpool Council,1007228,Origin Amenity Solutions Ltd T/A Rigby Taylor,626014,OASI0051093,09/03/2023,4134,0,ZM0018,Highways & Engineering,9773,Orders Received Not Invoiced,Blackpool Services
Blackpool Council,1007228,Origin Amenity Solutions Ltd T/A Rigby Taylor,626014,OASI0051093,09/03/2023,4960.8,826.8,ZM0018,Highways & Engineering,9511A,Stocks Efin,Blackpool Services
Blackpool Council,1133179,First Aid Academy Ltd,626016,R25279,08/03/2023,1080,180,JA0505,Children'S Training,3426,Course Fees,Children'S Services
Blackpool Council,1095113,Pearce Clinical Psychology Services Ltd,626017,972,08/03/2023,1980,0,FK0013,Corporate Health,0992,Medical Fees (Employee),Chief Executive
Blackpool Council,1110132,Health Assured Ltd,626020,SF-145424,08/03/2023,3170.7,528.45,FK0013,Corporate Health,0992,Medical Fees (Employee),Chief Executive
Blackpool Council,1132845,Susan Hayward Consulting,626023,014/BC,09/03/2023,2475,0,MNGMT,Central Management,3413,Consultants,Children'S Services
Blackpool Council,1122956,Vivid Resourcing,626025,97895,13/03/2023,1998,333,AEE,Estates,0981,Professional Fees,Resources
Blackpool Council,1010026,Chartered Institute Of Environmental,626026,PS018020,09/03/2023,1200,200,PBF,Communications,0921,Advertising (Staff Vac.),Places
Blackpool Council,1090874,Advanced Health And Care Limited,626028,INV-96397,09/03/2023,1514.08,252.35,APDBAB,Homecare,2201,Contract Hire,Adult & Families
Blackpool Council,1006944,Siemens Financial Services Ltd,626029,244/23/0105605,09/03/2023,2878.76,479.79,APFBAB,Vitaline,4501,Private Contractors,Adult & Families
Blackpool Council,1006944,Siemens Financial Services Ltd,626030,244/23/0103305,09/03/2023,3731.41,621.9,APFBAB,Vitaline,4501,Private Contractors,Adult & Families
Blackpool Council,1006944,Siemens Financial Services Ltd,626031,244/23/0103958,09/03/2023,657.26,109.54,APFBAB,Vitaline,3711,Subscriptions,Adult & Families
Blackpool Council,1006944,Siemens Financial Services Ltd,626032,244/23/0105606,09/03/2023,1185.25,197.53,APFBAB,Vitaline,4501,Private Contractors,Adult & Families
Blackpool Council,1025240,Key Engineering Supplies Ltd,626036,58540,10/03/2023,251.46,41.91,ZM0018,Highways & Engineering,9511A,Stocks Efin,Blackpool Services
Blackpool Council,1037404,Family Rights Group,626040,INV-0546,09/03/2023,550,0,SBOARD,Springboard,4501,Private Contractors,Children'S Services
Blackpool Council,1118699,Enveco Blackpool Waste Services Ltd,626041,30179433,13/03/2023,16143,2690.5,INTRAD,Integrated Transport Admin,2002,Repairs And Maintenance,Community & Env Services
Blackpool Council,1118699,Enveco Blackpool Waste Services Ltd,626041,30179433,13/03/2023,8830.92,1471.82,INTRAD,Integrated Transport Admin,2004,Running Costs-Diesel,Community & Env Services
Blackpool Council,1090902,Anderson & Sons Contracting & Turf Care,626047,271,14/03/2023,4560,760,CTACBC,Ltp Scheme 22/23,6501,Contract Payments,Capital - Commnctn & Regen
Blackpool Council,1118699,Enveco Blackpool Waste Services Ltd,626048,30179439,13/03/2023,1642.37,273.73,TRRIDE,Intergrated Transp Rideability,2002,Repairs And Maintenance,Community & Env Services
Blackpool Council,1118699,Enveco Blackpool Waste Services Ltd,626048,30179439,13/03/2023,2075.16,345.86,TRRIDE,Intergrated Transp Rideability,2004,Running Costs-Diesel,Community & Env Services
Blackpool Council,1116244,Linda Clegg Consulting Ltd,626049,047,09/03/2023,1800,300,JEA,Senior Management,3401,General Services,Children'S Services
Blackpool Council,1077963,Electricity Northwest Ltd,626051,990102819,09/03/2023,1200,200,FB0004,Energy & Sustainability,1202,Electricity,Resources
Blackpool Council,1061548,Cadent Gas Limited,626052,1035/81450386,09/03/2023,428.4,71.4,FB0004,Energy & Sustainability,1203,Gas,Resources
Blackpool Council,1129132,Mhr International Uk Ltd,626053,SIN174030,09/03/2023,2592,432,CGRESO,Resources Schemes,6526,I.T. Software Purchase,Capital - Resources
Blackpool Council,1129132,Mhr International Uk Ltd,626054,SIN174076,09/03/2023,648,108,CGRESO,Resources Schemes,6526,I.T. Software Purchase,Capital - Resources
Blackpool Council,1129132,Mhr International Uk Ltd,626055,SIN174002,09/03/2023,7776,1296,CGRESO,Resources Schemes,6526,I.T. Software Purchase,Capital - Resources
Blackpool Council,1138488,Alphatec Software Ltd,626056,5773,09/03/2023,15580.8,2596.8,FBBBB,"Insur, Scrutiny & Emerg Planin",3532,Comp-Running & License Costs,Resources
Blackpool Council,1029410,Cts Traffic And Transportation,626058,51306,09/03/2023,5695.2,949.2,PYLA,Licencing,4501,Private Contractors,Community & Env Services
Blackpool Council,1135232,Nx Consulting Ltd,626060,NX1188,09/03/2023,8745.6,1457.6,CEABBA,Basic Need - Secondary,6514,B.Holes/Site Investgtn/Surveys,Capital - Childrens
Blackpool Council,1058510,Lifeline Language Services Ltd,626065,1222005,09/03/2023,312,52,JEA,Senior Management,3419,Interpreters Fees,Children'S Services
Blackpool Council,1058510,Lifeline Language Services Ltd,626066,1222027,21/03/2023,324,54,JEA,Senior Management,3419,Interpreters Fees,Children'S Services
Blackpool Council,1118699,Enveco Blackpool Waste Services Ltd,626067,30179424,09/03/2023,827.27,137.88,PYEP,Environmental Protection,3313,General Expenses,Community & Env Services
Blackpool Council,1089774,Fcms (Nw) Ltd,626068,07233,09/03/2023,22428,3738,PU0111,Contain Outbreak Mgmnt Covid,4501,Private Contractors,Public Health
Blackpool Council,1118699,Enveco Blackpool Waste Services Ltd,626069,30179434,09/03/2023,7078.5,1179.75,PYLA,Licencing,3424,Registration & Inspection,Community & Env Services
Blackpool Council,1109682,Entertainment Concepts Ltd,626071,401,09/03/2023,1080,180,PJNA,New Features / Schemes - C & E,3308,Servicing,Places
Blackpool Council,1118699,Enveco Blackpool Waste Services Ltd,626075,30179427,09/03/2023,1207.18,201.2,ENGINE,Engineering,2002,Repairs And Maintenance,Community & Env Services
Blackpool Council,1118699,Enveco Blackpool Waste Services Ltd,626075,30179427,09/03/2023,1031.18,171.86,ENGINE,Engineering,2004,Running Costs-Diesel,Community & Env Services
Blackpool Council,1118699,Enveco Blackpool Waste Services Ltd,626076,30179429,09/03/2023,3882.42,647.07,ENGINE,Engineering,2002,Repairs And Maintenance,Community & Env Services
Blackpool Council,1118699,Enveco Blackpool Waste Services Ltd,626076,30179429,09/03/2023,2191.56,365.26,ENGINE,Engineering,2004,Running Costs-Diesel,Community & Env Services
Blackpool Council,1118699,Enveco Blackpool Waste Services Ltd,626077,30179442,09/03/2023,324,54,ENGINE,Engineering,2002,Repairs And Maintenance,Community & Env Services
Blackpool Council,1118699,Enveco Blackpool Waste Services Ltd,626077,30179442,09/03/2023,787.25,131.21,ENGINE,Engineering,2004,Running Costs-Diesel,Community & Env Services
Blackpool Council,1058510,Lifeline Language Services Ltd,626080,1222054,09/03/2023,440.4,73.4,JEA,Senior Management,5507,Personal,Children'S Services
Blackpool Council,1132962,Sysco Productions Ltd,626081,196765,09/03/2023,16139.76,2689.96,CGTACA,Museum,6517,Equipment,Capital - Commnctn & Regen
Blackpool Council,1090774,Richardson Traction Limited,626082,22953,09/03/2023,960,160,PJAA,"Erection, Operation & Dismantl",3006,Hire Of Equipment,Places
Blackpool Council,1102823,Wilde Consultants Limited,626085,24677,13/03/2023,3986.39,664.4,CTACBC,Ltp Scheme 22/23,6501,Contract Payments,Capital - Commnctn & Regen
Blackpool Council,1017606,Salvation Army,626086,5030535,09/03/2023,384.3,64.05,JAB,Locality,0911,Training Expenses,Children'S Services
Blackpool Council,1041157,5-Am Contact Contract Cleaning Ltd,626088,INV-1936,13/03/2023,6824.4,1137.41,EDDIV,Education Diversity,1607,Rechg Cleaning Dso,Children'S Services
Blackpool Council,1041157,5-Am Contact Contract Cleaning Ltd,626089,INV-1866,13/03/2023,6938.28,1156.39,EDDIV,Education Diversity,1607,Rechg Cleaning Dso,Children'S Services
Blackpool Council,1018184,Blackpool Skip Hire Ltd,626092,047114,09/03/2023,1275,212.5,PJHA,"Depot, Management & Admin",3006,Hire Of Equipment,Places
Blackpool Council,1103450,Blackpool Entertainment Company Limited,626093,INV006632,10/03/2023,12000,2000,FMAK,Acquisitions 9/10,1301,Rent & Hire Of Premises,Places
Blackpool Council,1044894,Avison Young (Uk) Ltd,626094,2153558,09/03/2023,2372.4,395.4,CGICAG,Town Deal,6506,Consultants Fees,Capital - Commnctn & Regen
Blackpool Council,1129634,Av-Id,626095,259,09/03/2023,17292.09,2882.02,AER,Dual Use Properties,3531,Computer-H'Ware Purchase,Resources
Blackpool Council,1129634,Av-Id,626096,258,09/03/2023,7002.54,1167.09,AER,Dual Use Properties,3531,Computer-H'Ware Purchase,Resources
Blackpool Council,1010687,Sirsi Ltd,626104,INV13103,10/03/2023,1080,180,LBF,Library Management,3711,Subscriptions,Places
Blackpool Council,1010687,Sirsi Ltd,626105,INV13083,10/03/2023,4176,696,LBF,Library Management,3532,Comp-Running & License Costs,Places
Blackpool Council,1092200,Aiming Higher,626106,010687,09/03/2023,2361.08,0,JAB,Locality,5101,Transfer Payments - General,Children'S Services
Blackpool Council,1092200,Aiming Higher,626107,010688,09/03/2023,2361.08,0,JAB,Locality,5101,Transfer Payments - General,Children'S Services
Blackpool Council,1020550,Hays Specialist Recruitment Ltd,626108,1012792221,13/03/2023,1932.76,322.13,HJA,Growth,0791,Temp/Relief (Bureau Staff),Places
Blackpool Council,1020550,Hays Specialist Recruitment Ltd,626109,1012799272,13/03/2023,828,138,HJA,Growth,0791,Temp/Relief (Bureau Staff),Places
Blackpool Council,1020550,Hays Specialist Recruitment Ltd,626111,1012817237,13/03/2023,828,138,HJA,Growth,0791,Temp/Relief (Bureau Staff),Places
Blackpool Council,1095165,Tower Learning Centre Ltd,626113,890-121,09/03/2023,520,0,VIRTUL,Virtual Hub,5555,Educational Support,Children'S Services
Blackpool Council,1136654,Randstad Solutions Ltd,626115,30107274,09/03/2023,349.06,58.18,VIRTUL,Virtual Hub,5555,Educational Support,Children'S Services
Blackpool Council,1073580,Blackpool Sound And Light,626118,3028,09/03/2023,7628,0,PJHA,"Depot, Management & Admin",3308,Servicing,Places
Blackpool Council,1087805,Blackpool Fc Community Trust,626119,BFCCT1480,10/03/2023,29040,0,PU2064,Holiday Activities & Food(Haf),4501,Private Contractors,Public Health
Blackpool Council,1087805,Blackpool Fc Community Trust,626120,BFCCT1481,10/03/2023,10781.1,0,PU2064,Holiday Activities & Food(Haf),4501,Private Contractors,Public Health
Blackpool Council,1087805,Blackpool Fc Community Trust,626121,BFCCT1482,10/03/2023,6099.5,0,PU2064,Holiday Activities & Food(Haf),4501,Private Contractors,Public Health
Blackpool Council,1135633,Lancashire Alternative Provision,626122,200,09/03/2023,9900,0,OTHL,Other Learning,5555,Educational Support,Children'S Services
Blackpool Council,1016258,M J Teale Plant Hire Ltd,626123,002206,09/03/2023,788.16,131.36,SCHEME,Highways Schemes,1012,Premises Maint-Priv.Contractor,Community & Env Services
Blackpool Council,1006644,Telewest/Virgin Media Payments Ltd,626124,083284501/001/0323,09/03/2023,763.34,127.22,FGAA,Ict Corporate Services,3521,Landline - Line Rental,Resources
Blackpool Council,1105476,Blackpool & Fylde  Alternative School Ltd,626125,INV-0342,09/03/2023,5590.8,931.8,OTHL,Other Learning,5555,Educational Support,Children'S Services
Blackpool Council,1114857,University Of Brighton,626126,U0150725,09/03/2023,378,63,AHHBA,Blackpool Museum,3801,Other Expenses,Places
Blackpool Council,1034222,Teleshore (Uk) Ltd,626129,39360,09/03/2023,720,120,CEMCRE,Cems Crems Etc,3801,Other Expenses,Governance & Partnerships
Blackpool Council,1005071,Blackpool Transport Services Limited,626130,10004643,09/03/2023,255.78,0,JEA,Senior Management,5552,Bus Pass / Travel,Children'S Services
Blackpool Council,1066729,Equis Associates Limited,626131,12-98-PG-BC,09/03/2023,19200,3200,CTAHHI,Tramway Extention,6506,Consultants Fees,Capital - Commnctn & Regen
Blackpool Council,1075909,Viatec Uk Ltd,626136,1989441,13/03/2023,1980,0,ZM0018,Highways & Engineering,9773,Orders Received Not Invoiced,Blackpool Services
Blackpool Council,1075909,Viatec Uk Ltd,626136,1989441,13/03/2023,2376,396,ZM0018,Highways & Engineering,9511A,Stocks Efin,Blackpool Services
Blackpool Council,1084496,Acorn Recovery Projects,626137,SINV61/00000388,10/03/2023,880,0,PU1016,Universal Grant Funding,4501,Private Contractors,Public Health
Blackpool Council,1138481,REDACTED PERSONAL DATA,626138,INV0244,09/03/2023,1500,0,MUSIC,Music & Cultural Education,3822,Photography,Children'S Services
Blackpool Council,1011868,W H Tarmacadam Limited,626139,6497,09/03/2023,72660,12110,SCHEME,Highways Schemes,1012,Premises Maint-Priv.Contractor,Community & Env Services
Blackpool Council,1007535,Pip (Play Inclusion Project),626140,BSB425,09/03/2023,14661.13,0,JAB,Locality,3801,Other Expenses,Children'S Services
Blackpool Council,1092200,Aiming Higher,626142,010663,09/03/2023,2361.08,0,JAB,Locality,5101,Transfer Payments - General,Children'S Services
Blackpool Council,1057663,Wilde Recruitment Ltd,626143,42828,13/03/2023,552.38,92.06,CTAHHA,Tramway Emergency Works,6501,Contract Payments,Capital - Commnctn & Regen
Blackpool Council,1137202,Studiocanal Films Ltd,626144,CIOR3861,09/03/2023,1800,300,AHHBA,Blackpool Museum,3801,Other Expenses,Places
Blackpool Council,1061221,Tradition (Uk) Ltd,626145,TLB/LN/BKPL-*L/DEPOT/02/2023,09/03/2023,2520.54,0,FH0001,Treasury Management,3401,General Services,Budgets Outside Cash Limits
Blackpool Council,1034316,Bgc European Holdings Lp,626146,BGC-FEB-2023-00002619,09/03/2023,630.14,0,FH0001,Treasury Management,3401,General Services,Budgets Outside Cash Limits
Blackpool Council,1119935,Imperial Treasury Services Ltd,626147,2216,09/03/2023,350.68,0,FH0001,Treasury Management,3401,General Services,Budgets Outside Cash Limits
Blackpool Council,1102016,Critiqom Limited,626149,084028,09/03/2023,6475.73,1079.29,FBBEA,"Income, Recovery & Debtors",3511,Postages,Resources
Blackpool Council,1096607,Cutlers Property Consultancy (Services),626151,0070530,16/03/2023,3055,0,AEE,Estates,0781,Contracted,Resources
Blackpool Council,1008540,Konica Minolta Business (Uk) Ltd,626154,1164261122,09/03/2023,1659.06,276.51,FGBA,Specific (Directorate)-Service,3305,Photocopying Charges,Resources
Blackpool Council,1132978,Cornerstone Design And Marketing Limited,626161,12227,09/03/2023,510,85,LEISUR,Leisure Management,3801,Other Expenses,Community & Env Services
Blackpool Council,1132978,Cornerstone Design And Marketing Limited,626162,12226,09/03/2023,8265.6,1377.6,LEISUR,Leisure Management,3401,General Services,Community & Env Services
Blackpool Council,1098899,Browne Jacobson Llp,626164,IN-000143013,09/03/2023,40573.8,6762.3,FL1259,Pfi Management Costs,4501,Private Contractors,Community & Env Services
Blackpool Council,1070036,Gaist Solutions Ltd,626165,11626,09/03/2023,15600,2600,TRB,Maintenance & Works,4501,Private Contractors,Community & Env Services
Blackpool Council,1132978,Cornerstone Design And Marketing Limited,626166,12187,09/03/2023,3000,500,LEISUR,Leisure Management,3401,General Services,Community & Env Services
Blackpool Council,1006143,Yorkshire Purchasing Organisation,626168,SI-2471125,16/03/2023,2568.96,428.16,LEISUR,Leisure Management,3801,Other Expenses,Community & Env Services
Blackpool Council,1101740,Ken Taylor Supplies Limited,626170,0373952,09/03/2023,275.4,45.9,ZM0018,Highways & Engineering,9511A,Stocks Efin,Blackpool Services
Blackpool Council,1049304,Insight Direct (Uk) Ltd,626174,2100538271,09/03/2023,426.84,71.14,JA1531,Independent Reviewing Officers,3533,Computer S/W Purchases,Children'S Services
Blackpool Council,1132978,Cornerstone Design And Marketing Limited,626177,12228,09/03/2023,1287,214.5,LEISUR,Leisure Management,3801,Other Expenses,Community & Env Services
Blackpool Council,1079028,Institute Of Swimming Ltd,626178,IOSINV031876,13/03/2023,675,0,LEISUR,Leisure Management,0911,Training Expenses,Community & Env Services
Blackpool Council,1132978,Cornerstone Design And Marketing Limited,626181,12222,09/03/2023,1074.4,179.07,LEISUR,Leisure Management,3801,Other Expenses,Community & Env Services
Blackpool Council,1069760,W Robinson (Bils) Ltd,626215,88579,16/03/2023,2426.76,404.46,SCHEME,Highways Schemes,3041,Other Materials,Community & Env Services
Blackpool Council,1025705,Premier Cabs Blackpool Ltd,626216,INV-166,10/03/2023,540,90,TRCHIL,Integrated Transport Children,2201,Contract Hire,Community & Env Services
Blackpool Council,1025705,Premier Cabs Blackpool Ltd,626217,INV-175,10/03/2023,576,96,TRADUL,Intergrated Transport Adults,2201,Contract Hire,Community & Env Services
Blackpool Council,1025705,Premier Cabs Blackpool Ltd,626219,INV-177,10/03/2023,655.2,109.2,TRCHIL,Integrated Transport Children,2201,Contract Hire,Community & Env Services
Blackpool Council,1025705,Premier Cabs Blackpool Ltd,626220,INV-178,10/03/2023,288,48,TRCHIL,Integrated Transport Children,2201,Contract Hire,Community & Env Services
Blackpool Council,1025705,Premier Cabs Blackpool Ltd,626221,INV-167,10/03/2023,621.6,103.6,JEA,Senior Management,2201,Contract Hire,Children'S Services
Blackpool Council,1025705,Premier Cabs Blackpool Ltd,626222,INV-168,10/03/2023,682.2,113.7,TRCHIL,Integrated Transport Children,2201,Contract Hire,Community & Env Services
Blackpool Council,1025705,Premier Cabs Blackpool Ltd,626223,INV-169,10/03/2023,1452,242,TRCHIL,Integrated Transport Children,2201,Contract Hire,Community & Env Services
Blackpool Council,1025705,Premier Cabs Blackpool Ltd,626225,INV-171,10/03/2023,504.6,84.1,TRCHIL,Integrated Transport Children,2201,Contract Hire,Community & Env Services
Blackpool Council,1025705,Premier Cabs Blackpool Ltd,626226,INV-172,10/03/2023,1339.8,223.3,TRCHIL,Integrated Transport Children,2201,Contract Hire,Community & Env Services
Blackpool Council,1118727,REDACTED PERSONAL DATA,626230,FEB/2023/DG,09/03/2023,250.5,0,LIFEVE,Life Events Reg & Care,3602,Expenses Re Panels,Governance & Partnerships
Blackpool Council,1118727,REDACTED PERSONAL DATA,626230,FEB/2023/DG,09/03/2023,1745.1,0,LIFEVE,Life Events Reg & Care,3401,General Services,Governance & Partnerships
Blackpool Council,1118730,REDACTED PERSONAL DATA,626231,2023/2/1,09/03/2023,653.7,0,LIFEVE,Life Events Reg & Care,3401,General Services,Governance & Partnerships
Blackpool Council,1138002,REDACTED PERSONAL DATA,626232,15778938 P23-21,09/03/2023,276.9,0,LIFEVE,Life Events Reg & Care,3401,General Services,Governance & Partnerships
Blackpool Council,1118728,REDACTED PERSONAL DATA,626233,FEB2023,09/03/2023,6281.6,0,LIFEVE,Life Events Reg & Care,3401,General Services,Governance & Partnerships
Blackpool Council,1138063,Hafod-Y-Bryn Pathology Services Limited,626234,BLA/COR-023,09/03/2023,276.9,0,LIFEVE,Life Events Reg & Care,3401,General Services,Governance & Partnerships
Blackpool Council,1137198,Hafs (Lancs) Ltd,626235,20230033,09/03/2023,12662.16,2110.36,LIFEVE,Life Events Reg & Care,3405,Removals - Coroners,Governance & Partnerships
Blackpool Council,1138330,M Sheppard Pathology Ltd,626237,1/23,09/03/2023,350,0,LIFEVE,Life Events Reg & Care,3401,General Services,Governance & Partnerships
Blackpool Council,1138384,Paediatric & Perinatal Pathology Services Ltd,626238,INV-269,09/03/2023,595.9,0,LIFEVE,Life Events Reg & Care,3401,General Services,Governance & Partnerships
Blackpool Council,1137336,Max Fordham Llp,626239,40282,10/03/2023,7278,1213,FMAK,Acquisitions 9/10,3801,Other Expenses,Places
Blackpool Council,1032151,Holgate House Ltd,626240,7580,10/03/2023,2132.02,0,PU1016,Universal Grant Funding,4501,Private Contractors,Public Health
Blackpool Council,1137336,Max Fordham Llp,626241,41046,10/03/2023,1819.5,303.25,FMAK,Acquisitions 9/10,3801,Other Expenses,Places
Blackpool Council,1121383,Sh:24 Cic,626242,INVOICE Q4..2022-0003,10/03/2023,304.5,0,PUBH02,Sexual Health Services-Contrac,4501,Private Contractors,Public Health
Blackpool Council,1137336,Max Fordham Llp,626243,40613,10/03/2023,1819.5,303.25,FMAK,Acquisitions 9/10,3801,Other Expenses,Places
Blackpool Council,1102016,Critiqom Limited,626244,084027,09/03/2023,1574.02,262.34,FBBEA,"Income, Recovery & Debtors",3301,Printing,Resources
Blackpool Council,1059312,Common Purpose Limited,626245,15262,09/03/2023,24960,4160,FK0071,Corporate Training,3426,Course Fees,Chief Executive
Blackpool Council,1099262,Nhs Blackpool & Nhs Lancs & South Cumbria Icb,626246,7440000479,09/03/2023,9900000,0,LM9027,Bcf Control,5101,Transfer Payments - General,Bcf General And Control
Blackpool Council,1010138,C Cabs,626248,09949,10/03/2023,1806,0,TRADUL,Intergrated Transport Adults,2201,Contract Hire,Community & Env Services
Blackpool Council,1010138,C Cabs,626249,09951,10/03/2023,924,0,TRCHIL,Integrated Transport Children,2201,Contract Hire,Community & Env Services
Blackpool Council,1010138,C Cabs,626250,09950,10/03/2023,425,0,TRADUL,Intergrated Transport Adults,2201,Contract Hire,Community & Env Services
Blackpool Council,1010138,C Cabs,626251,09947,10/03/2023,700,0,TRCHIL,Integrated Transport Children,2201,Contract Hire,Community & Env Services
Blackpool Council,1010138,C Cabs,626252,09948,17/03/2023,560,0,TRCHIL,Integrated Transport Children,2201,Contract Hire,Community & Env Services
Blackpool Council,1010138,C Cabs,626253,09946,10/03/2023,2100,0,JEA,Senior Management,2201,Contract Hire,Children'S Services
Blackpool Council,1010138,C Cabs,626254,09945,10/03/2023,1080,0,TRADUL,Intergrated Transport Adults,2201,Contract Hire,Community & Env Services
Blackpool Council,1010138,C Cabs,626255,09943,13/03/2023,540,0,TRADUL,Intergrated Transport Adults,2201,Contract Hire,Community & Env Services
Blackpool Council,1010138,C Cabs,626256,09942,10/03/2023,870,0,TRCHIL,Integrated Transport Children,2201,Contract Hire,Community & Env Services
Blackpool Council,1010138,C Cabs,626257,09940,10/03/2023,1500,0,TRADUL,Intergrated Transport Adults,2201,Contract Hire,Community & Env Services
Blackpool Council,1010138,C Cabs,626259,09941,10/03/2023,805,0,TRCHIL,Integrated Transport Children,2201,Contract Hire,Community & Env Services
Blackpool Council,1010138,C Cabs,626260,09937,10/03/2023,720,0,JEA,Senior Management,2201,Contract Hire,Children'S Services
Blackpool Council,1010138,C Cabs,626261,09929,10/03/2023,900,0,TRCHIL,Integrated Transport Children,2201,Contract Hire,Community & Env Services
Blackpool Council,1010138,C Cabs,626262,09935,10/03/2023,1125,0,TRCHIL,Integrated Transport Children,2201,Contract Hire,Community & Env Services
Blackpool Council,1138343,Selecta Uk Ltd,626263,220176967,16/03/2023,1081.43,180.24,LEISUR,Leisure Management,3062,Vending Materials,Community & Env Services
Blackpool Council,1138343,Selecta Uk Ltd,626265,220178316,16/03/2023,1405.42,234.24,LEISUR,Leisure Management,3062,Vending Materials,Community & Env Services
Blackpool Council,1099462,Martin & Co Bpool T/A The Letting Partnership,626267,57381,09/03/2023,450,0,HOPB,Housing Options,1301,Rent & Hire Of Premises,Chief Executive
Blackpool Council,1136668,Tc Estates Ltd T/A Stephen Tew Estate Agents,626268,PP2468,09/03/2023,1100,0,HOPB,Housing Options,1301,Rent & Hire Of Premises,Chief Executive
Blackpool Council,1094424,The Networking People,626273,SI112756,09/03/2023,4593.23,765.54,FGAA,Ict Corporate Services,3521,Landline - Line Rental,Resources
Blackpool Council,1094424,The Networking People,626274,SI112757,09/03/2023,31209.78,5201.63,FGAA,Ict Corporate Services,3532,Comp-Running & License Costs,Resources
Blackpool Council,1107790,Taylek Ltd,626275,INV-24049,09/03/2023,363.61,60.6,PJRA,Electrical Infra - Places,3041,Other Materials,Places
Blackpool Council,1117328,Northwest Radio Communications Ltd,626276,68702,09/03/2023,405.6,67.6,SPORTY,Sports & Physical Activity,3012,Other Equipment,Community & Env Services
Blackpool Council,1034222,Teleshore (Uk) Ltd,626280,39402,09/03/2023,1689.6,281.6,CEMCRE,Cems Crems Etc,3041,Other Materials,Governance & Partnerships
Blackpool Council,1011369,Lancashire County Council,626282,5201503113,10/03/2023,17247,0,PU2069,Changing Futures,4501,Private Contractors,Public Health
Blackpool Council,1011369,Lancashire County Council,626283,5201503754,10/03/2023,34494,0,PU2069,Changing Futures,4501,Private Contractors,Public Health
Blackpool Council,1011369,Lancashire County Council,626284,5201503752,10/03/2023,17247,0,PU2069,Changing Futures,4501,Private Contractors,Public Health
Blackpool Council,1118699,Enveco Blackpool Waste Services Ltd,626285,30179420,09/03/2023,462.6,77.1,CEMCRE,Cems Crems Etc,3801,Other Expenses,Governance & Partnerships
Blackpool Council,1137336,Max Fordham Llp,626286,40810,10/03/2023,1819.5,303.25,FMAK,Acquisitions 9/10,3801,Other Expenses,Places
Blackpool Council,1135714,Oh Sourcing Ltd,626287,INV-5349OH,09/03/2023,423,70.5,FK0013,Corporate Health,0791,Temp/Relief (Bureau Staff),Chief Executive
Blackpool Council,1060135,Happy Creative Ltd,626291,H5805,09/03/2023,1890,315,PTA,Economic Development,3315,Marketing,Places
Blackpool Council,1006636,Tts Group Ltd,626292,DE7083161,17/03/2023,407.99,68,LBE,Outreach Worker,3020,Furniture - Purchase,Places
Blackpool Council,1074325,Mangar International,626293,0000235161,24/03/2023,606.25,101.04,MTEAJ,Equipment,5401,Aids To Daily Living,Adult & Families
Blackpool Council,1011369,Lancashire County Council,626294,5201503605,13/03/2023,1839868.11,0,DOMPFI,Domestic Waste & Waste Pfi,4513,Contract 'A',Community & Env Services
Blackpool Council,1075026,Henco International Ltd,626301,12329,09/03/2023,12925.39,2154.23,AEB,Buildings,1301,Rent & Hire Of Premises,Resources
Blackpool Council,1010138,C Cabs,626303,09928,14/03/2023,840,0,TRCHIL,Integrated Transport Children,2201,Contract Hire,Community & Env Services
Blackpool Council,1010138,C Cabs,626304,09926,14/03/2023,952,0,TRCHIL,Integrated Transport Children,2201,Contract Hire,Community & Env Services
Blackpool Council,1010138,C Cabs,626305,09927,14/03/2023,733,0,TRCHIL,Integrated Transport Children,2201,Contract Hire,Community & Env Services
Blackpool Council,1010138,C Cabs,626306,09925,14/03/2023,1035,0,TRCHIL,Integrated Transport Children,2201,Contract Hire,Community & Env Services
Blackpool Council,1010138,C Cabs,626307,09936,10/03/2023,720,0,TRCHIL,Integrated Transport Children,2201,Contract Hire,Community & Env Services
Blackpool Council,1010138,C Cabs,626308,09953,14/03/2023,847,0,TRCHIL,Integrated Transport Children,2201,Contract Hire,Community & Env Services
Blackpool Council,1094355,Les Mills Fitness Uk Ltd,626309,LMUK-SIV-153177,10/03/2023,450,75,LEISUR,Leisure Management,3801,Other Expenses,Community & Env Services
Blackpool Council,1121463,Calder Lodge Limited,626310,1254,20/03/2023,13320,0,CWAN,Children With Additional Needs,4501,Private Contractors,Children'S Services
Blackpool Council,1006940,Smiths Equipment Hire Ltd - Smiths Training,626311,12-1123474,10/03/2023,1092,182,PJNB,Lightpool,3041,Other Materials,Places
Blackpool Council,1121463,Calder Lodge Limited,626312,1257,20/03/2023,13320,0,CWAN,Children With Additional Needs,4501,Private Contractors,Children'S Services
Blackpool Council,1103450,Blackpool Entertainment Company Limited,626314,INV006778,13/03/2023,432,72,HJA,Growth,0915,Conferences,Places
Blackpool Council,1082721,Duxburys Property Consultants Ltd,626315,23332,13/03/2023,840,140,HJI,Growth Investments,3413,Consultants,Places
Blackpool Council,1134332,Epe Reynell Advertising Limited,626319,INV_424809,10/03/2023,252.86,42.14,PLBAAA,Development Control,3806,Advertising-General,Places
Blackpool Council,1117705,Rhea Projects Ltd,626322,LAD2-0553,10/03/2023,36627.73,0,LH2092,Lad 2 Funding,4501,Private Contractors,Public Health
Blackpool Council,1007206,Road Safety Services Ltd,626325,92135,10/03/2023,256.8,42.8,ZM0003,Planning,9624,Rechargeable Works Account,Place Directorate
Blackpool Council,1007206,Road Safety Services Ltd,626326,92138,10/03/2023,1296,216,ZM0003,Planning,9624,Rechargeable Works Account,Place Directorate
Blackpool Council,1094424,The Networking People,626327,SI112760,10/03/2023,13312.32,2218.72,FGAA,Ict Corporate Services,3527,Communication Lines,Resources
Blackpool Council,1025240,Key Engineering Supplies Ltd,626329,58617,13/03/2023,274.5,0,ZM0018,Highways & Engineering,9773,Orders Received Not Invoiced,Blackpool Services
Blackpool Council,1025240,Key Engineering Supplies Ltd,626329,58617,13/03/2023,329.4,54.9,ZM0018,Highways & Engineering,9511A,Stocks Efin,Blackpool Services
Blackpool Council,1007206,Road Safety Services Ltd,626333,92003,10/03/2023,1512,252,ZM0003,Planning,9624,Rechargeable Works Account,Place Directorate
Blackpool Council,1086000,Sr Supply Chain Consultants Ltd,626335,INV-3920,16/03/2023,4030,550,FB0001,Business Services Team,0911,Training Expenses,Resources
Blackpool Council,1011369,Lancashire County Council,626343,5201502664,14/03/2023,254034,0,FR5001,Concessionary Fares,3401,General Services,Budgets Outside Cash Limits
Blackpool Council,1011369,Lancashire County Council,626344,5201502669,14/03/2023,230632,0,FR5001,Concessionary Fares,3401,General Services,Budgets Outside Cash Limits
Blackpool Council,1011369,Lancashire County Council,626345,5201502675,14/03/2023,252093,0,FR5001,Concessionary Fares,3401,General Services,Budgets Outside Cash Limits
Blackpool Council,1011369,Lancashire County Council,626346,5201502686,14/03/2023,247971,0,FR5001,Concessionary Fares,3401,General Services,Budgets Outside Cash Limits
Blackpool Council,1067733,West Lancs Roofing,626347,0917,10/03/2023,438,73,ZM0003,Planning,9624,Rechargeable Works Account,Place Directorate
Blackpool Council,1006771,The Streetlife Trust,626349,29/2023,10/03/2023,8750,0,PU2069,Changing Futures,4501,Private Contractors,Public Health
Blackpool Council,1018610,Itso Ltd,626351,MEM-23/24-BLA003,10/03/2023,1471.2,245.2,PTP,Transport Policy,3711,Subscriptions,Places
Blackpool Council,1138475,Premier Property Lettings,626353,1,10/03/2023,974,0,HOPB,Housing Options,1301,Rent & Hire Of Premises,Chief Executive
Blackpool Council,1138524,REDACTED PERSONAL DATA,626354,1,10/03/2023,1500,0,HOPB,Housing Options,1301,Rent & Hire Of Premises,Chief Executive
Blackpool Council,1060135,Happy Creative Ltd,626356,H5776,10/03/2023,414,69,PU0111,Contain Outbreak Mgmnt Covid,4501,Private Contractors,Public Health
Blackpool Council,1055762,Kompan Ltd,626358,244828,14/03/2023,7875.36,1312.56,PRKDEV,Parks Development,1012,Premises Maint-Priv.Contractor,Community & Env Services
Blackpool Council,1082216,Equifax Plc,626361,C3020264,10/03/2023,806.26,134.38,PYTA,Trading Standards,3313,General Expenses,Community & Env Services
Blackpool Council,1071551,Business In The Community,626368,SIN059936,13/03/2023,19993,0,DDC,Partnerships & Business Dev,3801,Other Expenses,Places
Blackpool Council,1103450,Blackpool Entertainment Company Limited,626369,INV006700,16/03/2023,1040,173.33,FMAK,Acquisitions 9/10,1301,Rent & Hire Of Premises,Places
Blackpool Council,1094355,Les Mills Fitness Uk Ltd,626370,LMUK-SIV-153603,10/03/2023,510,85,LEISUR,Leisure Management,3801,Other Expenses,Community & Env Services
Blackpool Council,1005071,Blackpool Transport Services Limited,626371,I0004651,21/03/2023,2409.6,0,PVA,Other External Funding,3313,General Expenses,Places
Blackpool Council,1044156,Pell Frischmann,626373,64025469,10/03/2023,5519.04,919.84,CTAHHI,Tramway Extention,6506,Consultants Fees,Capital - Commnctn & Regen
Blackpool Council,1118699,Enveco Blackpool Waste Services Ltd,626375,30179760,10/03/2023,13884.05,2314.01,PJHA,"Depot, Management & Admin",3308,Servicing,Places
Blackpool Council,1011675,Bambers Remedial Contractors Limited,626377,18017,10/03/2023,6888.11,0,CX4002,Disabled Facilities Grants,6501,Contract Payments,Capital - Adult Social Care
Blackpool Council,1026811,Stannah Lift Services Ltd,626378,1085523956,10/03/2023,3870,0,CX4002,Disabled Facilities Grants,6501,Contract Payments,Capital - Adult Social Care
Blackpool Council,1026811,Stannah Lift Services Ltd,626379,1085523954,10/03/2023,13261.4,0,CX4002,Disabled Facilities Grants,6501,Contract Payments,Capital - Adult Social Care
Blackpool Council,1026811,Stannah Lift Services Ltd,626380,1085524414,10/03/2023,8424,1404,CXAAA,Local Authority Dwellings,6501,Contract Payments,Capital - Chief Executive
Blackpool Council,1087234,Aitch Tools & Fasteners Ltd,626382,068185,10/03/2023,270,45,ZM0018,Highways & Engineering,9511A,Stocks Efin,Blackpool Services
Blackpool Council,1121728,Arrow County Supplies,626384,4991222,13/03/2023,322.08,0,ZM0018,Highways & Engineering,9773,Orders Received Not Invoiced,Blackpool Services
Blackpool Council,1121728,Arrow County Supplies,626384,4991222,13/03/2023,666.91,111.15,ZM0018,Highways & Engineering,9511A,Stocks Efin,Blackpool Services
Blackpool Council,1026738,Cassidy + Ashton Group Limited,626385,19935,16/03/2023,3948,658,FMAK,Acquisitions 9/10,3801,Other Expenses,Places
Blackpool Council,1005071,Blackpool Transport Services Limited,626386,I0004596,10/03/2023,1698.63,0,FRAEA,Public Transport Contracts,3401,General Services,Community & Env Services
Blackpool Council,1105146,REDACTED PERSONAL DATA,626388,HO22-70,10/03/2023,556.9,0,LIFEVE,Life Events Reg & Care,3401,General Services,Governance & Partnerships
Blackpool Council,1121157,World Healing Centre - Mandus House,626389,28,10/03/2023,1000,0,EP8011,Covid Winter Grant,4501,Private Contractors,Children'S Services
Blackpool Council,1108451,Poulton Pets Ltd T/A Sundown Kennels,626391,BI0088,10/03/2023,2566.2,427.7,PYEP,Environmental Protection,4502,Dog Kennelling Contractor,Community & Env Services
Blackpool Council,1136875,REDACTED PERSONAL DATA,626392,FEB/2023/SS,10/03/2023,1732.7,0,LIFEVE,Life Events Reg & Care,3401,General Services,Governance & Partnerships
Blackpool Council,1012096,Bebcmat - St Mary'S Catholic Academy,626504,MBPSI50,10/03/2023,20000,0,OTHL,Other Learning,6273,Miscellaneous,Children'S Services
Blackpool Council,1010138,C Cabs,626505,09938,14/03/2023,725,0,TRCHIL,Integrated Transport Children,2201,Contract Hire,Community & Env Services
Blackpool Council,1082240,E-On Uk Sustainable Energy Services Ltd,626506,035833,14/03/2023,1450.67,241.78,CGICAG,Town Deal,6513,Street Lighting Works,Capital - Commnctn & Regen
Blackpool Council,1134332,Epe Reynell Advertising Limited,626508,INV_426814,10/03/2023,295.01,49.17,TRA,Traffic Management,4501,Private Contractors,Community & Env Services
Blackpool Council,1114704,Morson Human Resources Ltd,626509,HS485323,13/03/2023,2310,385,CTAHHI,Tramway Extention,6506,Consultants Fees,Capital - Commnctn & Regen
Blackpool Council,1106132,Bridge Education And Training Ltd,626510,12415,13/03/2023,540,90,VIRTUL,Virtual Hub,5555,Educational Support,Children'S Services
Blackpool Council,1106132,Bridge Education And Training Ltd,626511,12490,10/03/2023,540,90,VIRTUL,Virtual Hub,5555,Educational Support,Children'S Services
Blackpool Council,1010104,Canon (Uk ) Ltd,626512,2308800035460,14/03/2023,325.94,54.32,POA,Office Services,3308,Servicing,Places
Blackpool Council,1087234,Aitch Tools & Fasteners Ltd,626513,068134,10/03/2023,752,0,ZM0018,Highways & Engineering,9773,Orders Received Not Invoiced,Blackpool Services
Blackpool Council,1087234,Aitch Tools & Fasteners Ltd,626513,068134,10/03/2023,902.4,150.4,ZM0018,Highways & Engineering,9511A,Stocks Efin,Blackpool Services
Blackpool Council,1043424,Aivaf Limited,626514,3621,10/03/2023,3960,660,CGTACA,Museum,6517,Equipment,Capital - Commnctn & Regen
Blackpool Council,1094882,Open Award Group (Duke Of Edinburgh'S Award),626515,EDDIV18,10/03/2023,628,0,EDDIV,Education Diversity,3303,Games/Visits,Children'S Services
Blackpool Council,1111134,Jean Martin,626519,23,10/03/2023,4125,0,MNGMT,Central Management,3413,Consultants,Children'S Services
Blackpool Council,1015228,Virgin Media Payments Limited,626520,806981-242,10/03/2023,340.55,56.76,FGAA,Ict Corporate Services,3521,Landline - Line Rental,Resources
Blackpool Council,1006771,The Streetlife Trust,626521,32/2022-23,10/03/2023,10000,0,EP8011,Covid Winter Grant,4501,Private Contractors,Children'S Services
Blackpool Council,1078508,Le Mark Group,626522,126023,10/03/2023,494.21,82.37,PJOA,Commercial & Marketing,3041,Other Materials,Places
Blackpool Council,1137813,Danielle Camm,626524,002,10/03/2023,500,0,NA1271,Management,4501,Private Contractors,Children'S Services
Blackpool Council,1137813,Danielle Camm,626524,002,10/03/2023,1100,0,NA1371,Management,4501,Private Contractors,Children'S Services
Blackpool Council,1137813,Danielle Camm,626524,002,10/03/2023,500,0,NA1471,South Family Hub,4501,Private Contractors,Children'S Services
Blackpool Council,1137176,Christina Adams T/A Archie'S Worlds,626525,AWS00103,10/03/2023,400,0,NA1371,Management,4501,Private Contractors,Children'S Services
Blackpool Council,1121400,REDACTED PERSONAL DATA,626526,919,13/03/2023,3700,0,AHHBA,Blackpool Museum,3801,Other Expenses,Places
Blackpool Council,1054167,Phf Training,626527,57-23,13/03/2023,995,0,FBBBA,Audit & Investigations,3605,Confs & Short Courses,Resources
Blackpool Council,1008620,Ppg Architectural Coatings Uk Limited,626529,4483505739,10/03/2023,279.67,46.61,ZM0018,Highways & Engineering,9511A,Stocks Efin,Blackpool Services
Blackpool Council,1121796,Smart Tech Security,626533,10198,16/03/2023,720,120,FMAK,Acquisitions 9/10,2002,Repairs And Maintenance,Places
Blackpool Council,1087234,Aitch Tools & Fasteners Ltd,626535,068153,13/03/2023,284,0,ZM0018,Highways & Engineering,9773,Orders Received Not Invoiced,Blackpool Services
Blackpool Council,1087234,Aitch Tools & Fasteners Ltd,626535,068153,13/03/2023,340.8,56.8,ZM0018,Highways & Engineering,9511A,Stocks Efin,Blackpool Services
Blackpool Council,1014009,Bri-Met Ltd,626538,54109,10/03/2023,122845.25,20474.21,FMAK,Acquisitions 9/10,2002,Repairs And Maintenance,Places
Blackpool Council,1110858,Boditrax Technologies Ltd,626547,INV-2255,13/03/2023,264,44,LEISUR,Leisure Management,3801,Other Expenses,Community & Env Services
Blackpool Council,1049385,Fylde Coast Ymca,626548,80001340,13/03/2023,1170,195,FK0071,Corporate Training,3426,Course Fees,Chief Executive
Blackpool Council,1049385,Fylde Coast Ymca,626549,80001342,13/03/2023,900,150,FK0071,Corporate Training,3426,Course Fees,Chief Executive
Blackpool Council,1011369,Lancashire County Council,626551,5201504051,14/03/2023,2500,0,PLAAAA,Dev Plang (Incl Plang Policy),3401,General Services,Places
Blackpool Council,1054860,Entre-Prises Uk Limited,626553,INC-00020283,13/03/2023,888,148,LEISUR,Leisure Management,2002,Repairs And Maintenance,Community & Env Services
Blackpool Council,1018711,Yorkshire Building Society,626555,00016591,13/03/2023,1725,0,PJAA,"Erection, Operation & Dismantl",3308,Servicing,Places
Blackpool Council,1136228,Sensory Tots,626556,5,13/03/2023,300,0,NA1371,Management,4501,Private Contractors,Children'S Services
Blackpool Council,1018711,Yorkshire Building Society,626557,00016533,13/03/2023,769.25,0,PJAA,"Erection, Operation & Dismantl",3308,Servicing,Places
Blackpool Council,1040364,Conlon Construction Ltd,626558,11307,10/03/2023,153919.5,25653.25,CGTACA,Museum,6501,Contract Payments,Capital - Commnctn & Regen
Blackpool Council,1040364,Conlon Construction Ltd,626558,11307,10/03/2023,3967,0,ZF0001,"Insurance,Dso,Banking",97B6,Retention Monies - Cap Trsfr,Total Reconciliations
Blackpool Council,1040364,Conlon Construction Ltd,626559,11306,10/03/2023,122145.97,20357.66,CS01DH,A P S Capital Works,6501,Contract Payments,Capital - Adult Social Care
Blackpool Council,1040364,Conlon Construction Ltd,626559,11306,10/03/2023,19404.78,0,ZF0001,"Insurance,Dso,Banking",97A6,Retention Monies - Capital,Total Reconciliations
Blackpool Council,1008454,Police & Crime Commissioner For Lancashire,626561,7500014903,13/03/2023,5201.96,0,BSTPRJ,Better Start Projects,3401,General Services,Better Start Projects
Blackpool Council,1117082,Kaleidoscope Project,626565,6026,14/03/2023,1800,0,PU2095,Rough Sleepers & At Risk,4501,Private Contractors,Public Health
Blackpool Council,1117082,Kaleidoscope Project,626566,6113,14/03/2023,900,0,PU2095,Rough Sleepers & At Risk,4501,Private Contractors,Public Health
Blackpool Council,1129566,Phronetix Ltd,626567,2223/BCPH/12,13/03/2023,4800,0,PU0111,Contain Outbreak Mgmnt Covid,4501,Private Contractors,Public Health
Blackpool Council,1129566,Phronetix Ltd,626568,2223/BCPH/11,13/03/2023,4800,0,PU0111,Contain Outbreak Mgmnt Covid,4501,Private Contractors,Public Health
Blackpool Council,1087805,Blackpool Fc Community Trust,626656,BFCCT1478,14/03/2023,15000,0,PU2059,Behavioural Activation,4501,Private Contractors,Public Health
Blackpool Council,1011369,Lancashire County Council,626657,5201503795,14/03/2023,5544.65,0,EDDIV,Education Diversity,3303,Games/Visits,Children'S Services
Blackpool Council,1138518,Oak Team Education Ltd,626658,192,13/03/2023,1780.8,296.8,VIRTUL,Virtual Hub,5555,Educational Support,Children'S Services
Blackpool Council,1083563,Joanna Bradley-Johnson T/A Jojingles,626659,101,13/03/2023,420,0,NA1271,Management,4501,Private Contractors,Children'S Services
Blackpool Council,1077963,Electricity Northwest Ltd,626660,5500267294/A,13/03/2023,999.2,166.53,AEB,Buildings,1202,Electricity,Resources
Blackpool Council,1006357,Ulverscroft Large Print Books Limited,626661,PF354,13/03/2023,4932,0,LBB,Central Library,3304,Books And Periodicals,Places
Blackpool Council,1007487,Post Office Ltd,626664,200BLACKPOOL07032023,13/03/2023,10000,0,FC1802,Social Fund - Client,5209,Crisis/Emergency Support,Resources
Blackpool Council,1006357,Ulverscroft Large Print Books Limited,626665,PF355,13/03/2023,2038.8,339.8,LBB,Central Library,3310,Sound Recordings,Places
Blackpool Council,1071925,Groundwork Cheshire Lancs And Merseyside,626666,0000004189,13/03/2023,1550.64,258.44,AEB,Buildings,4501,Private Contractors,Resources
Blackpool Council,1038314,Century Plastics Ltd,626667,96149173,13/03/2023,1724.3,0,ZM0018,Highways & Engineering,9773,Orders Received Not Invoiced,Blackpool Services
Blackpool Council,1038314,Century Plastics Ltd,626667,96149173,13/03/2023,2069.16,344.86,ZM0018,Highways & Engineering,9511A,Stocks Efin,Blackpool Services
Blackpool Council,1111234,Cbre Ltd,626668,50BCD00091880,13/03/2023,11910,1985,CGICAF,G&P Prudential Schemes,6506,Consultants Fees,Capital - Commnctn & Regen
Blackpool Council,1133538,REDACTED PERSONAL DATA,626669,0931996,13/03/2023,300,0,PJHA,"Depot, Management & Admin",3308,Servicing,Places
Blackpool Council,1009824,Acorn Care & Education Ltd,626670,91974,20/03/2023,11734.51,0,CWAN,Children With Additional Needs,4501,Private Contractors,Children'S Services
Blackpool Council,1099262,Nhs Blackpool & Nhs Lancs & South Cumbria Icb,626672,7440000510,14/03/2023,717289,0,LM9027,Bcf Control,5101,Transfer Payments - General,Bcf General And Control
Blackpool Council,1008464,Lancaster City Council,626675,SDI117223,13/03/2023,10000,0,LH2092,Lad 2 Funding,4501,Private Contractors,Public Health
Blackpool Council,1006269,W.F. Howes Ltd,626680,3591,13/03/2023,2433,0,LBB,Central Library,3304,Books And Periodicals,Places
Blackpool Council,1037404,Family Rights Group,626681,INV-0545,13/03/2023,1100,0,SBOARD,Springboard,4501,Private Contractors,Children'S Services
Blackpool Council,1011896,Capita Business Services Ltd,626682,6004138853,14/03/2023,7200,1200,FBBEA,"Income, Recovery & Debtors",3532,Comp-Running & License Costs,Resources
Blackpool Council,1011896,Capita Business Services Ltd,626682,6004138853,14/03/2023,8677.2,1446.2,FCACA,Benefits - Admin,3532,Comp-Running & License Costs,Resources
Blackpool Council,1010138,C Cabs,626683,09922,13/03/2023,597.8,0,EDDIV,Education Diversity,2201,Contract Hire,Children'S Services
Blackpool Council,1010138,C Cabs,626684,09923,13/03/2023,515.3,0,EDDIV,Education Diversity,2201,Contract Hire,Children'S Services
Blackpool Council,1096256,Henry,626685,INV-19538,13/03/2023,13582,0,SBOARD,Springboard,3401,General Services,Children'S Services
Blackpool Council,1102933,Bolinda Uk Ltd,626686,36226,14/03/2023,4032.29,672.05,LBB,Central Library,3310,Sound Recordings,Places
Blackpool Council,1097234,Ieg4 Limited,626687,IEG4002227,13/03/2023,11700,1950,FC1801,Social Fund - Admin,3532,Comp-Running & License Costs,Resources
Blackpool Council,1008385,Leeds City Council,626689,6113308039,13/03/2023,1400,0,PJW,Management - Places - Illumina,3401,General Services,Places
Blackpool Council,1009177,Dr S A Shearer & Partners-Glenroyd Medical,626691,LYVW/00000104,13/03/2023,365,0,PUBH02,Sexual Health Services-Contrac,4501,Private Contractors,Public Health
Blackpool Council,1127919,REDACTED PERSONAL DATA,626694,2100,13/03/2023,775,0,AHHBA,Blackpool Museum,3801,Other Expenses,Places
Blackpool Council,1086456,Adelaide Street Family Practice,626695,LYRL/00000163,13/03/2023,3383,0,PUBH02,Sexual Health Services-Contrac,4501,Private Contractors,Public Health
Blackpool Council,1013245,St Pauls Medical Centre,626696,LYTK/00000128,13/03/2023,1090,0,PUBH18,Stop Smoking Services & Interv,4501,Private Contractors,Public Health
Blackpool Council,1106826,Pams Assessment Ltd,626700,3184,13/03/2023,540,90,JA0505,Children'S Training,3426,Course Fees,Children'S Services
Blackpool Council,1054541,P&A Medical Ltd,626701,44292,22/03/2023,254.4,42.4,FK0013,Corporate Health,3065,Drugs & Medical Requisites,Chief Executive
Blackpool Council,1090628,The Furniture Recycling Group,626702,INV33688,20/03/2023,341.88,56.98,CWASTE,Commercial Waste,4501,Private Contractors,Community & Env Services
Blackpool Council,1012071,Bethell Construction Limited,626703,18692,13/03/2023,5811.66,968.61,ENGINE,Engineering,1012,Premises Maint-Priv.Contractor,Community & Env Services
Blackpool Council,1012071,Bethell Construction Limited,626704,18697,13/03/2023,5131.46,855.24,ENGINE,Engineering,1012,Premises Maint-Priv.Contractor,Community & Env Services
Blackpool Council,1012071,Bethell Construction Limited,626705,18691,13/03/2023,1932.07,322.01,ENGINE,Engineering,1012,Premises Maint-Priv.Contractor,Community & Env Services
Blackpool Council,1012071,Bethell Construction Limited,626706,18696,13/03/2023,1834.07,305.68,ENGINE,Engineering,1012,Premises Maint-Priv.Contractor,Community & Env Services
Blackpool Council,1012071,Bethell Construction Limited,626707,18695,13/03/2023,2262.73,377.12,ENGINE,Engineering,1012,Premises Maint-Priv.Contractor,Community & Env Services
Blackpool Council,1012071,Bethell Construction Limited,626708,18694,13/03/2023,1263.05,210.51,ENGINE,Engineering,1012,Premises Maint-Priv.Contractor,Community & Env Services
Blackpool Council,1012071,Bethell Construction Limited,626709,18690,13/03/2023,871.2,145.2,ENGINE,Engineering,1012,Premises Maint-Priv.Contractor,Community & Env Services
Blackpool Council,1012071,Bethell Construction Limited,626710,18693,13/03/2023,511.12,85.19,ENGINE,Engineering,1012,Premises Maint-Priv.Contractor,Community & Env Services
Blackpool Council,1011896,Capita Business Services Ltd,626713,6004138643,14/03/2023,74583.44,12430.57,FBBEA,"Income, Recovery & Debtors",3532,Comp-Running & License Costs,Resources
Blackpool Council,1011896,Capita Business Services Ltd,626713,6004138643,14/03/2023,35077,5846.17,FCACA,Benefits - Admin,3532,Comp-Running & License Costs,Resources
Blackpool Council,1011896,Capita Business Services Ltd,626713,6004138643,14/03/2023,2811.81,468.63,MPB,Edc - Economic Dev Company,3401,General Services,Places
Blackpool Council,1010619,Askews And Holts Library Services Ltd,626714,6844312,13/03/2023,414.96,0,LBB,Central Library,3304,Books And Periodicals,Places
Blackpool Council,1010619,Askews And Holts Library Services Ltd,626716,6844314,16/03/2023,271.13,0,LBB,Central Library,3304,Books And Periodicals,Places
Blackpool Council,1102823,Wilde Consultants Limited,626721,24703,13/03/2023,59350.34,9891.72,CTACBA,Ltp Scheme 21/22,6501,Contract Payments,Capital - Commnctn & Regen
Blackpool Council,1121417,Oxford University Innovation Limited,626722,0000044297,13/03/2023,13099.5,2183.25,BSTPRJ,Better Start Projects,3401,General Services,Better Start Projects
Blackpool Council,1123601,Sporting Nrg Ltd,626728,SI-6214,13/03/2023,1808.27,0,EDDIV,Education Diversity,4101,Other Local Authorities,Children'S Services
Blackpool Council,1090874,Advanced Health And Care Limited,626729,INV-71122,13/03/2023,1514.08,252.35,APDBAB,Homecare,2201,Contract Hire,Adult & Families
Blackpool Council,1090874,Advanced Health And Care Limited,626730,INV-77644,13/03/2023,1514.08,252.35,APDBAB,Homecare,2201,Contract Hire,Adult & Families
Blackpool Council,1090874,Advanced Health And Care Limited,626731,INV-58803,13/03/2023,1514.08,252.35,APDBAB,Homecare,2201,Contract Hire,Adult & Families
Blackpool Council,1137196,Passenger Transport Publishing Ltd,626736,PT01696,13/03/2023,480,80,PTP,Transport Policy,0921,Advertising (Staff Vac.),Places
Blackpool Council,1103450,Blackpool Entertainment Company Limited,626741,INV006713,14/03/2023,24000,4000,FMAK,Acquisitions 9/10,1301,Rent & Hire Of Premises,Places
Blackpool Council,1103450,Blackpool Entertainment Company Limited,626742,INV006712,14/03/2023,12000,2000,FMAK,Acquisitions 9/10,1301,Rent & Hire Of Premises,Places
Blackpool Council,1103450,Blackpool Entertainment Company Limited,626743,INV006711,14/03/2023,12000,2000,FMAK,Acquisitions 9/10,1301,Rent & Hire Of Premises,Places
Blackpool Council,1103450,Blackpool Entertainment Company Limited,626744,INV006715,14/03/2023,12000,2000,FMAK,Acquisitions 9/10,1301,Rent & Hire Of Premises,Places
Blackpool Council,1103450,Blackpool Entertainment Company Limited,626745,INV006714,14/03/2023,12000,2000,FMAK,Acquisitions 9/10,1301,Rent & Hire Of Premises,Places
Blackpool Council,1068348,Brady Corp Ltd/Safety Shop,626746,9303594012,14/03/2023,2374.51,395.75,LEISUR,Leisure Management,3801,Other Expenses,Community & Env Services
Blackpool Council,1007945,The Fostering Network,626836,RINV/00009419,20/03/2023,1345.75,162.29,JBR,Lac - Placements,3711,Subscriptions,Children'S Services
Blackpool Council,1012071,Bethell Construction Limited,626837,18698,14/03/2023,13212.59,2202.1,ENGINE,Engineering,1012,Premises Maint-Priv.Contractor,Community & Env Services
Blackpool Council,1070036,Gaist Solutions Ltd,626843,11645,14/03/2023,80916,13486,TRB,Maintenance & Works,4501,Private Contractors,Community & Env Services
Blackpool Council,1008525,Kingswood Office Supplies Limited,626846,454960,14/03/2023,865.62,144.27,AER,Dual Use Properties,3302,Stationery,Resources
Blackpool Council,1089812,Rider Levett Bucknall Uk Limited,626849,RLB-PJI-009653,14/03/2023,1260,210,FH1000,Business Loan Overheads,3413,Consultants,Budgets Outside Cash Limits
Blackpool Council,1079992,J Fisher & Sons Ltd,626850,66825,15/03/2023,2538,423,SCHEME,Highways Schemes,1012,Premises Maint-Priv.Contractor,Community & Env Services
Blackpool Council,1011714,Michael Hope Haulage Limited,626851,001617,15/03/2023,2304,384,SCHEME,Highways Schemes,1012,Premises Maint-Priv.Contractor,Community & Env Services
Blackpool Council,1013064,Tarmac Lafarge Trading Limited,626856,9046604607,15/03/2023,4699.63,783.27,ENGINE,Engineering,3041,Other Materials,Community & Env Services
Blackpool Council,1013064,Tarmac Lafarge Trading Limited,626858,9046603119,16/03/2023,4728.79,788.13,ENGINE,Engineering,3041,Other Materials,Community & Env Services
Blackpool Council,1131037,Technology One (Uk) Limited,626860,U005938,14/03/2023,23281.02,3880.17,CGRESO,Resources Schemes,6526,I.T. Software Purchase,Capital - Resources
Blackpool Council,1087234,Aitch Tools & Fasteners Ltd,626861,068419,14/03/2023,526.8,87.8,BEACHP,Beach Patrol,3010,Safety Equipment,Places
Blackpool Council,1006471,T-Print Ltd,626862,0000448106,16/03/2023,2478.6,413.1,PRC,Visitor Services,3808,Souvenirs & Gifts,Places
Blackpool Council,1006471,T-Print Ltd,626863,0000448107,16/03/2023,725.7,120.95,PRC,Visitor Services,3808,Souvenirs & Gifts,Places
Blackpool Council,1098569,This Named Company Ltd T/A The Card Network,626865,INV-012734,22/03/2023,353.82,58.97,AER,Dual Use Properties,0I91,Other,Resources
Blackpool Council,1111234,Cbre Ltd,626866,50BCD00092212,16/03/2023,11910,1985,CGICAF,G&P Prudential Schemes,6506,Consultants Fees,Capital - Commnctn & Regen
Blackpool Council,1065213,Wash Studio Limited,626867,4733,16/03/2023,360,60,AHM,Arts Miscellaneous,3801,Other Expenses,Places
Blackpool Council,1118699,Enveco Blackpool Waste Services Ltd,626868,30179432,14/03/2023,9269,1544.83,PJHA,"Depot, Management & Admin",3308,Servicing,Places
Blackpool Council,1129132,Mhr International Uk Ltd,626870,SIN173256,16/03/2023,40500,6750,CGRESO,Resources Schemes,6526,I.T. Software Purchase,Capital - Resources
Blackpool Council,1124504,Blackpool Subscription Bowling,626871,002,14/03/2023,300,0,AHHBA,Blackpool Museum,3801,Other Expenses,Places
Blackpool Council,1058510,Lifeline Language Services Ltd,626873,1222015,20/03/2023,258,43,JA1531,Independent Reviewing Officers,0981,Professional Fees,Children'S Services
Blackpool Council,1098193,Westminster Primary Academy,626874,6000000128,14/03/2023,8500,0,BSTPRJ,Better Start Projects,3401,General Services,Better Start Projects
Blackpool Council,1071928,Civica Uk Limited,626875,C/XP267422,22/03/2023,264,44,BCA,Corp And Member Services,0911,Training Expenses,Governance & Partnerships
Blackpool Council,1071928,Civica Uk Limited,626876,C/XP267421,21/03/2023,264,44,BGA,Electoral Services,0911,Training Expenses,Governance & Partnerships
Blackpool Council,1118568,Supply Chain Coordination Ltd (Sccl),626877,1123285418,14/03/2023,495.36,82.56,EP8007,Tic Maternity Pathway,3401,General Services,Tic Maternity Pathway
Blackpool Council,1118699,Enveco Blackpool Waste Services Ltd,626878,30179417,14/03/2023,751.87,125.31,PARADM,Parking Administration,3801,Other Expenses,Budgets Outside Cash Limits
Blackpool Council,1118715,Alison Black Ltd T/A Sportmax,626879,123966,14/03/2023,264.6,44.1,LEISUR,Leisure Management,3801,Other Expenses,Community & Env Services
Blackpool Council,1138340,Full Colour Printers Limited T/A Brightprint,626880,237244,14/03/2023,2040,340,FP4801,Bus Shelters,3301,Printing,Places
Blackpool Council,1094355,Les Mills Fitness Uk Ltd,626881,LMUK-SIV-147659,14/03/2023,450,75,LEISUR,Leisure Management,3801,Other Expenses,Community & Env Services
Blackpool Council,1086156,Water Saving Techniques Limited,626884,SI-5635,16/03/2023,7468.78,1244.8,PARADE,Parades & Seawall,1012,Premises Maint-Priv.Contractor,Community & Env Services
Blackpool Council,1006143,Yorkshire Purchasing Organisation,626887,SI-2453174,23/03/2023,642.96,107.16,NA1371,Management,3001,Office Equipment Purchase,Children'S Services
Blackpool Council,1086156,Water Saving Techniques Limited,626888,SI-5634,16/03/2023,5460,910,ENGINE,Engineering,1012,Premises Maint-Priv.Contractor,Community & Env Services
Blackpool Council,1121719,Eb Charging Ltd,626891,INV-C-2453,16/03/2023,3148.2,524.7,CGICAD,Enterprise Zone,6517,Equipment,Capital - Commnctn & Regen
Blackpool Council,1136654,Randstad Solutions Ltd,626893,30111330,15/03/2023,349.06,58.18,VIRTUL,Virtual Hub,5555,Educational Support,Children'S Services
Blackpool Council,1084671,Autocross Euroshel Limited,626895,8781,16/03/2023,7445.1,1240.85,CTACBA,Ltp Scheme 21/22,6518,Miscellaneous - Capital,Capital - Commnctn & Regen
Blackpool Council,1011806,A D J Doors Ltd T/A Keman Roller Shutters,626896,9930,15/03/2023,6438,1073,BEACHP,Beach Patrol,2001,Purchases,Places
Blackpool Council,1107156,The Blackpool Pier Company Ltd,626897,INV03276,27/03/2023,5190.01,865.01,ZX0501,"Tourism,Promotions & Conferen.",9687,Tourism Sale Of Tickets,Place Directorate
Blackpool Council,1008878,Cipfa Business Limited,626898,3167931,15/03/2023,2424,404,FBBEA,"Income, Recovery & Debtors",3711,Subscriptions,Resources
Blackpool Council,1008878,Cipfa Business Limited,626898,3167931,15/03/2023,2424,404,FCACA,Benefits - Admin,3711,Subscriptions,Resources
Blackpool Council,1102016,Critiqom Limited,626899,084029,15/03/2023,2865.35,477.56,FBBEA,"Income, Recovery & Debtors",3511,Postages,Resources
Blackpool Council,1102016,Critiqom Limited,626900,084030,15/03/2023,599.69,99.95,FBBEA,"Income, Recovery & Debtors",3301,Printing,Resources
Blackpool Council,1098897,Mike Kidd Horse Power Ltd,626901,0024,15/03/2023,420,0,VIRTUL,Virtual Hub,5555,Educational Support,Children'S Services
Blackpool Council,1138073,Swk Consultancy And Training Ltd,626904,00021,15/03/2023,6000,0,ALEARN,Adult Learning,3413,Consultants,Places
Blackpool Council,1116762,Dt Electrical (Uk) Ltd,626906,IN3442,16/03/2023,5679.12,946.52,PJRA,Electrical Infra - Places,3308,Servicing,Places
Blackpool Council,1118699,Enveco Blackpool Waste Services Ltd,626908,30179435,15/03/2023,356.46,59.41,MUSIC,Music & Cultural Education,2201,Contract Hire,Children'S Services
Blackpool Council,1104666,Lfx,626909,00003,15/03/2023,750,0,LEISUR,Leisure Management,3801,Other Expenses,Community & Env Services
Blackpool Council,1012096,Bebcmat - St Mary'S Catholic Academy,626912,MBPSI57,15/03/2023,1562.66,0,MNGMT,Central Management,5555,Educational Support,Children'S Services
Blackpool Council,1009079,Pearson Education Ltd,626918,243834-E2306,15/03/2023,1216.8,0,EDDIV,Education Diversity,3404,Exam Fees & Exps (Sch),Children'S Services
Blackpool Council,1098897,Mike Kidd Horse Power Ltd,626919,0059,15/03/2023,2100,0,EDDIV,Education Diversity,4101,Other Local Authorities,Children'S Services
Blackpool Council,1007717,Ocr,626920,101689978,15/03/2023,508.8,0,EDDIV,Education Diversity,3404,Exam Fees & Exps (Sch),Children'S Services
Blackpool Council,1120720,5 Ways Boxing Academy Cic,626921,23/1,15/03/2023,1280,0,EDDIV,Education Diversity,4101,Other Local Authorities,Children'S Services
Blackpool Council,1114036,Odlings Ltd T/A The Columbaria Co,626928,INV0088955,16/03/2023,706.8,117.8,CEMCRE,Cems Crems Etc,3454,Remove And Refix Memorials,Governance & Partnerships
Blackpool Council,1040498,Savoy Timber Ltd,626930,94168,21/03/2023,460,76.67,CEMCRE,Cems Crems Etc,3801,Other Expenses,Governance & Partnerships
Blackpool Council,1049861,Nal Ltd,626931,0000117731,16/03/2023,1597.68,266.28,SCHEME,Highways Schemes,3041,Other Materials,Community & Env Services
Blackpool Council,1108651,Coolsilk Property& Investment Ltd,626934,1626,15/03/2023,413.4,68.9,AHHBA,Blackpool Museum,3801,Other Expenses,Places
Blackpool Council,1090902,Anderson & Sons Contracting & Turf Care,626936,272,15/03/2023,8394,1399,TRB,Maintenance & Works,4501,Private Contractors,Community & Env Services
Blackpool Council,1006143,Yorkshire Purchasing Organisation,626940,SI-2481876,16/03/2023,543.72,90.62,LBF,Library Management,3041,Other Materials,Places
Blackpool Council,1006143,Yorkshire Purchasing Organisation,626941,SI-2482032,16/03/2023,1151.64,191.94,LEISUR,Leisure Management,3020,Furniture - Purchase,Community & Env Services
Blackpool Council,1010069,Caterware Ltd,626944,1309,15/03/2023,1265.64,210.94,PUBH24,Children'S Public Health,4501,Private Contractors,Public Health
Blackpool Council,1107659,Healthwork Ltd,626947,P0061870,16/03/2023,840,140,FK0013,Corporate Health,0914,Training Exp-Seminars,Chief Executive
Blackpool Council,1138248,REDACTED PERSONAL DATA,626948,BL-01,20/03/2023,1750,0,AHHBA,Blackpool Museum,3801,Other Expenses,Places
Blackpool Council,1133451,Claremont Park Community Centre Cio,626949,GRANTFUNDINGJAN2023,16/03/2023,1400,0,EP8011,Covid Winter Grant,4501,Private Contractors,Children'S Services
Blackpool Council,1120588,G2 Recruitment Solutions,626951,117091,16/03/2023,1554,259,HOPB,Housing Options,4004,Management Fees,Chief Executive
Blackpool Council,1120588,G2 Recruitment Solutions,626952,117442,16/03/2023,1554,259,HOPB,Housing Options,4004,Management Fees,Chief Executive
Blackpool Council,1120588,G2 Recruitment Solutions,626953,117813,16/03/2023,1554,259,HOPB,Housing Options,4004,Management Fees,Chief Executive
Blackpool Council,1120588,G2 Recruitment Solutions,626954,118278,16/03/2023,1554,259,HOPB,Housing Options,4004,Management Fees,Chief Executive
Blackpool Council,1120588,G2 Recruitment Solutions,626955,115733,16/03/2023,1596,266,HOPB,Housing Options,4004,Management Fees,Chief Executive
Blackpool Council,1069760,W Robinson (Bils) Ltd,626957,88641,21/03/2023,441.07,0,ZM0018,Highways & Engineering,9773,Orders Received Not Invoiced,Blackpool Services
Blackpool Council,1069760,W Robinson (Bils) Ltd,626957,88641,21/03/2023,529.28,88.21,ZM0018,Highways & Engineering,9511A,Stocks Efin,Blackpool Services
Blackpool Council,1058510,Lifeline Language Services Ltd,626959,1122075,20/03/2023,284.4,47.4,JA1531,Independent Reviewing Officers,0981,Professional Fees,Children'S Services
Blackpool Council,1058510,Lifeline Language Services Ltd,626960,1222016,16/03/2023,270,45,JEA,Senior Management,3419,Interpreters Fees,Children'S Services
Blackpool Council,1106288,Blackpool Housing Company Ltd,626961,9160,16/03/2023,21633.88,0,AEB,Buildings,1301,Rent & Hire Of Premises,Resources
Blackpool Council,1066555,Adcs Services Ltd,626962,SI-36305,16/03/2023,2236.8,372.8,EM1001,Departmental Management,3711,Subscriptions,Children'S Services
Blackpool Council,1026738,Cassidy + Ashton Group Limited,627005,19962,16/03/2023,300,50,CGICAD,Enterprise Zone,6506,Consultants Fees,Capital - Commnctn & Regen
Blackpool Council,1032438,Civica Election Services Ltd,627017,CES2300087,16/03/2023,5511,0,BGA,Electoral Services,0921,Advertising (Staff Vac.),Governance & Partnerships
Blackpool Council,1020550,Hays Specialist Recruitment Ltd,627018,1012841836,17/03/2023,1994.62,332.44,HJA,Growth,0791,Temp/Relief (Bureau Staff),Places
Blackpool Council,1020550,Hays Specialist Recruitment Ltd,627019,1012842256,17/03/2023,828,138,HJA,Growth,0791,Temp/Relief (Bureau Staff),Places
Blackpool Council,1006940,Smiths Equipment Hire Ltd - Smiths Training,627020,12-1143134,16/03/2023,390,65,PJAA,"Erection, Operation & Dismantl",3006,Hire Of Equipment,Places
Blackpool Council,1057663,Wilde Recruitment Ltd,627022,42879,16/03/2023,552.38,92.06,CTAHHA,Tramway Emergency Works,6501,Contract Payments,Capital - Commnctn & Regen
Blackpool Council,1138576,When The Adults Change Limited,627023,INV-1086,16/03/2023,2500,0,MNGMT,Central Management,0911,Training Expenses,Children'S Services
Blackpool Council,1032438,Civica Election Services Ltd,627026,CES23_525,21/03/2023,340.16,56.69,BGA,Electoral Services,3511,Postages,Governance & Partnerships
Blackpool Council,1000009,Blackpool & The Fylde College,627027,T0017126,17/03/2023,1260,0,APCBBE,Extra Support,0911,Training Expenses,Adult & Families
Blackpool Council,1090874,Advanced Health And Care Limited,627028,INV-89188,16/03/2023,1514.08,252.35,APDBAB,Homecare,2201,Contract Hire,Adult & Families
Blackpool Council,1117428,Anthony Collins Solicitors Llp,627033,4136870,16/03/2023,516.6,86.1,BEA,Democratic Services & Admin,3801,Other Expenses,Governance & Partnerships
Blackpool Council,1025240,Key Engineering Supplies Ltd,627076,58796,21/03/2023,958.72,0,ZM0018,Highways & Engineering,9773,Orders Received Not Invoiced,Blackpool Services
Blackpool Council,1025240,Key Engineering Supplies Ltd,627076,58796,21/03/2023,1150.47,191.75,ZM0018,Highways & Engineering,9511A,Stocks Efin,Blackpool Services
Blackpool Council,1088636,Tarmac Building Products Ltd,627083,9500046973,16/03/2023,1420,0,ZM0018,Highways & Engineering,9773,Orders Received Not Invoiced,Blackpool Services
Blackpool Council,1088636,Tarmac Building Products Ltd,627083,9500046973,16/03/2023,1704,284,ZM0018,Highways & Engineering,9511A,Stocks Efin,Blackpool Services
Blackpool Council,1071928,Civica Uk Limited,627084,M/HG111927,16/03/2023,6229.07,1038.18,HOPB,Housing Options,4004,Management Fees,Chief Executive
Blackpool Council,1119242,Katherine Brady All Things Told,627089,076,16/03/2023,4675,0,CGTACA,Museum,6517,Equipment,Capital - Commnctn & Regen
Blackpool Council,1000009,Blackpool & The Fylde College,627091,T0017125,21/03/2023,1080,0,APCBBE,Extra Support,0911,Training Expenses,Adult & Families
Blackpool Council,1105146,REDACTED PERSONAL DATA,627093,HO22-80,16/03/2023,591.9,0,LIFEVE,Life Events Reg & Care,3401,General Services,Governance & Partnerships
Blackpool Council,1005067,Blackpool Pleasure Beach Ltd,627094,23445,16/03/2023,300000,50000,PPA,Head Of Tourism Services,3401,General Services,Places
Blackpool Council,1037404,Family Rights Group,627096,INV-0560,16/03/2023,6000,1000,SBOARD,Springboard,4501,Private Contractors,Children'S Services
Blackpool Council,1135714,Oh Sourcing Ltd,627097,INV-5373OH,16/03/2023,423,70.5,FK0013,Corporate Health,0791,Temp/Relief (Bureau Staff),Chief Executive
Blackpool Council,1014426,Jacobs Uk Limited,627101,B550X016-008,20/03/2023,23647.44,3941.24,CPAABA,Shoreline,6501,Contract Payments,Capital - Comm & Environ
Blackpool Council,1091610,Communicate Slt Cic,627103,INV-0771,16/03/2023,458.34,0,NA1371,Management,4501,Private Contractors,Children'S Services
Blackpool Council,1136841,Kazek Kowalski,627104,KK009A,16/03/2023,264,0,LNOUCL,Learning Outside The Classroom,3413,Consultants,Children'S Services
Blackpool Council,1117705,Rhea Projects Ltd,627107,RP-1760,16/03/2023,1575,75,LH2096,Affordable Warmth  Wait List,4501,Private Contractors,Public Health
Blackpool Council,1117705,Rhea Projects Ltd,627108,RP-1768,16/03/2023,12485.93,2080.99,LH2096,Affordable Warmth  Wait List,4501,Private Contractors,Public Health
Blackpool Council,1086156,Water Saving Techniques Limited,627109,SI-5637,21/03/2023,1872,312,PARADE,Parades & Seawall,1012,Premises Maint-Priv.Contractor,Community & Env Services
Blackpool Council,1086156,Water Saving Techniques Limited,627110,SI-5638,16/03/2023,24000,4000,PARADE,Parades & Seawall,1012,Premises Maint-Priv.Contractor,Community & Env Services
Blackpool Council,1102823,Wilde Consultants Limited,627111,24731,20/03/2023,4415.4,735.9,TRA,Traffic Management,4501,Private Contractors,Community & Env Services
Blackpool Council,1102823,Wilde Consultants Limited,627112,24733,20/03/2023,5825.74,970.96,CTACBC,Ltp Scheme 22/23,6501,Contract Payments,Capital - Commnctn & Regen
Blackpool Council,1102823,Wilde Consultants Limited,627113,24732,22/03/2023,4330.92,721.82,TRA,Traffic Management,4501,Private Contractors,Community & Env Services
Blackpool Council,1093763,Innerva (Fka) Shapemaster Global Ltd,627114,1961,16/03/2023,450,75,LEISUR,Leisure Management,3003,Equipt-Mtce Repairs,Community & Env Services
Blackpool Council,1010353,Blackpool Football Club Ltd,627116,INV-2321,16/03/2023,1000,166.67,NA1271,Management,4501,Private Contractors,Children'S Services
Blackpool Council,1122575,Cnc Robotics Ltd,627119,INV-2019468,16/03/2023,5037.6,839.6,PJHA,"Depot, Management & Admin",3308,Servicing,Places
Blackpool Council,1010619,Askews And Holts Library Services Ltd,627120,6847203,16/03/2023,715.91,0,LBB,Central Library,3304,Books And Periodicals,Places
Blackpool Council,1010619,Askews And Holts Library Services Ltd,627121,6847204,16/03/2023,642.89,0,LBB,Central Library,3304,Books And Periodicals,Places
Blackpool Council,1105146,REDACTED PERSONAL DATA,627123,HO22-79,16/03/2023,591.9,0,LIFEVE,Life Events Reg & Care,3401,General Services,Governance & Partnerships
Blackpool Council,1105146,REDACTED PERSONAL DATA,627124,HO22-81,16/03/2023,591.9,0,LIFEVE,Life Events Reg & Care,3401,General Services,Governance & Partnerships
Blackpool Council,1057581,Nisbets,627125,26385078,16/03/2023,347.98,57.99,LEISUR,Leisure Management,3801,Other Expenses,Community & Env Services
Blackpool Council,1017606,Salvation Army,627126,5030725,16/03/2023,8700,0,EK0197,Multiply,0917,Other Exps,Places
Blackpool Council,1118699,Enveco Blackpool Waste Services Ltd,627128,30179891,16/03/2023,2400,400,EP8011,Covid Winter Grant,3801,Other Expenses,Children'S Services
Blackpool Council,1118699,Enveco Blackpool Waste Services Ltd,627128,30179891,16/03/2023,15600,2600,EP8011,Covid Winter Grant,4501,Private Contractors,Children'S Services
Blackpool Council,1012990,Gladstone Mrm Limited,627129,04021863,17/03/2023,2688,448,LEISUR,Leisure Management,3801,Other Expenses,Community & Env Services
Blackpool Council,1137187,Harte Demolition Limited,627131,1330,16/03/2023,145546.87,24257.81,CGRESO,Resources Schemes,6501,Contract Payments,Capital - Resources
Blackpool Council,1137187,Harte Demolition Limited,627131,1330,16/03/2023,6383.64,0,ZF0001,"Insurance,Dso,Banking",97B6,Retention Monies - Cap Trsfr,Total Reconciliations
Blackpool Council,1133061,Beck Interiors Limited,627132,7440,16/03/2023,198588,33098,CGTACA,Museum,6517,Equipment,Capital - Commnctn & Regen
Blackpool Council,1133061,Beck Interiors Limited,627132,7440,16/03/2023,8710,0,ZF0001,"Insurance,Dso,Banking",97B6,Retention Monies - Cap Trsfr,Total Reconciliations
Blackpool Council,1011675,Bambers Remedial Contractors Limited,627136,18252,22/03/2023,6324.88,0,CX4002,Disabled Facilities Grants,6501,Contract Payments,Capital - Adult Social Care
Blackpool Council,1011675,Bambers Remedial Contractors Limited,627137,18328,22/03/2023,15839.96,0,CX4002,Disabled Facilities Grants,6501,Contract Payments,Capital - Adult Social Care
Blackpool Council,1117705,Rhea Projects Ltd,627138,RP-1769,16/03/2023,2520,420,LH2096,Affordable Warmth  Wait List,4501,Private Contractors,Public Health
Blackpool Council,1011675,Bambers Remedial Contractors Limited,627139,18332,22/03/2023,8891.28,0,CX4002,Disabled Facilities Grants,6501,Contract Payments,Capital - Adult Social Care
Blackpool Council,1011675,Bambers Remedial Contractors Limited,627140,18335,22/03/2023,7863.12,0,CX4002,Disabled Facilities Grants,6501,Contract Payments,Capital - Adult Social Care
Blackpool Council,1011675,Bambers Remedial Contractors Limited,627141,18348,22/03/2023,6586.75,0,CX4002,Disabled Facilities Grants,6501,Contract Payments,Capital - Adult Social Care
Blackpool Council,1011675,Bambers Remedial Contractors Limited,627142,18349,22/03/2023,6763.17,0,CX4002,Disabled Facilities Grants,6501,Contract Payments,Capital - Adult Social Care
Blackpool Council,1011675,Bambers Remedial Contractors Limited,627143,18350,22/03/2023,6925.8,0,CX4002,Disabled Facilities Grants,6501,Contract Payments,Capital - Adult Social Care
Blackpool Council,1026811,Stannah Lift Services Ltd,627144,1085524804,22/03/2023,1601,0,CX4002,Disabled Facilities Grants,6501,Contract Payments,Capital - Adult Social Care
Blackpool Council,1026811,Stannah Lift Services Ltd,627147,1085526565,22/03/2023,1154.59,0,MVA,18-64,5401,Aids To Daily Living,Adult & Families
Blackpool Council,1011675,Bambers Remedial Contractors Limited,627148,18351,22/03/2023,26285.8,4380.97,CXAAA,Local Authority Dwellings,6501,Contract Payments,Capital - Chief Executive
Blackpool Council,1011675,Bambers Remedial Contractors Limited,627149,18363,22/03/2023,5251.04,0,CX4002,Disabled Facilities Grants,6501,Contract Payments,Capital - Adult Social Care
Blackpool Council,1116288,Amas Ltd - Common Receipts Account,627151,202300000016,16/03/2023,55042.95,0,HJI,Growth Investments,1301,Rent & Hire Of Premises,Places
Blackpool Council,1086156,Water Saving Techniques Limited,627154,SI-5636,17/03/2023,6300,1050,TRB,Maintenance & Works,4501,Private Contractors,Community & Env Services
Blackpool Council,1011868,W H Tarmacadam Limited,627155,6496,17/03/2023,8820,1470,PARADE,Parades & Seawall,1012,Premises Maint-Priv.Contractor,Community & Env Services
Blackpool Council,1010138,C Cabs,627156,09699,17/03/2023,428.5,0,EDDIV,Education Diversity,2201,Contract Hire,Children'S Services
Blackpool Council,1116762,Dt Electrical (Uk) Ltd,627157,IN3506,17/03/2023,4194.31,699.05,PJLA,Maintenance,3308,Servicing,Places
Blackpool Council,1135981,Clear Insurance Management Ltd,627251,404314,23/03/2023,280,0,CGTACA,Museum,6501,Contract Payments,Capital - Commnctn & Regen
Blackpool Council,1066073,Blackpool Coastal Housing,627252,30002127,17/03/2023,1338.34,223.06,MVBBJ,Equipment,5401,Aids To Daily Living,Adult & Families
Blackpool Council,1006202,I Care Gb Limited,627253,BPLEX/2602,17/03/2023,16336.67,0,MVBBE,Supported & Other Accommodatio,4512,Other Care Block Payments,Adult & Families
Blackpool Council,1087253,Routes Healthcare North Limited,627254,100323,17/03/2023,5076,846,MTEBF,Home Care,3801,Other Expenses,Adult & Families
Blackpool Council,1123472,Lancashire Care Ltd T/A Lastminute Nursing,627255,16367,17/03/2023,4059,0,MTEBF,Home Care,4512,Other Care Block Payments,Adult & Families
Blackpool Council,1110600,REDACTED PERSONAL DATA,627257,173,21/03/2023,500,0,AHG,Art Gallery Summary,3456,Payment To Artists,Places
Blackpool Council,1110600,REDACTED PERSONAL DATA,627258,187,17/03/2023,300,0,AHG,Art Gallery Summary,3456,Payment To Artists,Places
Blackpool Council,1006143,Yorkshire Purchasing Organisation,627259,SI-2487118,17/03/2023,992.4,165.4,LEISUR,Leisure Management,3020,Furniture - Purchase,Community & Env Services
Blackpool Council,1126563,Stand Together And Recover Cio,627265,002,17/03/2023,5000,0,EP8011,Covid Winter Grant,3401,General Services,Children'S Services
Blackpool Council,1110600,REDACTED PERSONAL DATA,627270,188,17/03/2023,1600,0,AHG,Art Gallery Summary,3456,Payment To Artists,Places
Blackpool Council,1058510,Lifeline Language Services Ltd,627275,1222107,17/03/2023,284.4,47.4,JEA,Senior Management,3419,Interpreters Fees,Children'S Services
Blackpool Council,1137615,Inline Track Training Limited,627278,INV-0461,20/03/2023,58950,9825,SCHEME,Highways Schemes,1012,Premises Maint-Priv.Contractor,Community & Env Services
Blackpool Council,1137615,Inline Track Training Limited,627279,INV-0462,17/03/2023,12420,2070,SCHEME,Highways Schemes,1012,Premises Maint-Priv.Contractor,Community & Env Services
Blackpool Council,1011368,L & R Roadlines Ltd,627281,71076,17/03/2023,1816.23,302.71,ENGINE,Engineering,1012,Premises Maint-Priv.Contractor,Community & Env Services
Blackpool Council,1012832,Colas Limited,627282,23000RX23003717,17/03/2023,1130.69,188.45,SCHEME,Highways Schemes,3041,Other Materials,Community & Env Services
Blackpool Council,1011369,Lancashire County Council,627284,5200263467,17/03/2023,2500,0,PU1016,Universal Grant Funding,4501,Private Contractors,Public Health
Blackpool Council,1011837,Cemex Uk Materials Ltd,627285,3013932310,17/03/2023,1137.73,189.62,ENGINE,Engineering,3041,Other Materials,Community & Env Services
Blackpool Council,1011837,Cemex Uk Materials Ltd,627287,3013932309,17/03/2023,4646.66,774.44,ENGINE,Engineering,3041,Other Materials,Community & Env Services
Blackpool Council,1011896,Capita Business Services Ltd,627289,6004139476,17/03/2023,3780,630,FBBEA,"Income, Recovery & Debtors",3532,Comp-Running & License Costs,Resources
Blackpool Council,1116288,Amas Ltd - Common Receipts Account,627291,202300000196,17/03/2023,194859.91,0,HJI,Growth Investments,1301,Rent & Hire Of Premises,Places
Blackpool Council,1026738,Cassidy + Ashton Group Limited,627292,19954,17/03/2023,2070,345,CGICAD,Enterprise Zone,6506,Consultants Fees,Capital - Commnctn & Regen
Blackpool Council,1138639,REDACTED PERSONAL DATA,627293,000/1,17/03/2023,1080,0,HOPB,Housing Options,1301,Rent & Hire Of Premises,Chief Executive
Blackpool Council,1134439,Interface Enterprises Ltd,627294,1402,17/03/2023,16080,2680,JA0505,Children'S Training,3426,Course Fees,Children'S Services
Blackpool Council,1011837,Cemex Uk Materials Ltd,627295,3013930698,17/03/2023,2521.25,420.21,ENGINE,Engineering,3041,Other Materials,Community & Env Services
Blackpool Council,1118699,Enveco Blackpool Waste Services Ltd,627296,30179244,17/03/2023,379.92,63.32,SCHEME,Highways Schemes,3041,Other Materials,Community & Env Services
Blackpool Council,1098569,This Named Company Ltd T/A The Card Network,627297,INV-012785,20/03/2023,347.88,57.98,AEB,Buildings,3012,Other Equipment,Resources
Blackpool Council,1138343,Selecta Uk Ltd,627298,230014816,17/03/2023,11284.8,1880.8,LEISUR,Leisure Management,3012,Other Equipment,Community & Env Services
Blackpool Council,1071925,Groundwork Cheshire Lancs And Merseyside,627300,0000004195,17/03/2023,5280,0,PU2064,Holiday Activities & Food(Haf),4501,Private Contractors,Public Health
Blackpool Council,1029873,Portakabin Limited,627301,900989088,17/03/2023,70933.2,11822.2,CFCAAA,Cbd Phase 3,6501,Contract Payments,Capital - Commnctn & Regen
Blackpool Council,1087579,Ur Potential Cic,627303,2022-2023/369URP,17/03/2023,500,0,EP8011,Covid Winter Grant,4501,Private Contractors,Children'S Services
Blackpool Council,1071925,Groundwork Cheshire Lancs And Merseyside,627305,0000004200,17/03/2023,20000,0,EP8011,Covid Winter Grant,4501,Private Contractors,Children'S Services
Blackpool Council,1137777,Connected Places Catapult Services Ltd,627312,1404,17/03/2023,60000,10000,CGICAD,Enterprise Zone,6506,Consultants Fees,Capital - Commnctn & Regen
Blackpool Council,1137886,Dealmaker Ltd T/A Turnells Of London,627313,443971,20/03/2023,630,0,PU2064,Holiday Activities & Food(Haf),4501,Private Contractors,Public Health
Blackpool Council,1089774,Fcms (Nw) Ltd,627314,07314,17/03/2023,23616,3936,PU0111,Contain Outbreak Mgmnt Covid,4501,Private Contractors,Public Health
Blackpool Council,1066073,Blackpool Coastal Housing,627315,30002220,17/03/2023,1360.8,226.8,CGRESO,Resources Schemes,6526,I.T. Software Purchase,Capital - Resources
Blackpool Council,1103450,Blackpool Entertainment Company Limited,627316,INV006688,17/03/2023,2280,380,PESPRT,Pe And Sport Team,0I91,Other,Community & Env Services
Blackpool Council,1102016,Critiqom Limited,627317,084100,17/03/2023,4104,684,FBBEA,"Income, Recovery & Debtors",3302,Stationery,Resources
Blackpool Council,1102016,Critiqom Limited,627318,084327,17/03/2023,3109.8,518.3,FBBEA,"Income, Recovery & Debtors",3302,Stationery,Resources
Blackpool Council,1010619,Askews And Holts Library Services Ltd,627319,6846952,17/03/2023,572.87,0,LBB,Central Library,3304,Books And Periodicals,Places
Blackpool Council,1010619,Askews And Holts Library Services Ltd,627320,6846953,17/03/2023,522.88,0,LBB,Central Library,3304,Books And Periodicals,Places
Blackpool Council,1118699,Enveco Blackpool Waste Services Ltd,627326,30178433,17/03/2023,1511.53,251.92,EDDIV,Education Diversity,3606,Incidental Expenses,Children'S Services
Blackpool Council,1058510,Lifeline Language Services Ltd,627327,1222110,17/03/2023,702,117,JEA,Senior Management,5507,Personal,Children'S Services
Blackpool Council,1067733,West Lancs Roofing,627329,0920,20/03/2023,270,45,ZM0003,Planning,9624,Rechargeable Works Account,Place Directorate
Blackpool Council,1099469,Blackpool Gateway Academy,627330,5000000105,17/03/2023,579.76,0,MNGMT,Central Management,6273,Miscellaneous,Children'S Services
Blackpool Council,1067733,West Lancs Roofing,627334,0926,20/03/2023,672,112,ZM0003,Planning,9624,Rechargeable Works Account,Place Directorate
Blackpool Council,1132964,The Good Cause Project,627336,INV-0067,23/03/2023,1600,0,AHHBA,Blackpool Museum,3801,Other Expenses,Places
Blackpool Council,1133538,REDACTED PERSONAL DATA,627338,0931997,17/03/2023,300,0,PJHA,"Depot, Management & Admin",3308,Servicing,Places
Blackpool Council,1060135,Happy Creative Ltd,627339,H5811,17/03/2023,474,79,PUBH24,Children'S Public Health,4501,Private Contractors,Public Health
Blackpool Council,1012990,Gladstone Mrm Limited,627341,SUP0012011,20/03/2023,6000,1000,LEISUR,Leisure Management,3801,Other Expenses,Community & Env Services
Blackpool Council,1111831,Phx Training Ltd,627343,465,17/03/2023,1200,0,EK0197,Multiply,0917,Other Exps,Places
Blackpool Council,1090874,Advanced Health And Care Limited,627344,ARMIN/00020388,20/03/2023,700.8,116.8,APDBAB,Homecare,2201,Contract Hire,Adult & Families
Blackpool Council,1008525,Kingswood Office Supplies Limited,627349,455451,17/03/2023,384.72,64.12,FGBA,Specific (Directorate)-Service,3302,Stationery,Resources
Blackpool Council,1123170,Studio Treble Ltd,627352,INV-00613,23/03/2023,1704,284,AHHBA,Blackpool Museum,3801,Other Expenses,Places
Blackpool Council,1071925,Groundwork Cheshire Lancs And Merseyside,627353,0000004198,17/03/2023,13500,0,EK0197,Multiply,0917,Other Exps,Places
Blackpool Council,1129069,Fourex Clothing Ltd,627355,INV-62258,17/03/2023,2251.56,375.26,LEISUR,Leisure Management,3201,Clothing & Uniforms,Community & Env Services
Blackpool Council,1009004,Bemrosebooth Paragon Limited T/A Paragon Id,627357,511807,21/03/2023,1512,252,PARADM,Parking Administration,3302,Stationery,Budgets Outside Cash Limits
Blackpool Council,1111234,Cbre Ltd,627363,50BR100103979,17/03/2023,10200,1700,CGICAG,Town Deal,6506,Consultants Fees,Capital - Commnctn & Regen
Blackpool Council,1006099,Blackpool Teaching Hospitals Nhs Ft,627364,1110064163,20/03/2023,7421.38,353.4,PUBH18,Stop Smoking Services & Interv,4501,Private Contractors,Public Health
Blackpool Council,1041157,5-Am Contact Contract Cleaning Ltd,627367,INV-1917,20/03/2023,342,57,CATERG,Catering Services,1608,Other Cleaning Works,Community & Env Services
Blackpool Council,1076636,Chicken Joes Ltd,627372,811511,20/03/2023,404.29,0,CATERG,Catering Services,3101,Provisions,Community & Env Services
Blackpool Council,1093145,On A Roll Sandwich Company,627374,263209,20/03/2023,798.64,0,CATERG,Catering Services,3101,Provisions,Community & Env Services
Blackpool Council,1076636,Chicken Joes Ltd,627375,813327,20/03/2023,286.5,0,CATERG,Catering Services,3101,Provisions,Community & Env Services
Blackpool Council,1076636,Chicken Joes Ltd,627376,814011,20/03/2023,293.05,0,CATERG,Catering Services,3101,Provisions,Community & Env Services
Blackpool Council,1076636,Chicken Joes Ltd,627377,813320,20/03/2023,344.68,0,CATERG,Catering Services,3101,Provisions,Community & Env Services
Blackpool Council,1138586,Skills & Work Solutions Ltd,627378,6084172,27/03/2023,28074.82,4679.14,PVA,Other External Funding,3313,General Expenses,Places
Blackpool Council,1134894,Walling Limited,627379,105045,20/03/2023,271.66,45.28,CATERG,Catering Services,3101,Provisions,Community & Env Services
Blackpool Council,1076636,Chicken Joes Ltd,627380,811512,20/03/2023,325.15,0,CATERG,Catering Services,3101,Provisions,Community & Env Services
Blackpool Council,1076636,Chicken Joes Ltd,627381,813319,20/03/2023,298.15,0,CATERG,Catering Services,3101,Provisions,Community & Env Services
Blackpool Council,1011675,Bambers Remedial Contractors Limited,627384,18138,20/03/2023,14902.8,2483.8,CGTCCD,Heritage Action Zone,6501,Contract Payments,Capital - Commnctn & Regen
Blackpool Council,1011675,Bambers Remedial Contractors Limited,627385,18098,20/03/2023,63224.16,10537.36,CGTCCD,Heritage Action Zone,6501,Contract Payments,Capital - Commnctn & Regen
Blackpool Council,1011675,Bambers Remedial Contractors Limited,627386,18097,20/03/2023,65403.6,10900.6,CGTCCD,Heritage Action Zone,6501,Contract Payments,Capital - Commnctn & Regen
Blackpool Council,1011675,Bambers Remedial Contractors Limited,627387,18096,20/03/2023,41539.44,6923.24,CGTCCD,Heritage Action Zone,6501,Contract Payments,Capital - Commnctn & Regen
Blackpool Council,1011369,Lancashire County Council,627388,5201504712,20/03/2023,1677,0,FR5001,Concessionary Fares,3401,General Services,Budgets Outside Cash Limits
Blackpool Council,1008074,Wf Education Group Ltd,627389,PSI144106,20/03/2023,1360.8,226.8,LBC,Branch Libraries,3020,Furniture - Purchase,Places
Blackpool Council,1066498,Bnp Paribas Leasing Solutions Limited,627394,FLGB3521027,20/03/2023,691.55,115.26,CATERG,Catering Services,3006,Hire Of Equipment,Community & Env Services
Blackpool Council,1051204,Greater Manchester Mental Health Nhs Trust,627457,0000046585,20/03/2023,2368,0,PUBH04,Substance Misuse,4501,Private Contractors,Public Health
Blackpool Council,1005071,Blackpool Transport Services Limited,627458,I0004629,20/03/2023,1534.25,0,FRAEA,Public Transport Contracts,3401,General Services,Community & Env Services
Blackpool Council,1006099,Blackpool Teaching Hospitals Nhs Ft,627459,1110064305,21/03/2023,55377.5,0,CWAN,Children With Additional Needs,3008,Educational Equipment,Children'S Services
Blackpool Council,1100468,Post Office Ltd,627461,1000/90063281,20/03/2023,257.4,0,FC1801,Social Fund - Admin,5209,Crisis/Emergency Support,Resources
Blackpool Council,1006099,Blackpool Teaching Hospitals Nhs Ft,627462,1110064258,21/03/2023,13705.2,2284.2,MNGMT,Central Management,0917,Other Exps,Children'S Services
Blackpool Council,1095113,Pearce Clinical Psychology Services Ltd,627463,974,20/03/2023,1628,0,FK0013,Corporate Health,0992,Medical Fees (Employee),Chief Executive
Blackpool Council,1111234,Cbre Ltd,627464,50BR100103558,20/03/2023,6000,1000,PTC,"A.C.E. Regen, Tourism & Cultur",3801,Other Expenses,Places
Blackpool Council,1006586,H Jenkinson & Co Ltd,627465,SINV00952786,20/03/2023,2076.02,346,LBE,Outreach Worker,3041,Other Materials,Places
Blackpool Council,1099512,Dga (Uk) Ltd,627468,SIN230535,20/03/2023,1063.2,177.2,CP0511,Anchorsholme Seawall Scheme,6506,Consultants Fees,Capital - Comm & Environ
Blackpool Council,1099512,Dga (Uk) Ltd,627469,SIN230471,20/03/2023,420,70,CP0511,Anchorsholme Seawall Scheme,6506,Consultants Fees,Capital - Comm & Environ
Blackpool Council,1035853,Norcash Ltd,627470,8221,20/03/2023,1560,260,PRC,Visitor Services,3012,Other Equipment,Places
Blackpool Council,1074325,Mangar International,627472,0000236772,24/03/2023,594,99,MTEAJ,Equipment,5401,Aids To Daily Living,Adult & Families
Blackpool Council,1114541,Integrity Print Ltd,627476,1347924,20/03/2023,2464.8,410.8,PARADM,Parking Administration,3302,Stationery,Budgets Outside Cash Limits
Blackpool Council,1069355,Volunteer Centre Blackpool Wyre & Fylde Ltd,627478,VCBWFMULTIPLY01,20/03/2023,4200,0,EK0197,Multiply,0917,Other Exps,Places
Blackpool Council,1025240,Key Engineering Supplies Ltd,627482,58903,22/03/2023,835.68,0,ZM0018,Highways & Engineering,9773,Orders Received Not Invoiced,Blackpool Services
Blackpool Council,1025240,Key Engineering Supplies Ltd,627482,58903,22/03/2023,1002.82,167.14,ZM0018,Highways & Engineering,9511A,Stocks Efin,Blackpool Services
Blackpool Council,1101576,Johnson Health Tech Uk Ltd,627484,9502768462,20/03/2023,21609.1,3601.52,LEISUR,Leisure Management,3007,Recreational Equipment,Community & Env Services
Blackpool Council,1118699,Enveco Blackpool Waste Services Ltd,627486,30180433,20/03/2023,811377.96,135229.66,SCLEAN,Street Cleaning,4501,Private Contractors,Community & Env Services
Blackpool Council,1073709,Delphi Medical Limited,627494,SINV62/00000193,20/03/2023,2000,0,PU1016,Universal Grant Funding,4501,Private Contractors,Public Health
Blackpool Council,1073709,Delphi Medical Limited,627495,SINV62/00000195,20/03/2023,2500,0,PU1016,Universal Grant Funding,4501,Private Contractors,Public Health
Blackpool Council,1073709,Delphi Medical Limited,627496,SINV62/00000196,20/03/2023,3500,0,PU1016,Universal Grant Funding,4501,Private Contractors,Public Health
Blackpool Council,1073709,Delphi Medical Limited,627497,SINV62/00000204,23/03/2023,4250,0,PUBH04,Substance Misuse,4501,Private Contractors,Public Health
Blackpool Council,1073709,Delphi Medical Limited,627498,SINV62/00000216,20/03/2023,3000,0,PU1016,Universal Grant Funding,4501,Private Contractors,Public Health
Blackpool Council,1073709,Delphi Medical Limited,627499,SINV62/00000259,22/03/2023,3500,0,PU1016,Universal Grant Funding,4501,Private Contractors,Public Health
Blackpool Council,1073709,Delphi Medical Limited,627500,SINV62/00000279,22/03/2023,2500,0,PU2095,Rough Sleepers & At Risk,4501,Private Contractors,Public Health
Blackpool Council,1117763,Street Angels - Angels Rest,627503,0017,20/03/2023,27375,0,HOPB,Housing Options,4004,Management Fees,Chief Executive
Blackpool Council,1020550,Hays Specialist Recruitment Ltd,627504,1012827087,22/03/2023,1005.04,167.51,HJA,Growth,0791,Temp/Relief (Bureau Staff),Places
Blackpool Council,1020550,Hays Specialist Recruitment Ltd,627505,1012828835,21/03/2023,1035,172.5,HJA,Growth,0791,Temp/Relief (Bureau Staff),Places
Blackpool Council,1091610,Communicate Slt Cic,627506,INV-0819,20/03/2023,17646.14,0,EP8002,Speech And Language,3801,Other Expenses,Children'S Services
Blackpool Council,1091610,Communicate Slt Cic,627507,INV-0831,20/03/2023,17646.14,0,EP8002,Speech And Language,3801,Other Expenses,Children'S Services
Blackpool Council,1091610,Communicate Slt Cic,627508,INV-0848,20/03/2023,17646.14,0,EP8002,Speech And Language,3801,Other Expenses,Children'S Services
Blackpool Council,1114704,Morson Human Resources Ltd,627509,HS487222,20/03/2023,2310,385,CTAHHI,Tramway Extention,6506,Consultants Fees,Capital - Commnctn & Regen
Blackpool Council,1120391,Traffic Technology Ltd,627510,DT6874,20/03/2023,264,44,TRA,Traffic Management,4501,Private Contractors,Community & Env Services
Blackpool Council,1011368,L & R Roadlines Ltd,627511,71081,21/03/2023,332.16,55.36,SCHEME,Highways Schemes,1012,Premises Maint-Priv.Contractor,Community & Env Services
Blackpool Council,1010429,Blackburn With Darwen Bc,627512,552520,21/03/2023,10000,0,LH2092,Lad 2 Funding,4501,Private Contractors,Public Health
Blackpool Council,1027390,Lakeland Land Rover,627513,00029645,20/03/2023,381.6,63.6,BEACHP,Beach Patrol,2001,Purchases,Places
Blackpool Council,1012105,S & S Timber Supplies Ltd,627515,I0067604,20/03/2023,1094.44,182.41,PARADE,Parades & Seawall,3041,Other Materials,Community & Env Services
Blackpool Council,1128443,Andrea Howe,627516,AHBC023,20/03/2023,5046.05,0,LH2073,Energy Efficiency,4501,Private Contractors,Public Health
Blackpool Council,1110996,Philip Holmes T/A Dragon Creative,627517,102899,21/03/2023,370.98,0,PJW,Management - Places - Illumina,3413,Consultants,Places
Blackpool Council,1013064,Tarmac Lafarge Trading Limited,627518,9046628613,21/03/2023,5272.46,878.74,ENGINE,Engineering,3041,Other Materials,Community & Env Services
Blackpool Council,1013064,Tarmac Lafarge Trading Limited,627519,9046628614,21/03/2023,435.44,72.57,ENGINE,Engineering,3041,Other Materials,Community & Env Services
Blackpool Council,1058510,Lifeline Language Services Ltd,627524,1222131,21/03/2023,662.4,110.4,JEA,Senior Management,3419,Interpreters Fees,Children'S Services
Blackpool Council,1058510,Lifeline Language Services Ltd,627526,1222064,21/03/2023,284.4,47.4,JEA,Senior Management,5507,Personal,Children'S Services
Blackpool Council,1101576,Johnson Health Tech Uk Ltd,627527,9502768499,21/03/2023,12764.9,2127.48,LEISUR,Leisure Management,3007,Recreational Equipment,Community & Env Services
Blackpool Council,1061548,Cadent Gas Limited,627528,33034877,21/03/2023,1578,263,FB0004,Energy & Sustainability,1203,Gas,Resources
Blackpool Council,1136654,Randstad Solutions Ltd,627529,30117961,21/03/2023,349.06,58.18,VIRTUL,Virtual Hub,5555,Educational Support,Children'S Services
Blackpool Council,1011970,A1 Streamline Road Markings Ltd,627532,8655,21/03/2023,3565.44,594.24,SCHEME,Highways Schemes,1012,Premises Maint-Priv.Contractor,Community & Env Services
Blackpool Council,1073709,Delphi Medical Limited,627533,SINV62/00000237,22/03/2023,3500,0,PUBH04,Substance Misuse,4501,Private Contractors,Public Health
Blackpool Council,1073709,Delphi Medical Limited,627534,SINV62/00000238,22/03/2023,2500,0,PUBH04,Substance Misuse,4501,Private Contractors,Public Health
Blackpool Council,1073709,Delphi Medical Limited,627535,SINV62/00000239,22/03/2023,2750,0,PUBH04,Substance Misuse,4501,Private Contractors,Public Health
